Workbook

Sheet Notice
B2: DISCLAIMER
B4: 1. This workbook is the property of Fonterra Co-operative Group Limited (Fonterra).
B5: 2. The workbook contains the higher level inputs and calculations underpinning the calculation of the Farmgate Milk Price for the 2015/16 season.
B6: To protect the commercial confidentiality of certain information derived from Fonterra's actual performance data, a number of inputs have been aggregated for the purposes of this workbook.
B7: The workbook does not contain all the intermediate calculations required to calculate the Farmgate Milk Price. For example, the workbook does not contain the calculations required to convert contracted prices into 'shipment month' prices, or the
B8: 'tilted annuity' calculations used to calculate the WACC charge and depreciation inputs.
B9: 3. Fonterra does not warrant that the workbook is free from error, and explicitly disclaims any liability to any third party with respect to any use they may make of the workbook.
B10: 4. Third party recipients of this workbook use it entirely at their own risk. Fonterra will not accept any responsibility any loss which may result from use of the workbook including the direct or indirect consequences of computer viruses.
B11: 5. The workbook was not designed for use by third parties and Fonterra provides no assurance that third parties will be able to be readily operate the workbook.

Sheet Global
K1: F16 Milk Price | N1: =Summary!L104 -> 3.895083318 | O1: 3.895083318 | P1: =O1-MilkPrice -> 0
K2: Average FX conversion rate (Sales) | N2: =Summary!L20 -> 0.708207511
F7: Period Ended | O7: =K34 -> 2016-05-31 | Q7: =EOMONTH(T7,-1) -> 2015-05-31 | R7: =EOMONTH(S7,-1) -> 2015-04-30 | S7: =EOMONTH(T7,-1) -> 2015-05-31 | T7: =K32 -> 2015-06-30 | U7: =EOMONTH(T7,1) -> 2015-07-31 | V7: 2015-08-31 | W7: 2015-09-30 | X7: 2015-10-31 | Y7: 2015-11-30 | Z7: 2015-12-31 | AA7: 2016-01-31 | AB7: 2016-02-29 | AC7: 2016-03-31 | AD7: 2016-04-30 | AE7: 2016-05-31 | AF7: 2016-06-30 | AG7: 2016-07-31 | AH7: 2016-08-31 | AI7: 2016-09-30 | AJ7: 2016-10-31 | AK7: 2016-11-30 | AL7: 2016-12-31 | AM7: 2017-01-31 | AN7: 2017-02-28 | AO7: 2017-03-31 | AP7: =EOMONTH(AO7,1) -> 2017-04-30 | AQ7: =EOMONTH(AP7,1) -> 2017-05-31 | AR7: =EOMONTH(AQ7,1) -> 2017-06-30
D8: Calendar Year | T8: =YEAR(T7) -> 2015 | U8: 2015 | V8: 2015 | W8: 2015 | X8: 2015 | Y8: 2015 | Z8: 2015 | AA8: 2016 | AB8: 2016 | AC8: 2016 | AD8: 2016 | AE8: 2016 | AF8: 2016 | AG8: 2016 | AH8: 2016 | AI8: 2016 | AJ8: 2016 | AK8: 2016 | AL8: 2016 | AM8: 2017 | AN8: 2017 | AO8: 2017
D9: Month Number | T9: 1 | U9: =T9+1 -> 2 | V9: 3 | W9: 4 | X9: 5 | Y9: 6 | Z9: 7 | AA9: 8 | AB9: 9 | AC9: 10 | AD9: 11 | AE9: 12 | AF9: 13 | AG9: 14 | AH9: 15 | AI9: 16 | AJ9: 17 | AK9: 18 | AL9: 19 | AM9: 20 | AN9: 21 | AO9: 22
D10: Days in Period | R10: =R7-EOMONTH(R7,-1) -> 30 | S10: =S7-R7 -> 31 | T10: =T7-S7 -> 30 | U10: =U7-T7 -> 31 | V10: 31 | W10: 30 | X10: 31 | Y10: 30 | Z10: 31 | AA10: 31 | AB10: 29 | AC10: 31 | AD10: 30 | AE10: 31 | AF10: 30 | AG10: 31 | AH10: 31 | AI10: 30 | AJ10: 31 | AK10: 30 | AL10: 31 | AM10: 31 | AN10: 28 | AO10: 31
D11: Year to Go flag | O11: =INDEX(LookupTables!E11:E28,LookupTables!I11) -> 2016-09-30 | P11: =LookupTables!I11 -> 16 | T11: =IF(T9<=$P$11,1,0) -> 1 | U11: 1 | V11: 1 | W11: 1 | X11: 1 | Y11: 1 | Z11: 1 | AA11: 1 | AB11: 1 | AC11: 1 | AD11: 1 | AE11: 1 | AF11: 1 | AG11: 1 | AH11: 1 | AI11: 1 | AJ11: 0 | AK11: 0 | AL11: 0 | AM11: 0 | AN11: 0 | AO11: 0
C13: GENERAL MODEL INPUTS
C15: MODEL INFORMATION
C17: This model contains circular logic relating to the calculation of tax expense and net working capital. It is therefore necessary to set the calculation approach to 'iterative calculations.'
C20: INPUT KEY
F22: Colour Key: | K22: Description
K23: General Input Cells
K24: Calculation cell with different logic to adjacent cells
K25: Normal general input cells where inputs have been 'bundled' into a higher level / different input for purposes of this simplified model.
K26: Additional input cells added for purpose of this public model
K27: Cells intentionally left blank in 'Calculations' Tab
C29: DATE AND TIME DATA
A31: 7 | F31: First Day of the season | K31: 2015-06-01
F32: End Date of First Period | K32: =EOMONTH(K31,0) -> 2015-06-30
F34: End of season | K34: =EOMONTH(K31,11) -> 2016-05-31
C36: GLOBAL TIME DEPENDENT INPUTS | R36: =R7 -> 2015-04-30 | S36: 2015-05-31 | T36: 2015-06-30 | U36: 2015-07-31 | V36: 2015-08-31 | W36: 2015-09-30 | X36: 2015-10-31 | Y36: 2015-11-30 | Z36: 2015-12-31 | AA36: 2016-01-31 | AB36: 2016-02-29 | AC36: 2016-03-31 | AD36: 2016-04-30 | AE36: 2016-05-31 | AF36: 2016-06-30 | AG36: 2016-07-31 | AH36: 2016-08-31 | AI36: 2016-09-30 | AJ36: 2016-10-31 | AK36: 2016-11-30 | AL36: 2016-12-31 | AM36: 2017-01-31 | AN36: 2017-02-28 | AO36: 2017-03-31
F38: WACC - Annual | O38: 0.059
F39: WACC - monthly | O39: =(1+$O$38)^(1/12)-1 -> 0.004788517365
C41: SUMMARY OF ERROR CHECKS
F43: Worksheet name:
F44: Data Input | K44: ='Data Input'!J4 -> Okay
F45: Calculations | K45: =Calculations!J5 -> Okay
F46: Summary | K46: =Summary!L141 -> Okay | L46: If the 'Summary' sheet error check returns 'error', press F9 for more iterations until the figure (right) is close to zero. | U46: =SUM(Summary!Q141:AJ141) -> -1.694096042e-09
F47: Overall model | K47: =IF(COUNTA(K44:K46)=COUNTIF(K44:K46,"Okay"),"Okay","Error") -> Okay
F49: Calculations Worksheet:
F50: Debtor Reconciliation Check | K50: =Calculations!B906 -> Okay
F51: Closing Inventory Check | K51: =Calculations!B976 -> Okay
F52: FIFO Production Volume Check | K52: =Calculations!B1010 -> Okay
F53: Milk Solids Volume Check | K53: =Calculations!B1029 -> Okay
F54: Milk Price Calculation Check | K54: =Calculations!B1253 -> Okay
F55: PV of Cash Flow Check | K55: =Calculations!B1267 -> Okay
F57: Summary Worksheet
F58: Operating Cash Flow Check | K58: =Summary!L141 -> Okay

Sheet Data Input
F4: =Calculations!F5 -> Overall error check | J4: =IF(COUNTA(B:B)=COUNTIF(B:B,"Okay"),"Okay","Error") -> Okay | M4: Annual | T4: Monthly
J6: Units | K6: Input | N6: =Global!O7 -> 2016-05-31 | Q6: Date | R6: =Global!R7 -> 2015-04-30 | S6: =Global!S7 -> 2015-05-31 | T6: =Global!T7 -> 2015-06-30 | U6: =Global!U7 -> 2015-07-31 | V6: =Global!V7 -> 2015-08-31 | W6: =Global!W7 -> 2015-09-30 | X6: =Global!X7 -> 2015-10-31 | Y6: =Global!Y7 -> 2015-11-30 | Z6: =Global!Z7 -> 2015-12-31 | AA6: =Global!AA7 -> 2016-01-31 | AB6: =Global!AB7 -> 2016-02-29 | AC6: =Global!AC7 -> 2016-03-31 | AD6: =Global!AD7 -> 2016-04-30 | AE6: =Global!AE7 -> 2016-05-31 | AF6: =Global!AF7 -> 2016-06-30 | AG6: =Global!AG7 -> 2016-07-31 | AH6: =Global!AH7 -> 2016-08-31 | AI6: =Global!AI7 -> 2016-09-30 | AJ6: =Global!AJ7 -> 2016-10-31 | AK6: =Global!AK7 -> 2016-11-30 | AL6: =Global!AL7 -> 2016-12-31 | AM6: =Global!AM7 -> 2017-01-31 | AN6: =Global!AN7 -> 2017-02-28 | AO6: =Global!AO7 -> 2017-03-31
D7: Calendar Year | T7: =YEAR(T6) -> 2015 | U7: 2015 | V7: 2015 | W7: 2015 | X7: 2015 | Y7: 2015 | Z7: 2015 | AA7: =YEAR(AA6) -> 2016 | AB7: 2016 | AC7: 2016 | AD7: 2016 | AE7: 2016 | AF7: 2016 | AG7: 2016 | AH7: 2016 | AI7: 2016 | AJ7: 2016 | AK7: 2016 | AL7: 2016 | AM7: 2017 | AN7: =YEAR(AN6) -> 2017 | AO7: =YEAR(AO6) -> 2017
D8: Month Number | T8: =Global!T9 -> 1 | U8: =Global!U9 -> 2 | V8: =Global!V9 -> 3 | W8: =Global!W9 -> 4 | X8: =Global!X9 -> 5 | Y8: =Global!Y9 -> 6 | Z8: =Global!Z9 -> 7 | AA8: =Global!AA9 -> 8 | AB8: =Global!AB9 -> 9 | AC8: =Global!AC9 -> 10 | AD8: =Global!AD9 -> 11 | AE8: =Global!AE9 -> 12 | AF8: =Global!AF9 -> 13 | AG8: =Global!AG9 -> 14 | AH8: =Global!AH9 -> 15 | AI8: =Global!AI9 -> 16 | AJ8: =Global!AJ9 -> 17 | AK8: =Global!AK9 -> 18 | AL8: =Global!AL9 -> 19 | AM8: =Global!AM9 -> 20 | AN8: =Global!AN9 -> 21 | AO8: =Global!AO9 -> 22
D9: Days in Period | R9: =Global!R10 -> 30 | S9: =Global!S10 -> 31 | T9: =Global!T10 -> 30 | U9: =Global!U10 -> 31 | V9: =Global!V10 -> 31 | W9: =Global!W10 -> 30 | X9: =Global!X10 -> 31 | Y9: =Global!Y10 -> 30 | Z9: =Global!Z10 -> 31 | AA9: =Global!AA10 -> 31 | AB9: =Global!AB10 -> 29 | AC9: =Global!AC10 -> 31 | AD9: =Global!AD10 -> 30 | AE9: =Global!AE10 -> 31 | AF9: =Global!AF10 -> 30 | AG9: =Global!AG10 -> 31 | AH9: =Global!AH10 -> 31 | AI9: =Global!AI10 -> 30 | AJ9: =Global!AJ10 -> 31 | AK9: =Global!AK10 -> 30 | AL9: =Global!AL10 -> 31 | AM9: =Global!AM10 -> 31 | AN9: =Global!AN10 -> 28 | AO9: =Global!AO10 -> 31
D10: Year to Go flag | N10: 1 | P10: =Global!P11 -> 16 | T10: =Global!T11 -> 1 | U10: =Global!U11 -> 1 | V10: =Global!V11 -> 1 | W10: =Global!W11 -> 1 | X10: =Global!X11 -> 1 | Y10: =Global!Y11 -> 1 | Z10: =Global!Z11 -> 1 | AA10: =Global!AA11 -> 1 | AB10: =Global!AB11 -> 1 | AC10: =Global!AC11 -> 1 | AD10: =Global!AD11 -> 1 | AE10: =Global!AE11 -> 1 | AF10: =Global!AF11 -> 1 | AG10: =Global!AG11 -> 1 | AH10: =Global!AH11 -> 1 | AI10: =Global!AI11 -> 1 | AJ10: =Global!AJ11 -> 0 | AK10: =Global!AK11 -> 0 | AL10: =Global!AL11 -> 0 | AM10: =Global!AM11 -> 0 | AN10: =Global!AN11 -> 0 | AO10: =Global!AO11 -> 0
Q11: updated | T11: =T6 -> 2015-06-30 | U11: 2015-07-31 | V11: 2015-08-31 | W11: 2015-09-30 | X11: 2015-10-31 | Y11: 2015-11-30 | Z11: 2015-12-31 | AA11: 2016-01-31 | AB11: 2016-02-29 | AC11: 2016-03-31 | AD11: 2016-04-30 | AE11: 2016-05-31 | AF11: 2016-06-30 | AG11: 2016-07-31 | AH11: 2016-08-31 | AI11: 2016-09-30 | AJ11: 2016-10-31 | AK11: 2016-11-30 | AL11: 2016-12-31 | AM11: 2017-01-31 | AN11: =AN6 -> 2017-02-28 | AO11: =AO6 -> 2017-03-31
F14: GLOBAL
F16: STATUS / DATA SOURCE | J16: Weighted average annual FX rate for revenue. Also used in this simplified model to translate costs. In practice, USD purchases have a different time profile, & therefore weighted average conversion rate, to sales.
J17: We have adjusted the USD cost inputs to correct for this difference (so reported NZD values reconcile to the actual F16 milk price calculation.)
F20: FX
F22: Weighted average annual FX rate | R22: 0.708207511 | S22: 0.708207511 | T22: 0.708207511 | U22: 0.708207511 | V22: 0.708207511 | W22: 0.708207511 | X22: 0.708207511 | Y22: 0.708207511 | Z22: 0.708207511 | AA22: 0.708207511 | AB22: 0.708207511 | AC22: 0.708207511 | AD22: 0.708207511 | AE22: 0.708207511 | AF22: 0.708207511 | AG22: 0.708207511 | AH22: 0.708207511 | AI22: 0.708207511 | AJ22: 0.708207511 | AK22: 0.708207511 | AL22: 0.708207511 | AM22: 0.708207511 | AN22: 0.708207511
F24: MILK SUPPLY
F26: STATUS / DATA SOURCE | J26: The minor difference between 'milk paid for' and 'milk collected' reflects circumstances where Fonterra is unable to collect and process milk (eg due to adverse weather events) but is contractually obliged to pay for it.
J27: The calculation of the aggregate amount available to pay for milk is based on milk actually collected and therefore available for processing. The average milk price per kgMS is calculated based on all milk paid for by Fonterra.
F30: KGMS | O30: YTD | P30: YTG
F31: Milk Paid For | J31: 000 kgMS | N31: =SUM(T31:AE31) -> 1566433.584 | O31: =SUMIF($T$10:$AE$10,1,T31:AE31) -> 1566433.584 | P31: =N31-O31 -> 0 | T31: 10047.6264 | U31: 16579.8102 | V31: 100769.3442 | W31: 178143.2992 | X31: 222558.3915 | Y31: 208735.5899 | Z31: 195565.6511 | AA31: 175038.6041 | AB31: 144117.5452 | AC31: 136057.7862 | AD31: 111779.2777 | AE31: 67040.6587
F32: Milk Supply collected | J32: 000 kgMS | N32: =SUM(T32:AE32) -> 1566428.263 | T32: 10043.1786 | U32: 16578.9363 | V32: 100769.3442 | W32: 178143.2992 | X32: 222558.3915 | Y32: 208735.5899 | Z32: 195565.6511 | AA32: 175038.6041 | AB32: 144117.5452 | AC32: 136057.7862 | AD32: 111779.2777 | AE32: 67040.6587
F33: Monthly distribution | J33: % | N33: =SUM(T33:AE33) -> 1 | T33: =T32/$N$32 -> 0.00641151519 | U33: =U32/$N$32 -> 0.01058391035 | V33: 0.06433064737 | W33: 0.1137257948 | X33: 0.1420801685 | Y33: 0.1332557608 | Z33: 0.1248481375 | AA33: 0.1117437729 | AB33: 0.09200392296 | AC33: 0.08685861296 | AD33: 0.07135933407 | AE33: 0.04279842256
F36: PRODUCTION
F38: STATUS / DATA SOURCE | J38: Milk composition shown below is weighted average composition by quarter. In practice monthly average composition is used. The detail of the loss and composition assumptions reflects information that is confidential
J39: to Fonterra and is therefore not disclosed. We have left the relevant logic intact but have hardcoded the results of production volume calculations on the Calculations tab.
F40: National average composition
F41: Fat | J41: % w/w | T41: 0.04777514766 | U41: 0.04777514766 | V41: 0.04777514766 | W41: 0.04627877618 | X41: 0.04627877618 | Y41: 0.04627877618 | Z41: 0.04839323902 | AA41: 0.04839323902 | AB41: 0.04839323902 | AC41: 0.05533646555 | AD41: 0.05533646555 | AE41: 0.05533646555
F42: Protein | J42: % w/w | T42: 0.03746184828 | U42: 0.03746184828 | V42: 0.03746184828 | W42: 0.03626683653 | X42: 0.03626683653 | Y42: 0.03626683653 | Z42: 0.0371547929 | AA42: 0.0371547929 | AB42: 0.0371547929 | AC42: 0.04159138422 | AD42: 0.04159138422 | AE42: 0.04159138422
F43: Lactose + Minerals | J43: % w/w | T43: 0.05425520336 | U43: 0.05425520336 | V43: 0.05425520336 | W43: 0.05469117737 | X43: 0.05469117737 | Y43: 0.05469117737 | Z43: 0.05361913793 | AA43: 0.05361913793 | AB43: 0.05361913793 | AC43: 0.05227435892 | AD43: 0.05227435892 | AE43: 0.05227435892
F45: Milk Composition Input Parameters
F46: Cream Fat Content | J46: % | N46: 0.42
F47: Skimmilk Fat Content | J47: % | N47: 0.0008
F48: Wholemilk Density | J48: % | N48: 1.032
F50: Lactose Standardising Inputs
F51: Lactose losses - WMP | J51: %
F52: Lactose losses - SMP | J52: %
F53: Lactose losses - BMP | J53: %
F54: Lactose content of lactose powder | J54: % | N54: 0.95
F56: Composition Target | L56: Fat | M56: Protein | N56: Moisture
F57: Butter | J57: %w/w
F58: AMF | J58: %w/w
F59: SMP | J59: %w/w
F60: BMP | J60: %w/w
F61: WMP | J61: %w/w
F63: Value Component Usage | L63: Fat | M63: Protein
F64: Butter | J64: kg/mt
F65: AMF | J65: kg/mt
F66: SMP | J66: kg/mt
F67: BMP | J67: kg/mt
F68: WMP | J68: kg/mt
F70: Product mix
F71: Annual average ratio of WMP MT to WMP + SMP | J71: % | N71: =SUMPRODUCT($T$33:$AE$33,T71:AE71) -> 0.7438123686 | T71: 0.7438123686 | U71: 0.7438123686 | V71: 0.7438123686 | W71: 0.7438123686 | X71: 0.7438123686 | Y71: 0.7438123686 | Z71: 0.7438123686 | AA71: 0.7438123686 | AB71: 0.7438123686 | AC71: 0.7438123686 | AD71: 0.7438123686 | AE71: 0.7438123686
F72: Annual average ratio of Butter MT to Butter + AMF | J72: % | N72: =SUMPRODUCT($T$33:$AE$33,T72:AE72) -> 0.6076769844 | T72: 0.6076769844 | U72: 0.6076769844 | V72: 0.6076769844 | W72: 0.6076769844 | X72: 0.6076769844 | Y72: 0.6076769844 | Z72: 0.6076769844 | AA72: 0.6076769844 | AB72: 0.6076769844 | AC72: 0.6076769844 | AD72: 0.6076769844 | AE72: 0.6076769844
F74: Fat : Protein Valued Component Ratio | N74: 0.43
F77: REVENUE
F79: STATUS / DATA SOURCE | J79: Prices and sales phasings entered as 3 month averages, consistent with F16 Milk Price Statement.
J80: Downgrade adjustments are normally calculated separately but have been included here in average prices.
J81: Lactose prices to model are for calculated prices of lactose in month of use, under the assumption lactose has been imported in prior months and stored for a period prior to usage.
E83: 1. Base Commodity Prices
F84: Full Year Commodity Prices - To Model
F85: Butter | J85: USD | N85: =SUM(T85:AO85)/COUNTIF(T85:AO85,"<>0") -> 2784.156026 | T85: 0 | U85: 0 | V85: 2467.439432 | W85: 2467.439432 | X85: 2467.439432 | Y85: 2769.233259 | Z85: 2769.233259 | AA85: 2769.233259 | AB85: 2999.65215 | AC85: 2999.65215 | AD85: 2999.65215 | AE85: 2831.579298 | AF85: 2831.579298 | AG85: 2831.579298 | AH85: 2852.875993 | AI85: 2852.875993 | AJ85: 2852.875993 | AK85: 0 | AL85: 0 | AM85: 0 | AN85: 0 | AO85: 0
F86: AMF | J86: USD | N86: =SUM(T86:AO86)/COUNTIF(T86:AO86,"<>0") -> 3236.743507 | T86: 0 | U86: 0 | V86: 2731.861091 | W86: 2731.861091 | X86: 2731.861091 | Y86: 3092.500095 | Z86: 3092.500095 | AA86: 3092.500095 | AB86: 3653.869009 | AC86: 3653.869009 | AD86: 3653.869009 | AE86: 3331.138997 | AF86: 3331.138997 | AG86: 3331.138997 | AH86: 3374.348344 | AI86: 3374.348344 | AJ86: 3374.348344 | AK86: 0 | AL86: 0 | AM86: 0 | AN86: 0 | AO86: 0
F87: SMP | J87: USD | N87: =SUM(T87:AO87)/COUNTIF(T87:AO87,"<>0") -> 1743.124003 | T87: 0 | U87: 0 | V87: 1479.84428 | W87: 1479.84428 | X87: 1479.84428 | Y87: 1789.082576 | Z87: 1789.082576 | AA87: 1789.082576 | AB87: 1950.146179 | AC87: 1950.146179 | AD87: 1950.146179 | AE87: 1764.841905 | AF87: 1764.841905 | AG87: 1764.841905 | AH87: 1731.705076 | AI87: 1731.705076 | AJ87: 1731.705076 | AK87: 0 | AL87: 0 | AM87: 0 | AN87: 0 | AO87: 0
F88: BMP | J88: USD | N88: =SUM(T88:AO88)/COUNTIF(T88:AO88,"<>0") -> 1699.89681 | T88: 0 | U88: 0 | V88: 0 | W88: 0 | X88: 0 | Y88: 1868.442233 | Z88: 1868.442233 | AA88: 1868.442233 | AB88: 1732.200674 | AC88: 1732.200674 | AD88: 1732.200674 | AE88: 1566.666565 | AF88: 1566.666565 | AG88: 1566.666565 | AH88: 1632.277766 | AI88: 1632.277766 | AJ88: 1632.277766 | AK88: 0 | AL88: 0 | AM88: 0 | AN88: 0 | AO88: 0
F89: WMP | J89: USD | N89: =SUM(T89:AO89)/COUNTIF(T89:AO89,"<>0") -> 2114.945672 | T89: 0 | U89: 0 | V89: 1956.613111 | W89: 1956.613111 | X89: 1956.613111 | Y89: 2093.383683 | Z89: 2093.383683 | AA89: 2093.383683 | AB89: 2238.593989 | AC89: 2238.593989 | AD89: 2238.593989 | AE89: 2065.484813 | AF89: 2065.484813 | AG89: 2065.484813 | AH89: 2220.652762 | AI89: 2220.652762 | AJ89: 2220.652762 | AK89: 0 | AL89: 0 | AM89: 0 | AN89: 0 | AO89: 0
F91: Lactose
F92: Fonterra Price | J92: USD | M92: 1
F93: Competitor Price | J93: USD | M93: 2 | N93: =SUMPRODUCT($T$93:$AE$93,Calculations!$T$216:$AE$216)/SUM(Calculations!$T$216:$AE$216) -> 547.5310779 | T93: 898.7283117 | U93: 828.0890249 | V93: 736.538033 | W93: 616.5485913 | X93: 595.5882213 | Y93: 568.2775435 | Z93: 549.8033251 | AA93: 482.7010205 | AB93: 461.077724 | AC93: 463.0369007 | AD93: 492.755351 | AE93: 503.2545014
F94: Adjustment for diffence in average FX | J94: USD | N94: -28.84875615
F95: Lactose | J95: USD | M95: =IF(N92<N93,1,2) -> 1 | N95: =CHOOSE($M$95,N$92,N$93) -> 0 | T95: =T93+$N$94 -> 869.8795556 | U95: 799.2402688 | V95: 707.6892769 | W95: 587.6998352 | X95: 566.7394652 | Y95: 539.4287874 | Z95: 520.9545689 | AA95: 453.8522643 | AB95: 432.2289679 | AC95: 434.1881445 | AD95: 463.9065949 | AE95: 474.4057453
E97: 2. Sales Phasing
F98: To Model: Selected Full Year Percentage Sales Phasings Adjusted to Align to YTD Percentage Phasings
F99: Butter | J99: % | N99: =SUM(T99:AO99) -> 1 | T99: 0 | U99: 0 | V99: 0 | W99: 0.02598304292 | X99: 0.02598304292 | Y99: 0.1205972559 | Z99: 0.1205972559 | AA99: 0.1205972559 | AB99: 0.07469822851 | AC99: 0.07469822851 | AD99: 0.07469822851 | AE99: 0.08324815231 | AF99: 0.08324815231 | AG99: 0.08324815231 | AH99: 0.03746766803 | AI99: 0.03746766803 | AJ99: 0.03746766803 | AK99: 0 | AL99: 0 | AM99: 0 | AN99: 0 | AO99: 0
F100: AMF | J100: % | N100: =SUM(T100:AO100) -> 1 | T100: 0 | U100: 0 | V100: 0 | W100: 0.04773764777 | X100: 0.04773764777 | Y100: 0.1432217184 | Z100: 0.1432217184 | AA100: 0.1432217184 | AB100: 0.05452621837 | AC100: 0.05452621837 | AD100: 0.05452621837 | AE100: 0.08221157239 | AF100: 0.08221157239 | AG100: 0.08221157239 | AH100: 0.02154872569 | AI100: 0.02154872569 | AJ100: 0.02154872569 | AK100: 0 | AL100: 0 | AM100: 0 | AN100: 0 | AO100: 0
F101: SMP | J101: % | N101: =SUM(T101:AO101) -> 1 | T101: 0 | U101: 0 | V101: 0 | W101: 0.02428689176 | X101: 0.02428689176 | Y101: 0.1463774069 | Z101: 0.1463774069 | AA101: 0.1463774069 | AB101: 0.07671721304 | AC101: 0.07671721304 | AD101: 0.07671721304 | AE101: 0.07679612404 | AF101: 0.07679612404 | AG101: 0.07679612404 | AH101: 0.01725132817 | AI101: 0.01725132817 | AJ101: 0.01725132817 | AK101: 0 | AL101: 0 | AM101: 0 | AN101: 0 | AO101: 0
F102: BMP | J102: % | N102: =SUM(T102:AO102) -> 1 | T102: 0 | U102: 0 | V102: 0 | W102: 0 | X102: 0 | Y102: 0.1268996057 | Z102: 0.1268996057 | AA102: 0.1268996057 | AB102: 0.06529829734 | AC102: 0.06529829734 | AD102: 0.06529829734 | AE102: 0.0954616897 | AF102: 0.0954616897 | AG102: 0.0954616897 | AH102: 0.04567374056 | AI102: 0.04567374056 | AJ102: 0.04567374056 | AK102: 0 | AL102: 0 | AM102: 0 | AN102: 0 | AO102: 0
F103: WMP | J103: % | N103: =SUM(T103:AO103) -> 1 | T103: 0 | U103: 0 | V103: 0 | W103: 0.05233844495 | X103: 0.05233844495 | Y103: 0.1275517976 | Z103: 0.1275517976 | AA103: 0.1275517976 | AB103: 0.07390857662 | AC103: 0.07390857662 | AD103: 0.07390857662 | AE103: 0.08012331818 | AF103: 0.08012331818 | AG103: 0.08012331818 | AH103: 0.01685734431 | AI103: 0.01685734431 | AJ103: 0.01685734431 | AK103: 0 | AL103: 0 | AM103: 0 | AN103: 0 | AO103: 0
E105: 3. Edible, Stockfood and Placement Spec Downgrade
L107: Butter | M107: AMF | N107: SMP | O107: BMP | P107: WMP
F108: Placement Specs Downgrade Adjustment | J108: % of Loss in Price x % of Production
F109: Edible Downgrade Downgrade Adjustment | J109: % of Loss in Price x % of Production
F110: Stockfood Downgrade Downgrade Adjustment | J110: % of Loss in Price x % of Production
E112: 4. Trader's Commission
F114: USD fixed costs | J114: USD 000s
F115: NZD fixed costs | J115: NZD 000s | N115: 83089.38468
F116: Annual production sold on GDT | J116: % | N116: 0.9
F117: Sales support cost across all volume | J117: USD / MT
F119: GDT fees schedule thresholds
F120: Base level threshold (upper limit) | J120: MT | N120: 0
F121: 2nd level threshold (upper limit) | J121: MT | N121: 50000
F122: 3rd level threshold (upper limit) | J122: MT | N122: 250000
F124: Base level threshold | J124: USD / MT | N124: 0
F125: 2nd level threshold | J125: USD / MT | N125: 30
F126: 3rd level threshold | J126: USD / MT | N126: 20
F127: Commission costs beyond 3rd level threshold | J127: USD / MT | N127: 5
F129: Fixed commission phasing | J129: % | N129: =SUM(V129:AG129) -> 1 | V129: 0.08333333333 | W129: 0.08333333333 | X129: 0.08333333333 | Y129: 0.08333333333 | Z129: 0.08333333333 | AA129: 0.08333333333 | AB129: 0.08333333333 | AC129: 0.08333333333 | AD129: 0.08333333333 | AE129: 0.08333333333 | AF129: 0.08333333333 | AG129: 0.08333333333
F132: COLLECTION
F134: STATUS / DATA SOURCE
F137: By Product Diversion (Transport Cost) | J137: NZD '000
F138: Farm Milk Collection | J138: NZD '000 | N138: 348664.4685
F139: Total | J139: NZD '000 | N139: =SUM(N137:N138) -> 348664.4685
F141: Phasing | J141: NZD '000 | N141: =SUM(Q141:AO141) -> 1 | T141: 0.04133948466 | U141: 0.04624914536 | V141: 0.06282986389 | W141: 0.1024957554 | X141: 0.1336531502 | Y141: 0.1259140978 | Z141: 0.1101401768 | AA141: 0.1014414357 | AB141: 0.0767290354 | AC141: 0.07488876682 | AD141: 0.06680260318 | AE141: 0.0575164849
F143: OPEX
F145: STATUS / DATA SOURCE | J145: NOTE: (a) weighted average unit costs across all RCPs, given F16 actual product mix (b) average unit costs grossed up for weighted average rework volumes.
F149: Variable Costs
L150: Butter | M150: AMF | N150: SMP | O150: BMP | P150: WMP
F151: Production | J151: MT | L151: =Calculations!$N$185 -> 260739.4021 | M151: =Calculations!$N$186 -> 166227.4066 | N151: =Calculations!$N$187 -> 639496.8714 | O151: =Calculations!$N$188 -> 64937.41488 | P151: =Calculations!$N$189 -> 1861570.302
F152: Rework | J152: MT
F153: Total Manufacuer | J153: MT
F154: Average Revenue per MT | J154: NZD 000s | L154: =Calculations!N353 -> 3996.227224 | M154: =Calculations!N354 -> 4556.535974 | N154: =Calculations!N355 -> 2545.265961 | O154: =Calculations!N356 -> 2432.859849 | P154: =Calculations!N357 -> 2980.756345
F155: Weights | J155: % | L155: =L151/SUM($L$151:$P$151) -> 0.08711723817 | M155: =M151/SUM($L$151:$P$151) -> 0.05553925666 | N155: =N151/SUM($L$151:$P$151) -> 0.2136662154 | O155: =O151/SUM($L$151:$P$151) -> 0.02169663731 | P155: =P151/SUM($L$151:$P$151) -> 0.6219806524
L156: Butter | M156: AMF | N156: SMP | O156: BMP | P156: WMP
F157: Rework - downgrade adjustment | J157: % of Production
F158: Packaging costs | J158: NZD / MT | L158: 162.7674603 | M158: 162.7674603 | N158: 162.7674603 | O158: 162.7674603 | P158: 162.7674603
F159: Energy (Exclusive of ETS Costs) | J159: NZD / MT
F160: Water, cleaning / CIP, consumables, effluent, lab, carbon | J160: NZD / MT
F161: Cleaning & CIP | J161: NZD / MT
F162: Consumables | J162: NZD / MT
F163: Effluent | J163: NZD / MT
F164: Laboratory | J164: NZD / MT
F165: Carbon Credit Requirement | J165: MT CO2e / MT
F167: Fixed Manufacturing Costs
F168: Wages & ERE | J168: NZD 000s
F169: Repairs & Maintenance | J169: NZD 000s
F170: Energy | J170: NZD 000s
F171: Water (Fixed) | J171: NZD 000s
F172: Cleaning & CIP (Fixed) | J172: NZD 000s
F173: Consumables (Fixed) | J173: NZD 000s
F174: Effluent (Fixed) | J174: NZD 000s
F175: Laboratory (Fixed) | J175: NZD 000s
F176: Total | J176: NZD 000s | N176: =SUM(N168:N170) -> 0
F178: Site Overheads
F179: Staff Costs | J179: NZD 000s
F180: Other | J180: NZD 000s | N180: 388994.6468
F181: Total | J181: NZD 000s | N181: =N180 -> 388994.6468
F183: Fixed Opex - Phasing | J183: % | N183: =SUM(T183:AE183) -> 1 | T183: 0.0953967276 | U183: 0.09545026095 | V183: 0.08759421194 | W183: 0.08041636686 | X183: 0.08181526152 | Y183: 0.07762094773 | Z183: 0.07879251644 | AA183: 0.07472657194 | AB183: 0.07246617621 | AC183: 0.07832896852 | AD183: 0.08200343218 | AE183: 0.0953885581
F185: Lactose CIF costs per MT | J185: USD | T185: 87.6118848 | U185: 98.52637019 | V185: 100.842547 | W185: 101.6848475 | X185: 86.9777232 | Y185: 91.98858358 | Z185: 90.18367461 | AA185: 94.73817633 | AB185: 88.32385049 | AC185: 91.72056256 | AD185: 90.47620484 | AE185: 93.07007245
F187: NZUSSPOT Index | J187: NZD / MT CO2e | T187: 6.390625 | U187: 6.952380952 | V187: 6.9375 | W187: 6.802631579 | X187: 6.936666667 | Y187: 7.608333333 | Z187: 8.845833333 | AA187: 9.68125 | AB187: 9.439473684 | AC187: 10.6975 | AD187: 12.8775 | AE187: 14.5525
F189: SUPPLY CHAIN
F191: STATUS / DATA SOURCE
F194: Inland Freight Costs per MT
F195: Butter | J195: NZD / MT
F196: Other (Excl Lactose) | J196: NZD / MT
F197: Lactose | J197: NZD / MT
F199: Variable Supply Chain Costs
F200: Kotahi Fees | J200: USD / MT
F201: Complaints | J201: NZD / MT | N201: 77.09595895
F202: Supply chain admin etc (excl depn & amortisation) | J202: NZD / MT
F203: Pallets & Recycling | J203: NZD / MT
F204: Port Costs | J204: NZD / MT
F205: Dry Storage Costs | J205: NZD / MT
F206: Cool Storage Costs (Butter) per month | J206: NZD / MT
F207: Cool Storage Costs (Inbound) | J207: NZD / MT
F208: Cool Storage Costs (Outbound) | J208: NZD / MT
F209: Cool Storage Write-off Costs | J209: NZD / MT
F211: Fixed Supply Chain Costs
F212: Group Supply Chain Overheads | J212: NZD '000
F214: Supply Chain - Phasing | J214: % | N214: =SUM(T214:AO214) -> 1 | T214: 0.07695353482 | U214: 0.06080168379 | V214: 0.07477710625 | W214: 0.08379381469 | X214: 0.08673651303 | Y214: 0.09083598335 | Z214: 0.08574060333 | AA214: 0.09658340316 | AB214: 0.0834235151 | AC214: 0.09403069183 | AD214: 0.08158029806 | AE214: 0.08474285258
F216: ADMINISTRATION
F218: STATUS / DATA SOURCE
F221: NZ Manufacturing Overhead | J221: NZD '000
F222: Corporate Overhead | J222: NZD '000
F223: Fms Overheads | J223: NZD '000
F224: Shareholder Relations | J224: NZD '000
F225: Admin costs to model | J225: NZD '000 | N225: 251650
F227: Admin - Phasing | J227: % | N227: =SUM(T227:AO227) -> 1 | T227: 0.0693707596 | U227: 0.1615095108 | V227: 0.07561102156 | W227: 0.07714733952 | X227: 0.08590756115 | Y227: 0.07303073976 | Z227: 0.08179312858 | AA227: 0.07253666436 | AB227: 0.0669679519 | AC227: 0.07871872691 | AD227: 0.07675565193 | AE227: 0.08065094392
F229: FIXED ASSETS
F231: STATUS / DATA SOURCE | J231: Fonterra's actual accounting and tax depreciation for collection assets are used in the calculation. Bundled here into (a) other depreciation and (b) as an adjustment to tilted annuity depreciation : tax depreciation ratio.
F235: Capital Charge | J235: NZD '000 | N235: 407477.0041
F236: Net Depreciation | J236: NZD '000 | N236: 266166
F237: Accounting Depreciation - collection assets | J237: NZD '000
F238: Tax Depreciation - collection assets | J238: NZD '000
F240: INCOME TAX
F242: STATUS / DATA SOURCE | J242: Tax depn as % accounting depn ratio actually set at 130% for F16 for assets other than collection assets. Adjusted here to generate correct average ratio when collection assets are included.
F246: Company Tax Rate | J246: % | N246: 0.28
F247: Tax depn as % of accounting depn | J247: % | N247: 1.1768
F250: WORKING CAPITAL
F252: STATUS / DATA SOURCE | J252: Debtor days reset to weighted average across 5 RCPs. In practice debtor days are calculated by reference to sales included in Milk Price calcuatlion for each RCP.
J253: Creditor days 'other' normally set separately to lactose (which is paid for prior to month of utilisation, when cost is recognised in model) and other. Have been (a) set equal here and (b) used as balancing adjustment to align simplified capital charge to actual.
F255: Creditor days - Other | J255: Days | N255: -6.230065029
F256: Creditor days - Lactose | J256: Days | N256: =N255 -> -6.230065029
F257: Debtor Days
F258: Butter | J258: Days | N258: 28.07001919
F259: AMF | J259: Days | N259: 28.07001919
F260: SMP | J260: Days | N260: 28.07001919
F261: BMP | J261: Days | N261: 28.07001919
F262: WMP | J262: Days | N262: 28.07001919
F264: Supplier Payables - Advance Rate Schedule
F265: Advance rate | N265: 3.9 | U265: 3.66 | V265: 3.66 | W265: 2.91 | X265: 3.23 | Y265: 3.23 | Z265: 3.24 | AA265: 3.22 | AB265: 3.29 | AC265: 3.33 | AD265: 3.36 | AE265: 3.39 | AF265: 3.4 | AG265: 3.45 | AH265: 3.65 | AI265: 3.8 | AJ265: =MilkPrice -> 3.895083318
F266: YTD advance rate / YTG % MP | J266: % | U266: =U265 -> 3.66 | V266: =V265 -> 3.66 | W266: 2.91 | X266: 3.23 | Y266: 3.23 | Z266: 3.24 | AA266: 3.22 | AB266: 3.29 | AC266: 3.33 | AD266: 3.36 | AE266: 3.39 | AF266: 3.4 | AG266: 3.45 | AH266: 3.65 | AI266: 3.8 | AJ266: 3.895083318

Sheet Calculations
F5: Overall error check | J5: =IF(COUNTA(B:B)=COUNTIF(B:B,"Okay"),"Okay","Error") -> Okay | N5: Annual | T5: Monthly
J9: Units | K9: Cross Reference | N9: =Global!O7 -> 2016-05-31 | R9: =Global!R7 -> 2015-04-30 | S9: =Global!S7 -> 2015-05-31 | T9: =Global!T7 -> 2015-06-30 | U9: =Global!U7 -> 2015-07-31 | V9: =Global!V7 -> 2015-08-31 | W9: =Global!W7 -> 2015-09-30 | X9: =Global!X7 -> 2015-10-31 | Y9: =Global!Y7 -> 2015-11-30 | Z9: =Global!Z7 -> 2015-12-31 | AA9: =Global!AA7 -> 2016-01-31 | AB9: =Global!AB7 -> 2016-02-29 | AC9: =Global!AC7 -> 2016-03-31 | AD9: =Global!AD7 -> 2016-04-30 | AE9: =Global!AE7 -> 2016-05-31 | AF9: =Global!AF7 -> 2016-06-30 | AG9: =Global!AG7 -> 2016-07-31 | AH9: =Global!AH7 -> 2016-08-31 | AI9: =Global!AI7 -> 2016-09-30 | AJ9: =Global!AJ7 -> 2016-10-31 | AK9: =Global!AK7 -> 2016-11-30 | AL9: =Global!AL7 -> 2016-12-31 | AM9: =Global!AM7 -> 2017-01-31 | AN9: =Global!AN7 -> 2017-02-28 | AO9: =Global!AO7 -> 2017-03-31 | AP9: =Global!AP7 -> 2017-04-30 | AQ9: =Global!AQ7 -> 2017-05-31
D10: Calendar Year | T10: =YEAR(T9) -> 2015 | U10: =YEAR(U9) -> 2015 | V10: 2015 | W10: 2015 | X10: 2015 | Y10: 2015 | Z10: 2015 | AA10: 2016 | AB10: 2016 | AC10: 2016 | AD10: 2016 | AE10: 2016 | AF10: 2016 | AG10: 2016 | AH10: 2016 | AI10: 2016 | AJ10: 2016 | AK10: 2016 | AL10: 2016 | AM10: =YEAR(AM9) -> 2017 | AN10: =YEAR(AN9) -> 2017 | AO10: =YEAR(AO9) -> 2017 | AP10: =YEAR(AP9) -> 2017
D11: Month Number | T11: 1 | U11: =T11+1 -> 2 | V11: =U11+1 -> 3 | W11: =V11+1 -> 4 | X11: 5 | Y11: 6 | Z11: 7 | AA11: 8 | AB11: 9 | AC11: 10 | AD11: 11 | AE11: 12 | AF11: 13 | AG11: 14 | AH11: 15 | AI11: 16 | AJ11: 17 | AK11: 18 | AL11: 19 | AM11: =AL11+1 -> 20 | AN11: =AM11+1 -> 21 | AO11: =AN11+1 -> 22 | AP11: =AO11+1 -> 23
D12: Days in Period | R12: =Global!R10 -> 30 | S12: =Global!S10 -> 31 | T12: =Global!T10 -> 30 | U12: =U9-T9 -> 31 | V12: =V9-U9 -> 31 | W12: 30 | X12: 31 | Y12: 30 | Z12: 31 | AA12: 31 | AB12: 29 | AC12: 31 | AD12: 30 | AE12: 31 | AF12: 30 | AG12: 31 | AH12: 31 | AI12: 30 | AJ12: 31 | AK12: 30 | AL12: 31 | AM12: 31 | AN12: 28 | AO12: 31 | AP12: 30
D13: Year to Go flag | N13: 1 | P13: =Global!P11 -> 16 | T13: =Global!T11 -> 1 | U13: =Global!U11 -> 1 | V13: =Global!V11 -> 1 | W13: =Global!W11 -> 1 | X13: =Global!X11 -> 1 | Y13: =Global!Y11 -> 1 | Z13: =Global!Z11 -> 1 | AA13: =Global!AA11 -> 1 | AB13: =Global!AB11 -> 1 | AC13: =Global!AC11 -> 1 | AD13: =Global!AD11 -> 1 | AE13: =Global!AE11 -> 1 | AF13: =Global!AF11 -> 1 | AG13: =Global!AG11 -> 1 | AH13: =Global!AH11 -> 1 | AI13: =Global!AI11 -> 1 | AJ13: =Global!AJ11 -> 0 | AK13: =Global!AK11 -> 0 | AL13: =Global!AL11 -> 0 | AM13: =Global!AM11 -> 0 | AN13: =Global!AN11 -> 0 | AO13: =Global!AO11 -> 0
D14: PRODUCTION
D16: COMMENT | F16: See comments below. Production volumes to model have been hardcoded to align to actual volumes. Detail of loss assumptions & specification offsets, which is confidential to Fonterra, is required to
F17: flow milk supply through yield logic. Logic has however been retained in the model, and we have disclosed overall valued component usages by RCP (in cells O59:P63).
D20: DATA INPUT
F21: Milk Collected | J21: ='Data Input'!J32 -> 000 kgMS | N21: ='Data Input'!N32 -> 1566428.263 | T21: ='Data Input'!T32 -> 10043.1786 | U21: ='Data Input'!U32 -> 16578.9363 | V21: ='Data Input'!V32 -> 100769.3442 | W21: ='Data Input'!W32 -> 178143.2992 | X21: ='Data Input'!X32 -> 222558.3915 | Y21: ='Data Input'!Y32 -> 208735.5899 | Z21: ='Data Input'!Z32 -> 195565.6511 | AA21: ='Data Input'!AA32 -> 175038.6041 | AB21: ='Data Input'!AB32 -> 144117.5452 | AC21: ='Data Input'!AC32 -> 136057.7862 | AD21: ='Data Input'!AD32 -> 111779.2777 | AE21: ='Data Input'!AE32 -> 67040.6587
F22: Milk Supply - Phasing | J22: ='Data Input'!J33 -> % | N22: =SUM(T22:AE22) -> 1 | T22: ='Data Input'!T33 -> 0.00641151519 | U22: ='Data Input'!U33 -> 0.01058391035 | V22: ='Data Input'!V33 -> 0.06433064737 | W22: ='Data Input'!W33 -> 0.1137257948 | X22: ='Data Input'!X33 -> 0.1420801685 | Y22: ='Data Input'!Y33 -> 0.1332557608 | Z22: ='Data Input'!Z33 -> 0.1248481375 | AA22: ='Data Input'!AA33 -> 0.1117437729 | AB22: ='Data Input'!AB33 -> 0.09200392296 | AC22: ='Data Input'!AC33 -> 0.08685861296 | AD22: ='Data Input'!AD33 -> 0.07135933407 | AE22: ='Data Input'!AE33 -> 0.04279842256
F24: ='Data Input'!F40 -> National average composition
F25: ='Data Input'!F41 -> Fat | J25: ='Data Input'!J41 -> % w/w | T25: ='Data Input'!T41 -> 0.04777514766 | U25: ='Data Input'!U41 -> 0.04777514766 | V25: ='Data Input'!V41 -> 0.04777514766 | W25: ='Data Input'!W41 -> 0.04627877618 | X25: ='Data Input'!X41 -> 0.04627877618 | Y25: ='Data Input'!Y41 -> 0.04627877618 | Z25: ='Data Input'!Z41 -> 0.04839323902 | AA25: ='Data Input'!AA41 -> 0.04839323902 | AB25: ='Data Input'!AB41 -> 0.04839323902 | AC25: ='Data Input'!AC41 -> 0.05533646555 | AD25: ='Data Input'!AD41 -> 0.05533646555 | AE25: ='Data Input'!AE41 -> 0.05533646555
F26: ='Data Input'!F42 -> Protein | J26: ='Data Input'!J42 -> % w/w | T26: ='Data Input'!T42 -> 0.03746184828 | U26: ='Data Input'!U42 -> 0.03746184828 | V26: ='Data Input'!V42 -> 0.03746184828 | W26: ='Data Input'!W42 -> 0.03626683653 | X26: ='Data Input'!X42 -> 0.03626683653 | Y26: ='Data Input'!Y42 -> 0.03626683653 | Z26: ='Data Input'!Z42 -> 0.0371547929 | AA26: ='Data Input'!AA42 -> 0.0371547929 | AB26: ='Data Input'!AB42 -> 0.0371547929 | AC26: ='Data Input'!AC42 -> 0.04159138422 | AD26: ='Data Input'!AD42 -> 0.04159138422 | AE26: ='Data Input'!AE42 -> 0.04159138422
F27: ='Data Input'!F43 -> Lactose + Minerals | J27: ='Data Input'!J43 -> % w/w | T27: ='Data Input'!T43 -> 0.05425520336 | U27: ='Data Input'!U43 -> 0.05425520336 | V27: ='Data Input'!V43 -> 0.05425520336 | W27: ='Data Input'!W43 -> 0.05469117737 | X27: ='Data Input'!X43 -> 0.05469117737 | Y27: ='Data Input'!Y43 -> 0.05469117737 | Z27: ='Data Input'!Z43 -> 0.05361913793 | AA27: ='Data Input'!AA43 -> 0.05361913793 | AB27: ='Data Input'!AB43 -> 0.05361913793 | AC27: ='Data Input'!AC43 -> 0.05227435892 | AD27: ='Data Input'!AD43 -> 0.05227435892 | AE27: ='Data Input'!AE43 -> 0.05227435892
F29: ='Data Input'!F70 -> Product mix
F30: ='Data Input'!F71 -> Annual average ratio of WMP MT to WMP + SMP | J30: ='Data Input'!J71 -> % | T30: ='Data Input'!T71 -> 0.7438123686 | U30: ='Data Input'!U71 -> 0.7438123686 | V30: ='Data Input'!V71 -> 0.7438123686 | W30: ='Data Input'!W71 -> 0.7438123686 | X30: ='Data Input'!X71 -> 0.7438123686 | Y30: ='Data Input'!Y71 -> 0.7438123686 | Z30: ='Data Input'!Z71 -> 0.7438123686 | AA30: ='Data Input'!AA71 -> 0.7438123686 | AB30: ='Data Input'!AB71 -> 0.7438123686 | AC30: ='Data Input'!AC71 -> 0.7438123686 | AD30: ='Data Input'!AD71 -> 0.7438123686 | AE30: ='Data Input'!AE71 -> 0.7438123686
F31: ='Data Input'!F72 -> Annual average ratio of Butter MT to Butter + AMF | J31: ='Data Input'!J72 -> % | T31: ='Data Input'!T72 -> 0.6076769844 | U31: ='Data Input'!U72 -> 0.6076769844 | V31: ='Data Input'!V72 -> 0.6076769844 | W31: ='Data Input'!W72 -> 0.6076769844 | X31: ='Data Input'!X72 -> 0.6076769844 | Y31: ='Data Input'!Y72 -> 0.6076769844 | Z31: ='Data Input'!Z72 -> 0.6076769844 | AA31: ='Data Input'!AA72 -> 0.6076769844 | AB31: ='Data Input'!AB72 -> 0.6076769844 | AC31: ='Data Input'!AC72 -> 0.6076769844 | AD31: ='Data Input'!AD72 -> 0.6076769844 | AE31: ='Data Input'!AE72 -> 0.6076769844
F33: ='Data Input'!F45 -> Milk Composition Input Parameters
F34: ='Data Input'!F46 -> Cream Fat Content | J34: ='Data Input'!J46 -> % | N34: ='Data Input'!N46 -> 0.42
F35: ='Data Input'!F47 -> Skimmilk Fat Content | J35: ='Data Input'!J47 -> % | N35: ='Data Input'!N47 -> 0.0008
F36: ='Data Input'!F48 -> Wholemilk Density | J36: ='Data Input'!J48 -> % | N36: ='Data Input'!N48 -> 1.032
F38: ='Data Input'!F50 -> Lactose Standardising Inputs
F39: ='Data Input'!F51 -> Lactose losses - WMP | J39: ='Data Input'!J51 -> % | N39: ='Data Input'!N51 -> 0
F40: ='Data Input'!F52 -> Lactose losses - SMP | J40: ='Data Input'!J52 -> % | N40: ='Data Input'!N52 -> 0
F41: ='Data Input'!F53 -> Lactose losses - BMP | J41: ='Data Input'!J53 -> % | N41: ='Data Input'!N53 -> 0
F42: ='Data Input'!F54 -> Lactose content of lactose powder | J42: ='Data Input'!J54 -> % | N42: ='Data Input'!N54 -> 0.95
F44: ='Data Input'!F56 -> Composition Target | L44: ='Data Input'!L56 -> Fat | M44: ='Data Input'!M56 -> Protein | N44: ='Data Input'!N56 -> Moisture
F45: ='Data Input'!F57 -> Butter | J45: ='Data Input'!J57 -> %w/w | L45: ='Data Input'!L57 -> 0 | M45: ='Data Input'!M57 -> 0 | N45: ='Data Input'!N57 -> 0
F46: ='Data Input'!F58 -> AMF | J46: ='Data Input'!J58 -> %w/w | L46: ='Data Input'!L58 -> 0 | M46: ='Data Input'!M58 -> 0 | N46: ='Data Input'!N58 -> 0
F47: ='Data Input'!F59 -> SMP | J47: ='Data Input'!J59 -> %w/w | L47: ='Data Input'!L59 -> 0 | M47: ='Data Input'!M59 -> 0 | N47: ='Data Input'!N59 -> 0
F48: ='Data Input'!F60 -> BMP | J48: ='Data Input'!J60 -> %w/w | L48: ='Data Input'!L60 -> 0 | M48: ='Data Input'!M60 -> 0 | N48: ='Data Input'!N60 -> 0
F49: ='Data Input'!F61 -> WMP | J49: ='Data Input'!J61 -> %w/w | L49: ='Data Input'!L61 -> 0 | M49: ='Data Input'!M61 -> 0 | N49: ='Data Input'!N61 -> 0
F51: ='Data Input'!F63 -> Value Component Usage | L51: ='Data Input'!L63 -> Fat | M51: ='Data Input'!M63 -> Protein
F52: ='Data Input'!F64 -> Butter | J52: ='Data Input'!J64 -> kg/mt | L52: ='Data Input'!L64 -> 0 | M52: ='Data Input'!M64 -> 0
F53: ='Data Input'!F65 -> AMF | J53: ='Data Input'!J65 -> kg/mt | L53: ='Data Input'!L65 -> 0 | M53: ='Data Input'!M65 -> 0
F54: ='Data Input'!F66 -> SMP | J54: ='Data Input'!J66 -> kg/mt | L54: ='Data Input'!L66 -> 0 | M54: ='Data Input'!M66 -> 0
F55: ='Data Input'!F67 -> BMP | J55: ='Data Input'!J67 -> kg/mt | L55: ='Data Input'!L67 -> 0 | M55: ='Data Input'!M67 -> 0
F56: ='Data Input'!F68 -> WMP | J56: ='Data Input'!J68 -> kg/mt | L56: ='Data Input'!L68 -> 0 | M56: ='Data Input'!M68 -> 0
O57: Hardcoded for use in inventory calculations
D58: CALCULATIONS | F58: Valued Component Usage | L58: Fat | M58: Protein | O58: Fat | P58: Protein
D59: Logic retained, but key input cells not populated. | F59: Butter | J59: % | L59: =OFFSET($L$51,MATCH($F59,$F$52:$F$56,0),)/1000 -> 0 | M59: =OFFSET($M$51,MATCH($F59,$F$52:$F$56,0),)/1000 -> 0 | O59: 0.83166 | P59: 0.00535
F60: AMF | J60: % | L60: =OFFSET($L$51,MATCH($F60,$F$52:$F$56,0),)/1000 -> 0 | M60: =OFFSET($M$51,MATCH($F60,$F$52:$F$56,0),)/1000 -> 0 | O60: 1.00196 | P60: 0.0008
F61: SMP | J61: % | L61: =OFFSET($L$51,MATCH($F61,$F$52:$F$56,0),)/1000 -> 0 | M61: =OFFSET($M$51,MATCH($F61,$F$52:$F$56,0),)/1000 -> 0 | O61: 0.009722788264 | P61: 0.3286935774
F62: BMP | J62: % | L62: =OFFSET($L$51,MATCH($F62,$F$52:$F$56,0),)/1000 -> 0 | M62: =OFFSET($M$51,MATCH($F62,$F$52:$F$56,0),)/1000 -> 0 | O62: 0.08052 | P62: 0.30437
F63: WMP | J63: % | L63: =OFFSET($L$51,MATCH($F63,$F$52:$F$56,0),)/1000 -> 0 | M63: =OFFSET($M$51,MATCH($F63,$F$52:$F$56,0),)/1000 -> 0 | O63: 0.2627688894 | P63: 0.2422298268
F65: Lactose Requirements per MT
F66: SMP | J66: % | N66: =SUMPRODUCT(T66:AE66,T187:AE187)/N187 -> 1.052631579 | T66: =T$90/1000 -> 1.052631579 | U66: =U$90/1000 -> 1.052631579 | V66: 1.052631579 | W66: 1.052631579 | X66: 1.052631579 | Y66: 1.052631579 | Z66: 1.052631579 | AA66: 1.052631579 | AB66: 1.052631579 | AC66: 1.052631579 | AD66: 1.052631579 | AE66: 1.052631579
F67: BMP | J67: % | N67: =SUMPRODUCT(T67:AE67,T188:AE188)/N188 -> 1.052631579 | T67: =T$92/1000 -> 1.052631579 | U67: =U$92/1000 -> 1.052631579 | V67: 1.052631579 | W67: 1.052631579 | X67: 1.052631579 | Y67: 1.052631579 | Z67: 1.052631579 | AA67: 1.052631579 | AB67: 1.052631579 | AC67: 1.052631579 | AD67: 1.052631579 | AE67: 1.052631579
F68: WMP | J68: % | N68: =SUMPRODUCT(T68:AE68,T189:AE189)/N189 -> 1.052631579 | T68: =T$108/1000 -> 1.052631579 | U68: =U$108/1000 -> 1.052631579 | V68: 1.052631579 | W68: 1.052631579 | X68: 1.052631579 | Y68: 1.052631579 | Z68: 1.052631579 | AA68: 1.052631579 | AB68: 1.052631579 | AC68: 1.052631579 | AD68: 1.052631579 | AE68: 1.052631579
F70: Wholemilk Composition Parameters
F71: Fat | J71: kg Fat / m3 wholemilk | T71: =$N$36*T25*1000 -> 49.30395239 | U71: 49.30395239 | V71: 49.30395239 | W71: 47.75969702 | X71: 47.75969702 | Y71: 47.75969702 | Z71: 49.94182267 | AA71: 49.94182267 | AB71: 49.94182267 | AC71: 57.10723245 | AD71: 57.10723245 | AE71: 57.10723245
F72: Protein | J72: kg Protein / m3 wholemilk | T72: =$N$36*T26*1000 -> 38.66062742 | U72: 38.66062742 | V72: 38.66062742 | W72: 37.4273753 | X72: 37.4273753 | Y72: 37.4273753 | Z72: 38.34374628 | AA72: 38.34374628 | AB72: 38.34374628 | AC72: 42.92230852 | AD72: 42.92230852 | AE72: 42.92230852
F73: Raw Milk Protein : SNF Ratio | J73: % | T73: =T26/SUM(T26:T27) -> 0.4084502021 | U73: 0.4084502021 | V73: 0.4084502021 | W73: 0.3987206292 | X73: 0.3987206292 | Y73: 0.3987206292 | Z73: 0.4093112699 | AA73: 0.4093112699 | AB73: 0.4093112699 | AC73: 0.4430943902 | AD73: 0.4430943902 | AE73: 0.4430943902
F74: Cream Protein | J74: % | T74: =(1-$N$34)/(1-T25)*T26 -> 0.02281800559 | U74: 0.02281800559 | V74: 0.02281800559 | W74: 0.02205546512 | X74: 0.02205546512 | Y74: 0.02205546512 | Z74: 0.02264567757 | AA74: 0.02264567757 | AB74: 0.02264567757 | AC74: 0.02553607922 | AD74: 0.02553607922 | AE74: 0.02553607922
F76: SMP
F77: Excess Cream
F78: kg cream | J78: kg /m3 wholemilk | T78: =(T$72*$L$54-T$71*$M$54)/(T$74*$L$54-$N$34*$M$54) -> 
F79: Fat | J79: kg /m3 wholemilk | T79: =T78*$N$34 ->  | U79: =U78*$N$34 -> 
F80: Protein | J80: kg /m3 wholemilk | T80: =T78*T74 -> 
F82: SMP | J82: kg /m3 wholemilk | T82: =(T71-T78*$N$34)/$L$54*1000 -> 
F83: Butter | J83: kg /m3 wholemilk | T83: =(T79*$M$55-T80*$L$55)*1000/($L$52*$M$55-$M$52*$L$55) -> 
F84: BMP | J84: kg /m3 wholemilk | T84: =(T80-T83*$M$52/1000)/($M$55/1000) -> 
F85: AMF | J85: kg /m3 wholemilk | T85: =(T79*$M$55-T80*$L$55)*1000/($L$53*$M$55-$M$53*$L$55) -> 
F86: BMP | J86: kg /m3 wholemilk | T86: =(T80-T85*$M$53/1000)/($M$55/1000) -> 
F88: Lactose Standardising
F89: Primary product (excl Losses) | J89: kg/mt | T89: =(1-$L$47-$N$47-$M$47/T73)*1000 -> 1000 | U89: =(1-$L$47-$N$47-$M$47/U73)*1000 -> 1000 | V89: 1000 | W89: 1000 | X89: 1000 | Y89: 1000 | Z89: 1000 | AA89: 1000 | AB89: 1000 | AC89: 1000 | AD89: 1000 | AE89: 1000
F90: Primary product (incl Losses) | J90: kg/mt | T90: =T89/(1-$N$40)/$N$42 -> 1052.631579 | U90: =U89/(1-$N$40)/$N$42 -> 1052.631579 | V90: 1052.631579 | W90: 1052.631579 | X90: 1052.631579 | Y90: 1052.631579 | Z90: 1052.631579 | AA90: 1052.631579 | AB90: 1052.631579 | AC90: 1052.631579 | AD90: 1052.631579 | AE90: 1052.631579
F91: BMP (excl Losses) | J91: kg/mt | T91: =(1-$L$48-$N$48-$M$48/T73)*1000 -> 1000 | U91: 1000 | V91: 1000 | W91: 1000 | X91: 1000 | Y91: 1000 | Z91: 1000 | AA91: 1000 | AB91: 1000 | AC91: 1000 | AD91: 1000 | AE91: 1000
F92: BMP (incl Losses and Moisture) | J92: kg/mt | T92: =T91/(1-$N$41)/$N$42 -> 1052.631579 | U92: =U91/(1-$N$41)/$N$42 -> 1052.631579 | V92: 1052.631579 | W92: 1052.631579 | X92: 1052.631579 | Y92: 1052.631579 | Z92: 1052.631579 | AA92: 1052.631579 | AB92: 1052.631579 | AC92: 1052.631579 | AD92: 1052.631579 | AE92: 1052.631579
F94: WMP
F95: Excess Cream
F96: kg cream | J96: kg /m3 wholemilk | T96: =(T$72*$L$56-T$71*$M$56)/(T$74*$L$56-$N$34*$M$56) -> 
F97: Fat | J97: kg /m3 wholemilk | T97: =T96*$N$34 ->  | U97: =U96*$N$34 -> 
F98: Protein | J98: kg /m3 wholemilk | T98: =T96*T74 -> 
F100: WMP | J100: kg /m3 wholemilk | T100: =(T71-T96*$N$34)/$L$56*1000 -> 
F101: Butter | J101: kg /m3 wholemilk | T101: =(T97*$M$55-T98*$L$55)*1000/($L$52*$M$55-$M$52*$L$55) -> 
F102: BMP | J102: kg /m3 wholemilk | T102: =(T98-T101*$M$52/1000)/($M$55/1000) -> 
F103: AMF | J103: kg /m3 wholemilk | T103: =(T97*$M$55-T98*$L$55)*1000/($L$53*$M$55-$M$53*$L$55) -> 
F104: BMP | J104: kg /m3 wholemilk | T104: =(T98-T103*$M$53/1000)/($M$55/1000) -> 
F106: Lactose Standardising
F107: Primary product (excl Losses) | J107: kg/mt | T107: =(1-$L$49-$N$49-$M$49/T73)*1000 -> 1000 | U107: =(1-$L$49-$N$49-$M$49/U73)*1000 -> 1000 | V107: 1000 | W107: 1000 | X107: 1000 | Y107: 1000 | Z107: 1000 | AA107: 1000 | AB107: 1000 | AC107: 1000 | AD107: 1000 | AE107: 1000
F108: Primary product (incl Losses) | J108: kg/mt | T108: =T107/(1-$N$39)/$N$42 -> 1052.631579 | U108: =U107/(1-$N$39)/$N$42 -> 1052.631579 | V108: 1052.631579 | W108: 1052.631579 | X108: 1052.631579 | Y108: 1052.631579 | Z108: 1052.631579 | AA108: 1052.631579 | AB108: 1052.631579 | AC108: 1052.631579 | AD108: 1052.631579 | AE108: 1052.631579
F109: BMP (excl Losses) | J109: kg/mt | T109: =(1-$L$48-$N$48-$M$48/T73)*1000 -> 1000 | U109: 1000 | V109: 1000 | W109: 1000 | X109: 1000 | Y109: 1000 | Z109: 1000 | AA109: 1000 | AB109: 1000 | AC109: 1000 | AD109: 1000 | AE109: 1000
F110: BMP (incl Losses and Moisture) | J110: kg/mt | T110: =T109/(1-$N$41)/$N$42 -> 1052.631579 | U110: 1052.631579 | V110: 1052.631579 | W110: 1052.631579 | X110: 1052.631579 | Y110: 1052.631579 | Z110: 1052.631579 | AA110: 1052.631579 | AB110: 1052.631579 | AC110: 1052.631579 | AD110: 1052.631579 | AE110: 1052.631579
F112: Monthly National Average Yields
F113: SMP | J113: % | N113: =SUMPRODUCT(T113:AE113,$T$21:$AE$21)/$N$21 ->  | T113: =T82/SUM(T$71:T$72) -> 
F114: SMP Butter | J114: % | N114: =SUMPRODUCT(T114:AE114,$T$21:$AE$21)/$N$21 ->  | T114: =T83/SUM(T$71:T$72) -> 
F115: SMP Butter BMP | J115: % | T115: =T84/SUM(T$71:T$72) -> 
F116: SMP AMF | J116: % | T116: =T85/SUM(T$71:T$72) -> 
F117: SMP AMF BMP | J117: % | T117: =T86/SUM(T$71:T$72) -> 
F119: WMP | J119: % | T119: =T100/SUM(T$71:T$72) -> 
F120: WMP Butter | J120: % | T120: =T101/SUM(T$71:T$72) -> 
F121: WMP Butter BMP | J121: % | T121: =T102/SUM(T$71:T$72) -> 
F122: WMP AMF | J122: % | T122: =T103/SUM(T$71:T$72) -> 
F123: WMP AMF BMP | J123: % | T123: =T104/SUM(T$71:T$72) -> 
F125: Calculated Mix to Model
F126: % of milksolids allocated to WMP | J126: % | N126: =SUMPRODUCT(T126:AE126,'Data Input'!$T$33:$AE$33) -> 0 | T126: =IFERROR(T30/(T30+(1-T30)*(T119/T113)),0) -> 0 | U126: 0 | V126: 0 | W126: 0 | X126: 0 | Y126: 0 | Z126: 0 | AA126: 0 | AB126: 0 | AC126: 0 | AD126: 0 | AE126: 0
F127: % of milkfat allocated to Butter - SMP | J127: % | N127: =SUMPRODUCT(T127:AE127,'Data Input'!$T$33:$AE$33) -> 0 | T127: =IFERROR(T31/(T31+(1-T31)*(T114/T116)),0) -> 0 | U127: 0 | V127: 0 | W127: 0 | X127: 0 | Y127: 0 | Z127: 0 | AA127: 0 | AB127: 0 | AC127: 0 | AD127: 0 | AE127: 0
F128: % of milkfat allocated to Butter - WMP | J128: % | N128: =SUMPRODUCT(T128:AE128,'Data Input'!$T$33:$AE$33) -> 0 | T128: =IFERROR(T31/(T31+(1-T31)*(T120/T122)),0) -> 0 | U128: 0 | V128: 0 | W128: 0 | X128: 0 | Y128: 0 | Z128: 0 | AA128: 0 | AB128: 0 | AC128: 0 | AD128: 0 | AE128: 0
F130: Product Weights
F131: SMP | J131: % | N131: =1-N126 -> 1 | T131: =1-T126 -> 1 | U131: 1 | V131: 1 | W131: 1 | X131: 1 | Y131: 1 | Z131: 1 | AA131: 1 | AB131: 1 | AC131: 1 | AD131: 1 | AE131: 1
F132: SMP Butter | J132: % | N132: =N131*N127 -> 0 | T132: =T131*T127 -> 0 | U132: 0 | V132: 0 | W132: 0 | X132: 0 | Y132: 0 | Z132: 0 | AA132: 0 | AB132: 0 | AC132: 0 | AD132: 0 | AE132: 0
F133: SMP Butter BMP | J133: % | N133: =N132 -> 0 | T133: =T132 -> 0 | U133: =U132 -> 0 | V133: 0 | W133: 0 | X133: 0 | Y133: 0 | Z133: 0 | AA133: 0 | AB133: 0 | AC133: 0 | AD133: 0 | AE133: 0
F134: SMP AMF | J134: % | N134: =N131*(1-N127) -> 1 | T134: =T131*(1-T127) -> 1 | U134: 1 | V134: 1 | W134: 1 | X134: 1 | Y134: 1 | Z134: 1 | AA134: 1 | AB134: 1 | AC134: 1 | AD134: 1 | AE134: 1
F135: SMP AMF BMP | J135: % | N135: =N134 -> 1 | T135: =T134 -> 1 | U135: =U134 -> 1 | V135: 1 | W135: 1 | X135: 1 | Y135: 1 | Z135: 1 | AA135: 1 | AB135: 1 | AC135: 1 | AD135: 1 | AE135: 1
F137: WMP | J137: % | N137: =N126 -> 0 | T137: =T126 -> 0 | U137: 0 | V137: 0 | W137: 0 | X137: 0 | Y137: 0 | Z137: 0 | AA137: 0 | AB137: 0 | AC137: 0 | AD137: 0 | AE137: 0
F138: WMP Butter | J138: % | N138: =N137*N128 -> 0 | T138: =T137*T128 -> 0 | U138: 0 | V138: 0 | W138: 0 | X138: 0 | Y138: 0 | Z138: 0 | AA138: 0 | AB138: 0 | AC138: 0 | AD138: 0 | AE138: 0
F139: WMP Butter BMP | J139: % | N139: =N138 -> 0 | T139: =T138 -> 0 | U139: =U138 -> 0 | V139: 0 | W139: 0 | X139: 0 | Y139: 0 | Z139: 0 | AA139: 0 | AB139: 0 | AC139: 0 | AD139: 0 | AE139: 0
F140: WMP AMF | J140: % | N140: =N137*(1-N128) -> 0 | T140: =T137*(1-T128) -> 0 | U140: 0 | V140: 0 | W140: 0 | X140: 0 | Y140: 0 | Z140: 0 | AA140: 0 | AB140: 0 | AC140: 0 | AD140: 0 | AE140: 0
F141: WMP AMF BMP | J141: % | N141: =N140 -> 0 | T141: =T140 -> 0 | U141: =U140 -> 0 | V141: 0 | W141: 0 | X141: 0 | Y141: 0 | Z141: 0 | AA141: 0 | AB141: 0 | AC141: 0 | AD141: 0 | AE141: 0
F142: Calculated Yields
F143: Butter | N143: =SUMPRODUCT(T143:AE143,$T$21:$AE$21)/$N$21 ->  | T143: =T132*T114+T138*T120 -> 
F144: AMF | N144: =SUMPRODUCT(T144:AE144,$T$21:$AE$21)/$N$21 ->  | T144: =T134*T116+T140*T122 -> 
F145: SMP | N145: =SUMPRODUCT(T145:AE145,$T$21:$AE$21)/$N$21 ->  | T145: =T131*T113 -> 
F146: BMP | N146: =SUMPRODUCT(T146:AE146,$T$21:$AE$21)/$N$21 ->  | T146: =T133*T115+T139*T121+T135*T117+T141*T123 -> 
F147: WMP | N147: =SUMPRODUCT(T147:AE147,$T$21:$AE$21)/$N$21 ->  | T147: =T137*T119 -> 
F148: Total | N148: =SUM(N143:N147) ->  | T148: =SUM(T143:T147) -> 
D150: Actual yield calculations | F150: Product Mix to Model
F151: Butter | J151: MT | N151: =SUM(T151:AE151) ->  | T151: =T143*T$21 ->  | U151: =U143*U$21 -> 
F152: AMF | J152: MT | N152: =SUM(T152:AE152) ->  | T152: =T144*T$21 -> 
F153: SMP | J153: MT | N153: =SUM(T153:AE153) ->  | T153: =T145*T$21 ->  | U153: =U145*U$21 -> 
F154: BMP | J154: MT | N154: =SUM(T154:AE154) ->  | W154: =W146*W$21 -> 
F155: WMP | J155: MT | N155: =SUM(T155:AE155) ->  | T155: =T147*T$21 -> 
F156: Total | J156: MT | N156: =SUM(N151:N155) ->  | T156: =SUM(T151:T155) ->  | U156: =SUM(U151:U155) ->  | V156: =SUM(V151:V155) ->  | W156: =SUM(W151:W155) -> 
F158: Fat Usage
F159: Butter | J159: 000 kgMS | N159: =SUM(T159:AE159) ->  | T159: =T151*$L59 -> 
F160: AMF | J160: 000 kgMS | N160: =SUM(T160:AE160) -> 
F161: SMP | J161: 000 kgMS | N161: =SUM(T161:AE161) -> 
F162: BMP | J162: 000 kgMS | N162: =SUM(T162:AE162) -> 
F163: WMP | J163: 000 kgMS | N163: =SUM(T163:AE163) -> 
F164: Total | J164: 000 kgMS | N164: =SUM(N159:N163) ->  | T164: =SUM(T159:T163) -> 
F166: Protein Usage
F167: Butter | J167: 000 kgMS | N167: =SUM(T167:AE167) ->  | T167: =T151*$M59 -> 
F168: AMF | J168: 000 kgMS | N168: =SUM(T168:AE168) -> 
F169: SMP | J169: 000 kgMS | N169: =SUM(T169:AE169) -> 
F170: BMP | J170: 000 kgMS | N170: =SUM(T170:AE170) -> 
F171: WMP | J171: 000 kgMS | N171: =SUM(T171:AE171) -> 
F172: Total | J172: 000 kgMS | N172: =SUM(N167:N171) ->  | T172: =SUM(T167:T171) -> 
F174: Milk Composition
F175: Fat | J175: MT | N175: =IF(ISERROR(N164/SUM(N164,N172)),"N/A",N164/SUM(N164,N172)) -> N/A | T175: =IF(ISERROR(T164/SUM(T164,T172)),"N/A",T164/SUM(T164,T172)) -> N/A | U175: =IF(ISERROR(U164/SUM(U164,U172)),"N/A",U164/SUM(U164,U172)) -> N/A | V175: N/A | W175: N/A | X175: N/A | Y175: N/A | Z175: N/A | AA175: N/A | AB175: N/A | AC175: N/A | AD175: N/A | AE175: N/A
F176: Protein | J176: MT | N176: =IF(ISERROR(N172/SUM(N164,N172)),"N/A",N172/SUM(N164,N172)) -> N/A | T176: =IF(ISERROR(T172/SUM(T164,T172)),"N/A",T172/SUM(T164,T172)) -> N/A | U176: =IF(ISERROR(U172/SUM(U164,U172)),"N/A",U172/SUM(U164,U172)) -> N/A | V176: N/A | W176: N/A | X176: N/A | Y176: N/A | Z176: N/A | AA176: N/A | AB176: N/A | AC176: N/A | AD176: N/A | AE176: N/A
F178: Required Lactose - Calculated
F179: SMP | J179: MT | N179: =SUM(T179:AE179) ->  | T179: =T66*T153 -> 
F180: BMP | J180: MT | N180: =SUM(T180:AE180) -> 
F181: WMP | J181: MT | N181: =SUM(T181:AE181) -> 
F182: Total | J182: MT | N182: =SUM(T182:AE182) ->  | T182: =SUM(T179:T181) ->  | U182: =SUM(U179:U181) -> 
D184: Hard coded outputs from actual yield calculations | F184: Product Mix to Model
F185: Butter | J185: MT | N185: =SUM(T185:AE185) -> 260739.4021 | T185: 34.78080341 | U185: 562.5961548 | V185: 10324.59682 | W185: 28263.165 | X185: 37852.26149 | Y185: 32975.63324 | Z185: 33836.88613 | AA185: 36634.61222 | AB185: 29695.54084 | AC185: 24307.15965 | AD185: 17508.83384 | AE185: 8743.335897
F186: AMF | J186: MT | N186: =SUM(T186:AE186) -> 166227.4066 | T186: 2943.888239 | U186: 3451.393973 | V186: 11635.24972 | W186: 17946.9842 | X186: 23000.35732 | Y186: 22863.31098 | Z186: 17827.73099 | AA186: 16494.30223 | AB186: 15109.79116 | AC186: 15662.08346 | AD186: 9231.301466 | AE186: 10061.0129
F187: SMP | J187: MT | N187: =SUM(T187:AE187) -> 639496.8714 | T187: 5474.599943 | U187: 7246.891724 | V187: 31205.12401 | W187: 67550.43418 | X187: 99721.36113 | Y187: 88162.37199 | Z187: 78581.26928 | AA187: 80504.26729 | AB187: 66151.48955 | AC187: 54669.78983 | AD187: 32215.99425 | AE187: 28013.27821
F188: BMP | J188: MT | N188: =SUM(T188:AE188) -> 64937.41488 | T188: 549.9205899 | U188: 712.8798346 | V188: 3420.416696 | W188: 6636.733344 | X188: 8797.232993 | Y188: 8236.861533 | Z188: 7554.583063 | AA188: 7742.964387 | AB188: 6667.303156 | AC188: 6495.93002 | AD188: 4623.955745 | AE188: 3498.633519
F189: WMP | J189: MT | N189: =SUM(T189:AE189) -> 1861570.302 | T189: 9896.461193 | U189: 19644.15052 | V189: 135809.0216 | W189: 219952.3312 | X189: 258770.0127 | Y189: 247926.108 | Z189: 237359.0836 | AA189: 193289.7779 | AB189: 156748.2428 | AC189: 156447.4662 | AD189: 148882.1504 | AE189: 76845.4963
F190: Total | J190: MT | N190: =SUM(N185:N189) -> 2992971.397 | T190: =SUM(T185:T189) -> 18899.65077 | U190: =SUM(U185:U189) -> 31617.91221 | V190: 192394.4089 | W190: 340349.6479 | X190: 428141.2256 | Y190: 400164.2858 | Z190: 375159.5531 | AA190: 334665.9241 | AB190: 274372.3675 | AC190: 257582.4292 | AD190: 212462.2357 | AE190: 127161.7568
F192: Fat Usage
F193: Butter | J193: 000 kgMS | N193: =SUM(T193:AE193) -> 216846.5311 | T193: 28.92580296 | U193: 467.8887181 | V193: 8586.554193 | W193: 23505.3438 | X193: 31480.21179 | Y193: 27424.51514 | Z193: 28140.78472 | AA193: 30467.5416 | AB193: 24696.59349 | AC193: 20215.2924 | AD193: 14561.39675 | AE193: 7271.482732
F194: AMF | J194: 000 kgMS | N194: =SUM(T194:AE194) -> 166553.2124 | T194: 2949.65826 | U194: 3458.158705 | V194: 11658.05481 | W194: 17982.16029 | X194: 23045.43802 | Y194: 22908.12307 | Z194: 17862.67334 | AA194: 16526.63106 | AB194: 15139.40635 | AC194: 15692.78115 | AD194: 9249.394817 | AE194: 10080.73248
F195: SMP | J195: 000 kgMS | N195: =SUM(T195:AE195) -> 6217.692676 | T195: 53.22837607 | U195: 70.4599938 | V195: 303.4008135 | W195: 656.7785687 | X195: 969.5696797 | Y195: 857.1840757 | Z195: 764.0290427 | AA195: 782.7259452 | AB195: 643.1769262 | AC195: 531.5427909 | AD195: 313.2292908 | AE195: 272.3671726
F196: BMP | J196: 000 kgMS | N196: =SUM(T196:AE196) -> 5228.760646 | T196: 44.2796059 | U196: 57.40108428 | V196: 275.4119524 | W196: 534.3897689 | X196: 708.3532006 | Y196: 663.2320907 | Z196: 608.2950282 | AA196: 623.4634925 | AB196: 536.8512501 | AC196: 523.0522852 | AD196: 372.3209166 | AE196: 281.709971
F197: WMP | J197: 000 kgMS | N197: =SUM(T197:AE197) -> 489162.7609 | T197: 2600.482117 | U197: 5161.871615 | V197: 35686.38578 | W197: 57796.62978 | X197: 67996.70884 | Y197: 65147.26806 | Z197: 62370.58278 | AA197: 50790.54028 | AB197: 41188.56169 | AC197: 41109.52695 | AD197: 39121.59731 | AE197: 20192.60572
F198: Total | J198: 000 kgMS | N198: =SUM(N193:N197) -> 884008.9577 | T198: =SUM(T193:T197) -> 5676.574162 | U198: =SUM(U193:U197) -> 9215.780117 | V198: =SUM(V193:V197) -> 56509.80755 | W198: =SUM(W193:W197) -> 100475.3022 | X198: =SUM(X193:X197) -> 124200.2815 | Y198: =SUM(Y193:Y197) -> 117000.3224 | Z198: =SUM(Z193:Z197) -> 109746.3649 | AA198: =SUM(AA193:AA197) -> 99190.90238 | AB198: =SUM(AB193:AB197) -> 82204.5897 | AC198: =SUM(AC193:AC197) -> 78072.19557 | AD198: =SUM(AD193:AD197) -> 63617.93909 | AE198: =SUM(AE193:AE197) -> 38098.89807
F200: Protein Usage
F201: Butter | J201: 000 kgMS | N201: =SUM(T201:AE201) -> 1394.955801 | T201: 0.1860772982 | U201: 3.009889428 | V201: 55.236593 | W201: 151.2079327 | X201: 202.509599 | Y201: 176.4196378 | Z201: 181.0273408 | AA201: 195.9951754 | AB201: 158.8711435 | AC201: 130.0433041 | AD201: 93.67226105 | AE201: 46.77684705
F202: AMF | J202: 000 kgMS | N202: =SUM(T202:AE202) -> 132.9819253 | T202: 2.355110591 | U202: 2.761115179 | V202: 9.308199778 | W202: 14.35758736 | X202: 18.40028586 | Y202: 18.29064878 | Z202: 14.26218479 | AA202: 13.19544178 | AB202: 12.08783292 | AC202: 12.52966677 | AD202: 7.385041173 | AE202: 8.048810316
F203: SMP | J203: 000 kgMS | N203: =SUM(T203:AE203) -> 210198.5144 | T203: 1799.46584 | U203: 2382.006765 | V203: 10256.92384 | W203: 22203.39386 | X203: 32777.77093 | Y203: 28978.40544 | Z203: 25829.15851 | AA203: 26461.23561 | AB203: 21743.56975 | AC203: 17969.60879 | AD203: 10589.1904 | AE203: 9207.784628
F204: BMP | J204: 000 kgMS | N204: =SUM(T204:AE204) -> 19765.00097 | T204: 167.3793299 | U204: 216.9792353 | V204: 1041.07223 | W204: 2020.022528 | X204: 2677.613806 | Y204: 2507.053545 | Z204: 2299.388447 | AA204: 2356.726071 | AB204: 2029.327061 | AC204: 1977.16622 | AD204: 1407.39341 | AE204: 1064.879084
F205: WMP | J205: 000 kgMS | N205: =SUM(T205:AE205) -> 450927.8519 | T205: 2397.21808 | U205: 4758.399178 | V205: 32896.99578 | W205: 53279.01507 | X205: 62681.81534 | Y205: 60055.0982 | Z205: 57495.4497 | AA205: 46820.54942 | AB205: 37969.09971 | AC205: 37896.24264 | AD205: 36063.6975 | AE205: 18614.27126
F206: Total | J206: 000 kgMS | N206: =SUM(N201:N205) -> 682419.305 | T206: =SUM(T201:T205) -> 4366.604438 | U206: =SUM(U201:U205) -> 7363.156183 | V206: =SUM(V201:V205) -> 44259.53665 | W206: =SUM(W201:W205) -> 77667.99699 | X206: =SUM(X201:X205) -> 98358.10997 | Y206: =SUM(Y201:Y205) -> 91735.26747 | Z206: =SUM(Z201:Z205) -> 85819.28619 | AA206: =SUM(AA201:AA205) -> 75847.70172 | AB206: =SUM(AB201:AB205) -> 61912.9555 | AC206: =SUM(AC201:AC205) -> 57985.59063 | AD206: =SUM(AD201:AD205) -> 48161.33861 | AE206: =SUM(AE201:AE205) -> 28941.76063
F208: Milk Composition
F209: Fat | J209: MT | N209: =IF(ISERROR(N198/SUM(N198,N206)),"N/A",N198/SUM(N198,N206)) -> 0.5643469151 | T209: 0.5652168888 | U209: 0.5558728226 | V209: 0.5607837185 | W209: 0.5640139296 | X209: 0.5580570595 | Y209: 0.5605192794 | Z209: 0.5611740318 | AA209: 0.5666801497 | AB209: 0.570399597 | AC209: 0.5738164478 | AD209: 0.5691389352 | AE209: 0.5682954018
F210: Protein | J210: MT | N210: =IF(ISERROR(N206/SUM(N198,N206)),"N/A",N206/SUM(N198,N206)) -> 0.4356530849 | T210: 0.4347831112 | U210: 0.4441271774 | V210: 0.4392162815 | W210: 0.4359860704 | X210: 0.4419429405 | Y210: 0.4394807206 | Z210: 0.4388259682 | AA210: 0.4333198503 | AB210: 0.429600403 | AC210: 0.4261835522 | AD210: 0.4308610648 | AE210: 0.4317045982
F212: Required Lactose - Calculated
F213: SMP | J213: MT | N213: =SUM(T213:AE213) -> 0
F214: BMP | J214: MT | N214: =SUM(T214:AE214) -> 0
F215: WMP | J215: MT | N215: =SUM(T215:AE215) -> 0
F216: Total | J216: MT | N216: =SUM(T216:AE216) -> 349839.1861 | T216: 2567.181039 | U216: 4035.461716 | V216: 21163.60334 | W216: 32683.9395 | X216: 42457.5636 | Y216: 40868.68682 | Z216: 41600.26764 | AA216: 38039.52039 | AB216: 32427.75789 | AC216: 36502.31368 | AD216: 35524.99668 | AE216: 21967.8938
D218: COMPONENT MILK PRICE
D221: COMMENT
F225: Milk Price | J225: NZD | N225: =IF(ISERROR(N1249),2,N1249) -> 3.895083318 | T225: =$N225 -> 3.895083318 | U225: 3.895083318 | V225: 3.895083318 | W225: 3.895083318 | X225: 3.895083318 | Y225: 3.895083318 | Z225: 3.895083318 | AA225: 3.895083318 | AB225: 3.895083318 | AC225: 3.895083318 | AD225: 3.895083318 | AE225: 3.895083318 | AF225: 3.895083318 | AG225: 3.895083318 | AH225: 3.895083318 | AI225: 3.895083318 | AJ225: 3.895083318 | AK225: 3.895083318 | AL225: 3.895083318 | AM225: 3.895083318 | AN225: 3.895083318 | AO225: 3.895083318
F227: kgMS into production
F228: Total | J228: 000 kgMS | K228: ="Row "&ROW(K$21) -> Row 21 | N228: =SUM(T228:AE228) -> 1566428.263 | T228: =T21 -> 10043.1786 | U228: 16578.9363 | V228: 100769.3442 | W228: 178143.2992 | X228: 222558.3915 | Y228: 208735.5899 | Z228: 195565.6511 | AA228: 175038.6041 | AB228: 144117.5452 | AC228: 136057.7862 | AD228: 111779.2777 | AE228: 67040.6587
F229: Fat | J229: 000 kgMS | N229: =SUM(T229:AE229) -> 884008.9577 | T229: =T198 -> 5676.574162 | U229: =U198 -> 9215.780117 | V229: 56509.80755 | W229: 100475.3022 | X229: 124200.2815 | Y229: 117000.3224 | Z229: 109746.3649 | AA229: 99190.90238 | AB229: 82204.5897 | AC229: 78072.19557 | AD229: 63617.93909 | AE229: 38098.89807
F230: Protein | J230: 000 kgMS | N230: =SUM(T230:AE230) -> 682419.305 | T230: =T206 -> 4366.604438 | U230: =U206 -> 7363.156183 | V230: 44259.53665 | W230: 77667.99699 | X230: 98358.10997 | Y230: 91735.26747 | Z230: 85819.28619 | AA230: 75847.70172 | AB230: 61912.9555 | AC230: 57985.59063 | AD230: 48161.33861 | AE230: 28941.76063
F231: Total | J231: 000 kgMS | N231: =N229+N230 -> 1566428.263 | T231: =T230+T229 -> 10043.1786 | U231: 16578.9363 | V231: 100769.3442 | W231: 178143.2992 | X231: 222558.3915 | Y231: 208735.5899 | Z231: 195565.6511 | AA231: 175038.6041 | AB231: 144117.5452 | AC231: 136057.7862 | AD231: 111779.2777 | AE231: 67040.6587
F232: Protein : Fat ratio | J232: % | N232: =N230/N229 -> 0.7719597171 | T232: =T230/T229 -> 0.7692323422 | U232: =U230/U229 -> 0.7989726414 | V232: 0.7832186759 | W232: 0.7730058559 | X232: 0.7919314574 | Y232: 0.7840599544 | Z232: 0.7819783941 | AA232: 0.7646638946 | AB232: 0.7531569189 | AC232: 0.7427175604 | AD232: 0.7570402201 | AE232: 0.7596482337
F233: Valued Component Ratio | J233: % | N233: ='Data Input'!N74 -> 0.43 | T233: =$N233 -> 0.43 | U233: =$N233 -> 0.43 | V233: 0.43 | W233: 0.43 | X233: 0.43 | Y233: 0.43 | Z233: 0.43 | AA233: 0.43 | AB233: 0.43 | AC233: 0.43 | AD233: 0.43 | AE233: 0.43
F235: Fat Price | J235: NZD | N235: =(1+N232)/(1+1/N233*N232)*N225 -> 2.469159468 | T235: =$N235 -> 2.469159468 | U235: =$N235 -> 2.469159468 | V235: 2.469159468 | W235: 2.469159468 | X235: 2.469159468 | Y235: 2.469159468 | Z235: 2.469159468 | AA235: 2.469159468 | AB235: 2.469159468 | AC235: 2.469159468 | AD235: =$N235 -> 2.469159468 | AE235: 2.469159468 | AF235: 2.469159468 | AG235: 2.469159468 | AH235: 2.469159468 | AI235: 2.469159468 | AJ235: 2.469159468 | AK235: 2.469159468 | AL235: 2.469159468 | AM235: 2.469159468 | AN235: 2.469159468 | AO235: 2.469159468
F236: Protein Price | J236: NZD | N236: =(1+N232)/(N232+N233)*N225 -> 5.742231322 | T236: =$N236 -> 5.742231322 | U236: 5.742231322 | V236: 5.742231322 | W236: 5.742231322 | X236: 5.742231322 | Y236: 5.742231322 | Z236: 5.742231322 | AA236: 5.742231322 | AB236: 5.742231322 | AC236: 5.742231322 | AD236: 5.742231322 | AE236: 5.742231322 | AF236: 5.742231322 | AG236: 5.742231322 | AH236: 5.742231322 | AI236: 5.742231322 | AJ236: 5.742231322 | AK236: 5.742231322 | AL236: 5.742231322 | AM236: 5.742231322 | AN236: 5.742231322 | AO236: 5.742231322
D238: Conversion of Average FX Cash Conversion Rates to Corresponding ACRs for Transaction Months
D240: COMMENT | F240: This section converts average USD : NZD cash conversion rates into:
F241: 1. Average FX conversion rates by month of sale, given the receivables days assumption.
F242: 2. Average FX conversion rates by month in which a USD-denominated cost is incurred, given the Trade Creditors days assumption.
D244: DATA INPUT
F245: Average Conversion Rate to model - Cash | J245: USD : NZD | R245: ='Data Input'!R22 -> 0.708207511 | S245: ='Data Input'!S22 -> 0.708207511 | T245: ='Data Input'!T22 -> 0.708207511 | U245: ='Data Input'!U22 -> 0.708207511 | V245: ='Data Input'!V22 -> 0.708207511 | W245: ='Data Input'!W22 -> 0.708207511 | X245: ='Data Input'!X22 -> 0.708207511 | Y245: ='Data Input'!Y22 -> 0.708207511 | Z245: ='Data Input'!Z22 -> 0.708207511 | AA245: ='Data Input'!AA22 -> 0.708207511 | AB245: ='Data Input'!AB22 -> 0.708207511 | AC245: ='Data Input'!AC22 -> 0.708207511 | AD245: ='Data Input'!AD22 -> 0.708207511 | AE245: ='Data Input'!AE22 -> 0.708207511 | AF245: ='Data Input'!AF22 -> 0.708207511 | AG245: ='Data Input'!AG22 -> 0.708207511 | AH245: ='Data Input'!AH22 -> 0.708207511 | AI245: ='Data Input'!AI22 -> 0.708207511 | AJ245: ='Data Input'!AJ22 -> 0.708207511 | AK245: ='Data Input'!AK22 -> 0.708207511 | AL245: ='Data Input'!AL22 -> 0.708207511 | AM245: ='Data Input'!AM22 -> 0.708207511 | AN245: ='Data Input'!AN22 -> 0.708207511 | AO245: =AN245 -> 0.708207511
F247: Timing of Receipts in respect of sales
F248: Received in month of sale | J248: % | K248: ="Row "&ROW(F896) -> Row 896 | T248: =T896 -> 0.06433269366 | U248: =U896 -> 0.09451551 | V248: 0.09451551 | W248: 0.06433269366 | X248: 0.09451551 | Y248: 0.06433269366 | Z248: 0.09451551 | AA248: 0.09451551 | AB248: 0.03206830379 | AC248: 0.09451551 | AD248: 0.06433269366 | AE248: 0.09451551 | AF248: 0.06433269366 | AG248: 0.09451551 | AH248: 0.09451551 | AI248: 0.06433269366 | AJ248: 0.09451551 | AK248: 0.06433269366 | AL248: 0.09451551 | AM248: =AM896/SUM(AM$896:AM$898) -> 0.09451551 | AN248: =AN896/SUM(AN$896:AN$897) -> 0 | AO248: 1
F249: Received in 1 month's time | J249: % | K249: ="Row "&ROW(F897) -> Row 897 | T249: =T897 -> 0.9356673063 | U249: =U897 -> 0.90548449 | V249: 0.90548449 | W249: 0.9356673063 | X249: 0.90548449 | Y249: 0.9356673063 | Z249: 0.90548449 | AA249: 0.90548449 | AB249: 0.9679316962 | AC249: 0.90548449 | AD249: 0.9356673063 | AE249: 0.90548449 | AF249: 0.9356673063 | AG249: 0.90548449 | AH249: 0.90548449 | AI249: 0.9356673063 | AJ249: 0.90548449 | AK249: 0.9356673063 | AL249: 0.90548449 | AM249: =AM897/SUM(AM$896:AM$898) -> 0.9032258065 | AN249: =AN897/SUM(AN$896:AN$897) -> 1
F250: Received in 2 month's time | J250: % | K250: ="Row "&ROW(F898) -> Row 898 | T250: =T898 -> 0 | U250: =U898 -> 0 | V250: 0 | W250: 0 | X250: 0 | Y250: 0 | Z250: 0 | AA250: 0 | AB250: 0 | AC250: 0 | AD250: 0 | AE250: 0 | AF250: 0 | AG250: 0 | AH250: 0 | AI250: 0 | AJ250: 0 | AK250: 0 | AL250: 0 | AM250: =AM898/SUM(AM$896:AM$898) -> 0.00225868355
F251: Received in 3 month's time | J251: % | K251: ="Row "&ROW(F899) -> Row 899 | T251: =T899 -> 0 | U251: =U899 -> 0 | V251: 0 | W251: 0 | X251: 0 | Y251: 0 | Z251: 0 | AA251: 0 | AB251: 0 | AC251: 0 | AD251: 0 | AE251: 0 | AF251: 0 | AG251: 0 | AH251: 0 | AI251: 0 | AJ251: 0 | AK251: 0 | AL251: 0
... 826 more rows

Sheet Summary
J3: 1
S4: MONTHLY
I5: Period Number | O5: 1 | P5: 1 | Q5: 1 | R5: =IF(Q5=12,1,Q5+1) -> 2 | S5: 3 | T5: 4 | U5: 5 | V5: 6 | W5: 7 | X5: 8 | Y5: 9 | Z5: 10 | AA5: 11 | AB5: 12 | AC5: 1 | AD5: 2 | AE5: 3 | AF5: 4 | AG5: 5 | AH5: 6 | AI5: 7 | AJ5: 8
O6: =Global!R36 -> 2015-04-30 | P6: =Global!S36 -> 2015-05-31 | Q6: =Global!T36 -> 2015-06-30 | R6: =Global!U36 -> 2015-07-31 | S6: =Global!V36 -> 2015-08-31 | T6: =Global!W36 -> 2015-09-30 | U6: =Global!X36 -> 2015-10-31 | V6: =Global!Y36 -> 2015-11-30 | W6: =Global!Z36 -> 2015-12-31 | X6: =Global!AA36 -> 2016-01-31 | Y6: =Global!AB36 -> 2016-02-29 | Z6: =Global!AC36 -> 2016-03-31 | AA6: =Global!AD36 -> 2016-04-30 | AB6: =Global!AE36 -> 2016-05-31 | AC6: =Global!AF36 -> 2016-06-30 | AD6: =Global!AG36 -> 2016-07-31 | AE6: =Global!AH36 -> 2016-08-31 | AF6: =Global!AI36 -> 2016-09-30 | AG6: =Global!AJ36 -> 2016-10-31 | AH6: =Global!AK36 -> 2016-11-30 | AI6: =Global!AL36 -> 2016-12-31 | AJ6: =Global!AM36 -> 2017-01-31
I7: Period | O7: 1 | P7: 1 | Q7: 1 | R7: =Q7+1 -> 2 | S7: 3 | T7: 4 | U7: 5 | V7: 6 | W7: 7 | X7: 8 | Y7: 9 | Z7: 10 | AA7: 11 | AB7: 12 | AC7: 13 | AD7: 14 | AE7: 15 | AF7: 16 | AG7: 17 | AH7: 18 | AI7: 19 | AJ7: 20
I9: Financial Year | L9: =Global!O7 -> 2016-05-31 | O9: =Global!R36 -> 2015-04-30 | P9: =Global!S36 -> 2015-05-31 | Q9: =Global!T36 -> 2015-06-30 | R9: =Global!U36 -> 2015-07-31 | S9: =Global!V36 -> 2015-08-31 | T9: =Global!W36 -> 2015-09-30 | U9: =Global!X36 -> 2015-10-31 | V9: =Global!Y36 -> 2015-11-30 | W9: =Global!Z36 -> 2015-12-31 | X9: =Global!AA36 -> 2016-01-31 | Y9: =Global!AB36 -> 2016-02-29 | Z9: =Global!AC36 -> 2016-03-31 | AA9: =Global!AD36 -> 2016-04-30 | AB9: =Global!AE36 -> 2016-05-31 | AC9: =Global!AF36 -> 2016-06-30 | AD9: =Global!AG36 -> 2016-07-31 | AE9: =Global!AH36 -> 2016-08-31 | AF9: =Global!AI36 -> 2016-09-30 | AG9: =Global!AJ36 -> 2016-10-31 | AH9: =Global!AK36 -> 2016-11-30 | AI9: =Global!AL36 -> 2016-12-31 | AJ9: =Global!AM36 -> 2017-01-31
I10: KGMS 000s
I11: Milk Supply Paid for | L11: =SUM(O11:AB11) -> 1566433.584 | O11: ='Data Input'!R31 -> 0 | P11: ='Data Input'!S31 -> 0 | Q11: ='Data Input'!T31 -> 10047.6264 | R11: ='Data Input'!U31 -> 16579.8102 | S11: ='Data Input'!V31 -> 100769.3442 | T11: ='Data Input'!W31 -> 178143.2992 | U11: ='Data Input'!X31 -> 222558.3915 | V11: ='Data Input'!Y31 -> 208735.5899 | W11: ='Data Input'!Z31 -> 195565.6511 | X11: ='Data Input'!AA31 -> 175038.6041 | Y11: ='Data Input'!AB31 -> 144117.5452 | Z11: ='Data Input'!AC31 -> 136057.7862 | AA11: ='Data Input'!AD31 -> 111779.2777 | AB11: ='Data Input'!AE31 -> 67040.6587
I12: Milk Supply Collected | L12: =SUM(O12:AB12) -> 1566428.263 | O12: ='Data Input'!R32 -> 0 | P12: ='Data Input'!S32 -> 0 | Q12: ='Data Input'!T32 -> 10043.1786 | R12: ='Data Input'!U32 -> 16578.9363 | S12: ='Data Input'!V32 -> 100769.3442 | T12: ='Data Input'!W32 -> 178143.2992 | U12: ='Data Input'!X32 -> 222558.3915 | V12: ='Data Input'!Y32 -> 208735.5899 | W12: ='Data Input'!Z32 -> 195565.6511 | X12: ='Data Input'!AA32 -> 175038.6041 | Y12: ='Data Input'!AB32 -> 144117.5452 | Z12: ='Data Input'!AC32 -> 136057.7862 | AA12: ='Data Input'!AD32 -> 111779.2777 | AB12: ='Data Input'!AE32 -> 67040.6587
I14: $'000
I16: NZD Revenue
I17: Sales | J17: =$J$3&I17 -> 1Sales | L17: =SUM(O17:AJ17) -> 9133955.794 | O17: =-SUMIF(Calculations!$I$15:$I$1318,$J17,Calculations!R$15:R$1318) -> 0 | P17: =-SUMIF(Calculations!$I$15:$I$1318,$J17,Calculations!S$15:S$1318) -> 0 | Q17: =-SUMIF(Calculations!$I$15:$I$1318,$J17,Calculations!T$15:T$1318) -> 0 | R17: =-SUMIF(Calculations!$I$15:$I$1318,$J17,Calculations!U$15:U$1318) -> 0 | S17: =-SUMIF(Calculations!$I$15:$I$1318,$J17,Calculations!V$15:V$1318) -> 0 | T17: =-SUMIF(Calculations!$I$15:$I$1318,$J17,Calculations!W$15:W$1318) -> 355848.7257 | U17: =-SUMIF(Calculations!$I$15:$I$1318,$J17,Calculations!X$15:X$1318) -> 355848.7257 | V17: =-SUMIF(Calculations!$I$15:$I$1318,$J17,Calculations!Y$15:Y$1318) -> 1186993.161 | W17: =-SUMIF(Calculations!$I$15:$I$1318,$J17,Calculations!Z$15:Z$1318) -> 1186993.161 | X17: =-SUMIF(Calculations!$I$15:$I$1318,$J17,Calculations!AA$15:AA$1318) -> 1186993.161 | Y17: =-SUMIF(Calculations!$I$15:$I$1318,$J17,Calculations!AB$15:AB$1318) -> 709623.3134 | Z17: =-SUMIF(Calculations!$I$15:$I$1318,$J17,Calculations!AC$15:AC$1318) -> 709623.3134 | AA17: =-SUMIF(Calculations!$I$15:$I$1318,$J17,Calculations!AD$15:AD$1318) -> 709623.3134 | AB17: =-SUMIF(Calculations!$I$15:$I$1318,$J17,Calculations!AE$15:AE$1318) -> 722172.1539 | AC17: =-SUMIF(Calculations!$I$15:$I$1318,$J17,Calculations!AF$15:AF$1318) -> 722172.1539 | AD17: =-SUMIF(Calculations!$I$15:$I$1318,$J17,Calculations!AG$15:AG$1318) -> 722172.1539 | AE17: =-SUMIF(Calculations!$I$15:$I$1318,$J17,Calculations!AH$15:AH$1318) -> 188630.8191 | AF17: =-SUMIF(Calculations!$I$15:$I$1318,$J17,Calculations!AI$15:AI$1318) -> 188630.8191 | AG17: =-SUMIF(Calculations!$I$15:$I$1318,$J17,Calculations!AJ$15:AJ$1318) -> 188630.8191 | AH17: =-SUMIF(Calculations!$I$15:$I$1318,$J17,Calculations!AK$15:AK$1318) -> 0 | AI17: =-SUMIF(Calculations!$I$15:$I$1318,$J17,Calculations!AL$15:AL$1318) -> 0 | AJ17: =-SUMIF(Calculations!$I$15:$I$1318,$J17,Calculations!AM$15:AM$1318) -> 0
I18: Downgrade expense (excl rework) | J18: =$J$3&I18 -> 1Downgrade expense (excl rework) | L18: =SUM(O18:AJ18) -> 0 | O18: =-SUMIF(Calculations!$I$15:$I$1318,$J18,Calculations!R$15:R$1318) -> 0 | P18: =-SUMIF(Calculations!$I$15:$I$1318,$J18,Calculations!S$15:S$1318) -> 0 | Q18: =-SUMIF(Calculations!$I$15:$I$1318,$J18,Calculations!T$15:T$1318) -> 0 | R18: =-SUMIF(Calculations!$I$15:$I$1318,$J18,Calculations!U$15:U$1318) -> 0 | S18: =-SUMIF(Calculations!$I$15:$I$1318,$J18,Calculations!V$15:V$1318) -> 0 | T18: =-SUMIF(Calculations!$I$15:$I$1318,$J18,Calculations!W$15:W$1318) -> 0 | U18: =-SUMIF(Calculations!$I$15:$I$1318,$J18,Calculations!X$15:X$1318) -> 0 | V18: =-SUMIF(Calculations!$I$15:$I$1318,$J18,Calculations!Y$15:Y$1318) -> 0 | W18: =-SUMIF(Calculations!$I$15:$I$1318,$J18,Calculations!Z$15:Z$1318) -> 0 | X18: =-SUMIF(Calculations!$I$15:$I$1318,$J18,Calculations!AA$15:AA$1318) -> 0 | Y18: =-SUMIF(Calculations!$I$15:$I$1318,$J18,Calculations!AB$15:AB$1318) -> 0 | Z18: =-SUMIF(Calculations!$I$15:$I$1318,$J18,Calculations!AC$15:AC$1318) -> 0 | AA18: =-SUMIF(Calculations!$I$15:$I$1318,$J18,Calculations!AD$15:AD$1318) -> 0 | AB18: =-SUMIF(Calculations!$I$15:$I$1318,$J18,Calculations!AE$15:AE$1318) -> 0 | AC18: =-SUMIF(Calculations!$I$15:$I$1318,$J18,Calculations!AF$15:AF$1318) -> 0 | AD18: =-SUMIF(Calculations!$I$15:$I$1318,$J18,Calculations!AG$15:AG$1318) -> 0 | AE18: =-SUMIF(Calculations!$I$15:$I$1318,$J18,Calculations!AH$15:AH$1318) -> 0 | AF18: =-SUMIF(Calculations!$I$15:$I$1318,$J18,Calculations!AI$15:AI$1318) -> 0 | AG18: =-SUMIF(Calculations!$I$15:$I$1318,$J18,Calculations!AJ$15:AJ$1318) -> 0 | AH18: =-SUMIF(Calculations!$I$15:$I$1318,$J18,Calculations!AK$15:AK$1318) -> 0 | AI18: =-SUMIF(Calculations!$I$15:$I$1318,$J18,Calculations!AL$15:AL$1318) -> 0 | AJ18: =-SUMIF(Calculations!$I$15:$I$1318,$J18,Calculations!AM$15:AM$1318) -> 0
I19: Net Sales | L19: =SUM(L17:L18) -> 9133955.794 | O19: =SUM(O17:O18) -> 0 | P19: =SUM(P17:P18) -> 0 | Q19: =SUM(Q17:Q18) -> 0 | R19: 0 | S19: 0 | T19: 355848.7257 | U19: 355848.7257 | V19: 1186993.161 | W19: 1186993.161 | X19: 1186993.161 | Y19: 709623.3134 | Z19: 709623.3134 | AA19: 709623.3134 | AB19: 722172.1539 | AC19: 722172.1539 | AD19: 722172.1539 | AE19: 188630.8191 | AF19: 188630.8191 | AG19: 188630.8191 | AH19: 0 | AI19: 0 | AJ19: 0
I20: Average conversion rate (Sales) | L20: =Calculations!N334/Calculations!N342 -> 0.708207511
I21: Non-Milk Costs
I22: Commission | J22: =$J$3&I22 -> 1Commission | L22: =SUM(O22:AJ22) -> 108108 | O22: =SUMIF(Calculations!$I$15:$I$1318,$J22,Calculations!R$15:R$1318) -> 0 | P22: =SUMIF(Calculations!$I$15:$I$1318,$J22,Calculations!S$15:S$1318) -> 0 | Q22: =SUMIF(Calculations!$I$15:$I$1318,$J22,Calculations!T$15:T$1318) -> 0 | R22: =SUMIF(Calculations!$I$15:$I$1318,$J22,Calculations!U$15:U$1318) -> 0 | S22: =SUMIF(Calculations!$I$15:$I$1318,$J22,Calculations!V$15:V$1318) -> 6924.11539 | T22: =SUMIF(Calculations!$I$15:$I$1318,$J22,Calculations!W$15:W$1318) -> 7991.351296 | U22: =SUMIF(Calculations!$I$15:$I$1318,$J22,Calculations!X$15:X$1318) -> 7991.351296 | V22: =SUMIF(Calculations!$I$15:$I$1318,$J22,Calculations!Y$15:Y$1318) -> 10222.18133 | W22: =SUMIF(Calculations!$I$15:$I$1318,$J22,Calculations!Z$15:Z$1318) -> 10222.18133 | X22: =SUMIF(Calculations!$I$15:$I$1318,$J22,Calculations!AA$15:AA$1318) -> 10222.18133 | Y22: =SUMIF(Calculations!$I$15:$I$1318,$J22,Calculations!AB$15:AB$1318) -> 8758.334751 | Z22: =SUMIF(Calculations!$I$15:$I$1318,$J22,Calculations!AC$15:AC$1318) -> 8758.334751 | AA22: =SUMIF(Calculations!$I$15:$I$1318,$J22,Calculations!AD$15:AD$1318) -> 8758.334751 | AB22: =SUMIF(Calculations!$I$15:$I$1318,$J22,Calculations!AE$15:AE$1318) -> 8928.942281 | AC22: =SUMIF(Calculations!$I$15:$I$1318,$J22,Calculations!AF$15:AF$1318) -> 8928.942281 | AD22: =SUMIF(Calculations!$I$15:$I$1318,$J22,Calculations!AG$15:AG$1318) -> 8928.942281 | AE22: =SUMIF(Calculations!$I$15:$I$1318,$J22,Calculations!AH$15:AH$1318) -> 490.9356491 | AF22: =SUMIF(Calculations!$I$15:$I$1318,$J22,Calculations!AI$15:AI$1318) -> 490.9356491 | AG22: =SUMIF(Calculations!$I$15:$I$1318,$J22,Calculations!AJ$15:AJ$1318) -> 490.9356491 | AH22: =SUMIF(Calculations!$I$15:$I$1318,$J22,Calculations!AK$15:AK$1318) -> 0 | AI22: =SUMIF(Calculations!$I$15:$I$1318,$J22,Calculations!AL$15:AL$1318) -> 0 | AJ22: =SUMIF(Calculations!$I$15:$I$1318,$J22,Calculations!AM$15:AM$1318) -> 0
I23: Collection Costs | J23: 1Collection Costs | L23: =SUM(O23:AJ23) -> 348664.4685 | O23: =SUMIF(Calculations!$I$15:$I$1318,$J23,Calculations!R$15:R$1318) -> 0 | P23: =SUMIF(Calculations!$I$15:$I$1318,$J23,Calculations!S$15:S$1318) -> 0 | Q23: =SUMIF(Calculations!$I$15:$I$1318,$J23,Calculations!T$15:T$1318) -> 14413.60945 | R23: =SUMIF(Calculations!$I$15:$I$1318,$J23,Calculations!U$15:U$1318) -> 16125.43369 | S23: =SUMIF(Calculations!$I$15:$I$1318,$J23,Calculations!V$15:V$1318) -> 21906.5411 | T23: =SUMIF(Calculations!$I$15:$I$1318,$J23,Calculations!W$15:W$1318) -> 35736.62807 | U23: =SUMIF(Calculations!$I$15:$I$1318,$J23,Calculations!X$15:X$1318) -> 46600.10458 | V23: =SUMIF(Calculations!$I$15:$I$1318,$J23,Calculations!Y$15:Y$1318) -> 43901.77198 | W23: =SUMIF(Calculations!$I$15:$I$1318,$J23,Calculations!Z$15:Z$1318) -> 38401.9662 | X23: =SUMIF(Calculations!$I$15:$I$1318,$J23,Calculations!AA$15:AA$1318) -> 35369.02426 | Y23: =SUMIF(Calculations!$I$15:$I$1318,$J23,Calculations!AB$15:AB$1318) -> 26752.68835 | Z23: =SUMIF(Calculations!$I$15:$I$1318,$J23,Calculations!AC$15:AC$1318) -> 26111.05208 | AA23: =SUMIF(Calculations!$I$15:$I$1318,$J23,Calculations!AD$15:AD$1318) -> 23291.69413 | AB23: =SUMIF(Calculations!$I$15:$I$1318,$J23,Calculations!AE$15:AE$1318) -> 20053.95464 | AC23: =SUMIF(Calculations!$I$15:$I$1318,$J23,Calculations!AF$15:AF$1318) -> 0 | AD23: =SUMIF(Calculations!$I$15:$I$1318,$J23,Calculations!AG$15:AG$1318) -> 0 | AE23: =SUMIF(Calculations!$I$15:$I$1318,$J23,Calculations!AH$15:AH$1318) -> 0 | AF23: =SUMIF(Calculations!$I$15:$I$1318,$J23,Calculations!AI$15:AI$1318) -> 0 | AG23: =SUMIF(Calculations!$I$15:$I$1318,$J23,Calculations!AJ$15:AJ$1318) -> 0 | AH23: =SUMIF(Calculations!$I$15:$I$1318,$J23,Calculations!AK$15:AK$1318) -> 0 | AI23: =SUMIF(Calculations!$I$15:$I$1318,$J23,Calculations!AL$15:AL$1318) -> 0 | AJ23: =SUMIF(Calculations!$I$15:$I$1318,$J23,Calculations!AM$15:AM$1318) -> 0
I24: Lactose | J24: 1Lactose | L24: =SUM(O24:AJ24) -> 301909 | O24: =SUMIF(Calculations!$I$15:$I$1318,$J24,Calculations!R$15:R$1318) -> 0 | P24: =SUMIF(Calculations!$I$15:$I$1318,$J24,Calculations!S$15:S$1318) -> 0 | Q24: =SUMIF(Calculations!$I$15:$I$1318,$J24,Calculations!T$15:T$1318) -> 3470.810224 | R24: =SUMIF(Calculations!$I$15:$I$1318,$J24,Calculations!U$15:U$1318) -> 5115.59514 | S24: =SUMIF(Calculations!$I$15:$I$1318,$J24,Calculations!V$15:V$1318) -> 24161.62854 | T24: =SUMIF(Calculations!$I$15:$I$1318,$J24,Calculations!W$15:W$1318) -> 31815.26164 | U24: =SUMIF(Calculations!$I$15:$I$1318,$J24,Calculations!X$15:X$1318) -> 39190.82849 | V24: =SUMIF(Calculations!$I$15:$I$1318,$J24,Calculations!Y$15:Y$1318) -> 36437.34129 | W24: =SUMIF(Calculations!$I$15:$I$1318,$J24,Calculations!Z$15:Z$1318) -> 35898.39715 | X24: =SUMIF(Calculations!$I$15:$I$1318,$J24,Calculations!AA$15:AA$1318) -> 29466.10552 | Y24: =SUMIF(Calculations!$I$15:$I$1318,$J24,Calculations!AB$15:AB$1318) -> 23835.33146 | Z24: =SUMIF(Calculations!$I$15:$I$1318,$J24,Calculations!AC$15:AC$1318) -> 27106.29907 | AA24: =SUMIF(Calculations!$I$15:$I$1318,$J24,Calculations!AD$15:AD$1318) -> 27808.86507 | AB24: =SUMIF(Calculations!$I$15:$I$1318,$J24,Calculations!AE$15:AE$1318) -> 17602.53641 | AC24: =SUMIF(Calculations!$I$15:$I$1318,$J24,Calculations!AF$15:AF$1318) -> 0 | AD24: =SUMIF(Calculations!$I$15:$I$1318,$J24,Calculations!AG$15:AG$1318) -> 0 | AE24: =SUMIF(Calculations!$I$15:$I$1318,$J24,Calculations!AH$15:AH$1318) -> 0 | AF24: =SUMIF(Calculations!$I$15:$I$1318,$J24,Calculations!AI$15:AI$1318) -> 0 | AG24: =SUMIF(Calculations!$I$15:$I$1318,$J24,Calculations!AJ$15:AJ$1318) -> 0 | AH24: =SUMIF(Calculations!$I$15:$I$1318,$J24,Calculations!AK$15:AK$1318) -> 0 | AI24: =SUMIF(Calculations!$I$15:$I$1318,$J24,Calculations!AL$15:AL$1318) -> 0 | AJ24: =SUMIF(Calculations!$I$15:$I$1318,$J24,Calculations!AM$15:AM$1318) -> 0
I25: Operating Costs
I26: Packaging | J26: 1Packaging | L26: =SUM(O26:AJ26) -> 487158.3532 | O26: =SUMIF(Calculations!$I$15:$I$1318,$J26,Calculations!R$15:R$1318) -> 0 | P26: =SUMIF(Calculations!$I$15:$I$1318,$J26,Calculations!S$15:S$1318) -> 0 | Q26: =SUMIF(Calculations!$I$15:$I$1318,$J26,Calculations!T$15:T$1318) -> 3076.248156 | R26: =SUMIF(Calculations!$I$15:$I$1318,$J26,Calculations!U$15:U$1318) -> 5146.36727 | S26: =SUMIF(Calculations!$I$15:$I$1318,$J26,Calculations!V$15:V$1318) -> 31315.54931 | T26: =SUMIF(Calculations!$I$15:$I$1318,$J26,Calculations!W$15:W$1318) -> 55397.8478 | U26: =SUMIF(Calculations!$I$15:$I$1318,$J26,Calculations!X$15:X$1318) -> 69687.45995 | V26: =SUMIF(Calculations!$I$15:$I$1318,$J26,Calculations!Y$15:Y$1318) -> 65133.7245 | W26: =SUMIF(Calculations!$I$15:$I$1318,$J26,Calculations!Z$15:Z$1318) -> 61063.76766 | X26: =SUMIF(Calculations!$I$15:$I$1318,$J26,Calculations!AA$15:AA$1318) -> 54472.72251 | Y26: =SUMIF(Calculations!$I$15:$I$1318,$J26,Calculations!AB$15:AB$1318) -> 44658.89344 | Z26: =SUMIF(Calculations!$I$15:$I$1318,$J26,Calculations!AC$15:AC$1318) -> 41926.03782 | AA26: =SUMIF(Calculations!$I$15:$I$1318,$J26,Calculations!AD$15:AD$1318) -> 34581.93852 | AB26: =SUMIF(Calculations!$I$15:$I$1318,$J26,Calculations!AE$15:AE$1318) -> 20697.79621 | AC26: =SUMIF(Calculations!$I$15:$I$1318,$J26,Calculations!AF$15:AF$1318) -> 0 | AD26: =SUMIF(Calculations!$I$15:$I$1318,$J26,Calculations!AG$15:AG$1318) -> 0 | AE26: =SUMIF(Calculations!$I$15:$I$1318,$J26,Calculations!AH$15:AH$1318) -> 0 | AF26: =SUMIF(Calculations!$I$15:$I$1318,$J26,Calculations!AI$15:AI$1318) -> 0 | AG26: =SUMIF(Calculations!$I$15:$I$1318,$J26,Calculations!AJ$15:AJ$1318) -> 0 | AH26: =SUMIF(Calculations!$I$15:$I$1318,$J26,Calculations!AK$15:AK$1318) -> 0 | AI26: =SUMIF(Calculations!$I$15:$I$1318,$J26,Calculations!AL$15:AL$1318) -> 0 | AJ26: =SUMIF(Calculations!$I$15:$I$1318,$J26,Calculations!AM$15:AM$1318) -> 0
I27: Energy - Variable | J27: 1Energy - Variable | L27: 0 | O27: =SUMIF(Calculations!$I$15:$I$1318,$J27,Calculations!R$15:R$1318) -> 0 | P27: =SUMIF(Calculations!$I$15:$I$1318,$J27,Calculations!S$15:S$1318) -> 0 | Q27: =SUMIF(Calculations!$I$15:$I$1318,$J27,Calculations!T$15:T$1318) -> 0 | R27: =SUMIF(Calculations!$I$15:$I$1318,$J27,Calculations!U$15:U$1318) -> 0 | S27: =SUMIF(Calculations!$I$15:$I$1318,$J27,Calculations!V$15:V$1318) -> 0 | T27: =SUMIF(Calculations!$I$15:$I$1318,$J27,Calculations!W$15:W$1318) -> 0 | U27: =SUMIF(Calculations!$I$15:$I$1318,$J27,Calculations!X$15:X$1318) -> 0 | V27: =SUMIF(Calculations!$I$15:$I$1318,$J27,Calculations!Y$15:Y$1318) -> 0 | W27: =SUMIF(Calculations!$I$15:$I$1318,$J27,Calculations!Z$15:Z$1318) -> 0 | X27: =SUMIF(Calculations!$I$15:$I$1318,$J27,Calculations!AA$15:AA$1318) -> 0 | Y27: =SUMIF(Calculations!$I$15:$I$1318,$J27,Calculations!AB$15:AB$1318) -> 0 | Z27: =SUMIF(Calculations!$I$15:$I$1318,$J27,Calculations!AC$15:AC$1318) -> 0 | AA27: =SUMIF(Calculations!$I$15:$I$1318,$J27,Calculations!AD$15:AD$1318) -> 0 | AB27: =SUMIF(Calculations!$I$15:$I$1318,$J27,Calculations!AE$15:AE$1318) -> 0 | AC27: =SUMIF(Calculations!$I$15:$I$1318,$J27,Calculations!AF$15:AF$1318) -> 0 | AD27: =SUMIF(Calculations!$I$15:$I$1318,$J27,Calculations!AG$15:AG$1318) -> 0 | AE27: =SUMIF(Calculations!$I$15:$I$1318,$J27,Calculations!AH$15:AH$1318) -> 0 | AF27: =SUMIF(Calculations!$I$15:$I$1318,$J27,Calculations!AI$15:AI$1318) -> 0 | AG27: =SUMIF(Calculations!$I$15:$I$1318,$J27,Calculations!AJ$15:AJ$1318) -> 0 | AH27: =SUMIF(Calculations!$I$15:$I$1318,$J27,Calculations!AK$15:AK$1318) -> 0 | AI27: =SUMIF(Calculations!$I$15:$I$1318,$J27,Calculations!AL$15:AL$1318) -> 0 | AJ27: =SUMIF(Calculations!$I$15:$I$1318,$J27,Calculations!AM$15:AM$1318) -> 0
I28: Water | J28: 1Water | L28: 0 | O28: =SUMIF(Calculations!$I$15:$I$1318,$J28,Calculations!R$15:R$1318) -> 0 | P28: =SUMIF(Calculations!$I$15:$I$1318,$J28,Calculations!S$15:S$1318) -> 0 | Q28: =SUMIF(Calculations!$I$15:$I$1318,$J28,Calculations!T$15:T$1318) -> 0 | R28: =SUMIF(Calculations!$I$15:$I$1318,$J28,Calculations!U$15:U$1318) -> 0 | S28: =SUMIF(Calculations!$I$15:$I$1318,$J28,Calculations!V$15:V$1318) -> 0 | T28: =SUMIF(Calculations!$I$15:$I$1318,$J28,Calculations!W$15:W$1318) -> 0 | U28: =SUMIF(Calculations!$I$15:$I$1318,$J28,Calculations!X$15:X$1318) -> 0 | V28: =SUMIF(Calculations!$I$15:$I$1318,$J28,Calculations!Y$15:Y$1318) -> 0 | W28: =SUMIF(Calculations!$I$15:$I$1318,$J28,Calculations!Z$15:Z$1318) -> 0 | X28: =SUMIF(Calculations!$I$15:$I$1318,$J28,Calculations!AA$15:AA$1318) -> 0 | Y28: =SUMIF(Calculations!$I$15:$I$1318,$J28,Calculations!AB$15:AB$1318) -> 0 | Z28: =SUMIF(Calculations!$I$15:$I$1318,$J28,Calculations!AC$15:AC$1318) -> 0 | AA28: =SUMIF(Calculations!$I$15:$I$1318,$J28,Calculations!AD$15:AD$1318) -> 0 | AB28: =SUMIF(Calculations!$I$15:$I$1318,$J28,Calculations!AE$15:AE$1318) -> 0 | AC28: =SUMIF(Calculations!$I$15:$I$1318,$J28,Calculations!AF$15:AF$1318) -> 0 | AD28: =SUMIF(Calculations!$I$15:$I$1318,$J28,Calculations!AG$15:AG$1318) -> 0 | AE28: =SUMIF(Calculations!$I$15:$I$1318,$J28,Calculations!AH$15:AH$1318) -> 0 | AF28: =SUMIF(Calculations!$I$15:$I$1318,$J28,Calculations!AI$15:AI$1318) -> 0 | AG28: =SUMIF(Calculations!$I$15:$I$1318,$J28,Calculations!AJ$15:AJ$1318) -> 0 | AH28: =SUMIF(Calculations!$I$15:$I$1318,$J28,Calculations!AK$15:AK$1318) -> 0 | AI28: =SUMIF(Calculations!$I$15:$I$1318,$J28,Calculations!AL$15:AL$1318) -> 0 | AJ28: =SUMIF(Calculations!$I$15:$I$1318,$J28,Calculations!AM$15:AM$1318) -> 0
I29: Cleaning & CIP | J29: 1Cleaning & CIP | L29: 0 | O29: =SUMIF(Calculations!$I$15:$I$1318,$J29,Calculations!R$15:R$1318) -> 0 | P29: =SUMIF(Calculations!$I$15:$I$1318,$J29,Calculations!S$15:S$1318) -> 0 | Q29: =SUMIF(Calculations!$I$15:$I$1318,$J29,Calculations!T$15:T$1318) -> 0 | R29: =SUMIF(Calculations!$I$15:$I$1318,$J29,Calculations!U$15:U$1318) -> 0 | S29: =SUMIF(Calculations!$I$15:$I$1318,$J29,Calculations!V$15:V$1318) -> 0 | T29: =SUMIF(Calculations!$I$15:$I$1318,$J29,Calculations!W$15:W$1318) -> 0 | U29: =SUMIF(Calculations!$I$15:$I$1318,$J29,Calculations!X$15:X$1318) -> 0 | V29: =SUMIF(Calculations!$I$15:$I$1318,$J29,Calculations!Y$15:Y$1318) -> 0 | W29: =SUMIF(Calculations!$I$15:$I$1318,$J29,Calculations!Z$15:Z$1318) -> 0 | X29: =SUMIF(Calculations!$I$15:$I$1318,$J29,Calculations!AA$15:AA$1318) -> 0 | Y29: =SUMIF(Calculations!$I$15:$I$1318,$J29,Calculations!AB$15:AB$1318) -> 0 | Z29: =SUMIF(Calculations!$I$15:$I$1318,$J29,Calculations!AC$15:AC$1318) -> 0 | AA29: =SUMIF(Calculations!$I$15:$I$1318,$J29,Calculations!AD$15:AD$1318) -> 0 | AB29: =SUMIF(Calculations!$I$15:$I$1318,$J29,Calculations!AE$15:AE$1318) -> 0 | AC29: =SUMIF(Calculations!$I$15:$I$1318,$J29,Calculations!AF$15:AF$1318) -> 0 | AD29: =SUMIF(Calculations!$I$15:$I$1318,$J29,Calculations!AG$15:AG$1318) -> 0 | AE29: =SUMIF(Calculations!$I$15:$I$1318,$J29,Calculations!AH$15:AH$1318) -> 0 | AF29: =SUMIF(Calculations!$I$15:$I$1318,$J29,Calculations!AI$15:AI$1318) -> 0 | AG29: =SUMIF(Calculations!$I$15:$I$1318,$J29,Calculations!AJ$15:AJ$1318) -> 0 | AH29: =SUMIF(Calculations!$I$15:$I$1318,$J29,Calculations!AK$15:AK$1318) -> 0 | AI29: =SUMIF(Calculations!$I$15:$I$1318,$J29,Calculations!AL$15:AL$1318) -> 0 | AJ29: =SUMIF(Calculations!$I$15:$I$1318,$J29,Calculations!AM$15:AM$1318) -> 0
I30: Consumables | J30: 1Consumables | L30: 0 | O30: =SUMIF(Calculations!$I$15:$I$1318,$J30,Calculations!R$15:R$1318) -> 0 | P30: =SUMIF(Calculations!$I$15:$I$1318,$J30,Calculations!S$15:S$1318) -> 0 | Q30: =SUMIF(Calculations!$I$15:$I$1318,$J30,Calculations!T$15:T$1318) -> 0 | R30: =SUMIF(Calculations!$I$15:$I$1318,$J30,Calculations!U$15:U$1318) -> 0 | S30: =SUMIF(Calculations!$I$15:$I$1318,$J30,Calculations!V$15:V$1318) -> 0 | T30: =SUMIF(Calculations!$I$15:$I$1318,$J30,Calculations!W$15:W$1318) -> 0 | U30: =SUMIF(Calculations!$I$15:$I$1318,$J30,Calculations!X$15:X$1318) -> 0 | V30: =SUMIF(Calculations!$I$15:$I$1318,$J30,Calculations!Y$15:Y$1318) -> 0 | W30: =SUMIF(Calculations!$I$15:$I$1318,$J30,Calculations!Z$15:Z$1318) -> 0 | X30: =SUMIF(Calculations!$I$15:$I$1318,$J30,Calculations!AA$15:AA$1318) -> 0 | Y30: =SUMIF(Calculations!$I$15:$I$1318,$J30,Calculations!AB$15:AB$1318) -> 0 | Z30: =SUMIF(Calculations!$I$15:$I$1318,$J30,Calculations!AC$15:AC$1318) -> 0 | AA30: =SUMIF(Calculations!$I$15:$I$1318,$J30,Calculations!AD$15:AD$1318) -> 0 | AB30: =SUMIF(Calculations!$I$15:$I$1318,$J30,Calculations!AE$15:AE$1318) -> 0 | AC30: =SUMIF(Calculations!$I$15:$I$1318,$J30,Calculations!AF$15:AF$1318) -> 0 | AD30: =SUMIF(Calculations!$I$15:$I$1318,$J30,Calculations!AG$15:AG$1318) -> 0 | AE30: =SUMIF(Calculations!$I$15:$I$1318,$J30,Calculations!AH$15:AH$1318) -> 0 | AF30: =SUMIF(Calculations!$I$15:$I$1318,$J30,Calculations!AI$15:AI$1318) -> 0 | AG30: =SUMIF(Calculations!$I$15:$I$1318,$J30,Calculations!AJ$15:AJ$1318) -> 0 | AH30: =SUMIF(Calculations!$I$15:$I$1318,$J30,Calculations!AK$15:AK$1318) -> 0 | AI30: =SUMIF(Calculations!$I$15:$I$1318,$J30,Calculations!AL$15:AL$1318) -> 0 | AJ30: =SUMIF(Calculations!$I$15:$I$1318,$J30,Calculations!AM$15:AM$1318) -> 0
I31: Effluent | J31: 1Effluent | L31: 0 | O31: =SUMIF(Calculations!$I$15:$I$1318,$J31,Calculations!R$15:R$1318) -> 0 | P31: =SUMIF(Calculations!$I$15:$I$1318,$J31,Calculations!S$15:S$1318) -> 0 | Q31: =SUMIF(Calculations!$I$15:$I$1318,$J31,Calculations!T$15:T$1318) -> 0 | R31: =SUMIF(Calculations!$I$15:$I$1318,$J31,Calculations!U$15:U$1318) -> 0 | S31: =SUMIF(Calculations!$I$15:$I$1318,$J31,Calculations!V$15:V$1318) -> 0 | T31: =SUMIF(Calculations!$I$15:$I$1318,$J31,Calculations!W$15:W$1318) -> 0 | U31: =SUMIF(Calculations!$I$15:$I$1318,$J31,Calculations!X$15:X$1318) -> 0 | V31: =SUMIF(Calculations!$I$15:$I$1318,$J31,Calculations!Y$15:Y$1318) -> 0 | W31: =SUMIF(Calculations!$I$15:$I$1318,$J31,Calculations!Z$15:Z$1318) -> 0 | X31: =SUMIF(Calculations!$I$15:$I$1318,$J31,Calculations!AA$15:AA$1318) -> 0 | Y31: =SUMIF(Calculations!$I$15:$I$1318,$J31,Calculations!AB$15:AB$1318) -> 0 | Z31: =SUMIF(Calculations!$I$15:$I$1318,$J31,Calculations!AC$15:AC$1318) -> 0 | AA31: =SUMIF(Calculations!$I$15:$I$1318,$J31,Calculations!AD$15:AD$1318) -> 0 | AB31: =SUMIF(Calculations!$I$15:$I$1318,$J31,Calculations!AE$15:AE$1318) -> 0 | AC31: =SUMIF(Calculations!$I$15:$I$1318,$J31,Calculations!AF$15:AF$1318) -> 0 | AD31: =SUMIF(Calculations!$I$15:$I$1318,$J31,Calculations!AG$15:AG$1318) -> 0 | AE31: =SUMIF(Calculations!$I$15:$I$1318,$J31,Calculations!AH$15:AH$1318) -> 0 | AF31: =SUMIF(Calculations!$I$15:$I$1318,$J31,Calculations!AI$15:AI$1318) -> 0 | AG31: =SUMIF(Calculations!$I$15:$I$1318,$J31,Calculations!AJ$15:AJ$1318) -> 0 | AH31: =SUMIF(Calculations!$I$15:$I$1318,$J31,Calculations!AK$15:AK$1318) -> 0 | AI31: =SUMIF(Calculations!$I$15:$I$1318,$J31,Calculations!AL$15:AL$1318) -> 0 | AJ31: =SUMIF(Calculations!$I$15:$I$1318,$J31,Calculations!AM$15:AM$1318) -> 0
I32: Laboratory | J32: 1Laboratory | L32: 0 | O32: =SUMIF(Calculations!$I$15:$I$1318,$J32,Calculations!R$15:R$1318) -> 0 | P32: =SUMIF(Calculations!$I$15:$I$1318,$J32,Calculations!S$15:S$1318) -> 0 | Q32: =SUMIF(Calculations!$I$15:$I$1318,$J32,Calculations!T$15:T$1318) -> 0 | R32: =SUMIF(Calculations!$I$15:$I$1318,$J32,Calculations!U$15:U$1318) -> 0 | S32: =SUMIF(Calculations!$I$15:$I$1318,$J32,Calculations!V$15:V$1318) -> 0 | T32: =SUMIF(Calculations!$I$15:$I$1318,$J32,Calculations!W$15:W$1318) -> 0 | U32: =SUMIF(Calculations!$I$15:$I$1318,$J32,Calculations!X$15:X$1318) -> 0 | V32: =SUMIF(Calculations!$I$15:$I$1318,$J32,Calculations!Y$15:Y$1318) -> 0 | W32: =SUMIF(Calculations!$I$15:$I$1318,$J32,Calculations!Z$15:Z$1318) -> 0 | X32: =SUMIF(Calculations!$I$15:$I$1318,$J32,Calculations!AA$15:AA$1318) -> 0 | Y32: =SUMIF(Calculations!$I$15:$I$1318,$J32,Calculations!AB$15:AB$1318) -> 0 | Z32: =SUMIF(Calculations!$I$15:$I$1318,$J32,Calculations!AC$15:AC$1318) -> 0 | AA32: =SUMIF(Calculations!$I$15:$I$1318,$J32,Calculations!AD$15:AD$1318) -> 0 | AB32: =SUMIF(Calculations!$I$15:$I$1318,$J32,Calculations!AE$15:AE$1318) -> 0 | AC32: =SUMIF(Calculations!$I$15:$I$1318,$J32,Calculations!AF$15:AF$1318) -> 0 | AD32: =SUMIF(Calculations!$I$15:$I$1318,$J32,Calculations!AG$15:AG$1318) -> 0 | AE32: =SUMIF(Calculations!$I$15:$I$1318,$J32,Calculations!AH$15:AH$1318) -> 0 | AF32: =SUMIF(Calculations!$I$15:$I$1318,$J32,Calculations!AI$15:AI$1318) -> 0 | AG32: =SUMIF(Calculations!$I$15:$I$1318,$J32,Calculations!AJ$15:AJ$1318) -> 0 | AH32: =SUMIF(Calculations!$I$15:$I$1318,$J32,Calculations!AK$15:AK$1318) -> 0 | AI32: =SUMIF(Calculations!$I$15:$I$1318,$J32,Calculations!AL$15:AL$1318) -> 0 | AJ32: =SUMIF(Calculations!$I$15:$I$1318,$J32,Calculations!AM$15:AM$1318) -> 0
I33: Variable operating costs | L33: =SUM(L26:L32) -> 487158.3532 | O33: =SUM(O26:O32) -> 0 | P33: 0 | Q33: 3076.248156 | R33: 5146.36727 | S33: 31315.54931 | T33: 55397.8478 | U33: 69687.45995 | V33: 65133.7245 | W33: 61063.76766 | X33: 54472.72251 | Y33: 44658.89344 | Z33: 41926.03782 | AA33: 34581.93852 | AB33: 20697.79621 | AC33: 0 | AD33: 0 | AE33: 0 | AF33: 0 | AG33: 0 | AH33: 0 | AI33: 0 | AJ33: 0
I34: Wages & ERE | J34: 1Wages & ERE | L34: =SUM(O34:AJ34) -> 0 | O34: =SUMIF(Calculations!$I$15:$I$1318,$J34,Calculations!R$15:R$1318) -> 0 | P34: =SUMIF(Calculations!$I$15:$I$1318,$J34,Calculations!S$15:S$1318) -> 0 | Q34: =SUMIF(Calculations!$I$15:$I$1318,$J34,Calculations!T$15:T$1318) -> 0 | R34: =SUMIF(Calculations!$I$15:$I$1318,$J34,Calculations!U$15:U$1318) -> 0 | S34: =SUMIF(Calculations!$I$15:$I$1318,$J34,Calculations!V$15:V$1318) -> 0 | T34: =SUMIF(Calculations!$I$15:$I$1318,$J34,Calculations!W$15:W$1318) -> 0 | U34: =SUMIF(Calculations!$I$15:$I$1318,$J34,Calculations!X$15:X$1318) -> 0 | V34: =SUMIF(Calculations!$I$15:$I$1318,$J34,Calculations!Y$15:Y$1318) -> 0 | W34: =SUMIF(Calculations!$I$15:$I$1318,$J34,Calculations!Z$15:Z$1318) -> 0 | X34: =SUMIF(Calculations!$I$15:$I$1318,$J34,Calculations!AA$15:AA$1318) -> 0 | Y34: =SUMIF(Calculations!$I$15:$I$1318,$J34,Calculations!AB$15:AB$1318) -> 0 | Z34: =SUMIF(Calculations!$I$15:$I$1318,$J34,Calculations!AC$15:AC$1318) -> 0 | AA34: =SUMIF(Calculations!$I$15:$I$1318,$J34,Calculations!AD$15:AD$1318) -> 0 | AB34: =SUMIF(Calculations!$I$15:$I$1318,$J34,Calculations!AE$15:AE$1318) -> 0 | AC34: =SUMIF(Calculations!$I$15:$I$1318,$J34,Calculations!AF$15:AF$1318) -> 0 | AD34: =SUMIF(Calculations!$I$15:$I$1318,$J34,Calculations!AG$15:AG$1318) -> 0 | AE34: =SUMIF(Calculations!$I$15:$I$1318,$J34,Calculations!AH$15:AH$1318) -> 0 | AF34: =SUMIF(Calculations!$I$15:$I$1318,$J34,Calculations!AI$15:AI$1318) -> 0 | AG34: =SUMIF(Calculations!$I$15:$I$1318,$J34,Calculations!AJ$15:AJ$1318) -> 0 | AH34: =SUMIF(Calculations!$I$15:$I$1318,$J34,Calculations!AK$15:AK$1318) -> 0 | AI34: =SUMIF(Calculations!$I$15:$I$1318,$J34,Calculations!AL$15:AL$1318) -> 0 | AJ34: =SUMIF(Calculations!$I$15:$I$1318,$J34,Calculations!AM$15:AM$1318) -> 0
I35: Repairs & Maintenance | J35: 1Repairs & Maintenance | L35: =SUM(O35:AJ35) -> 0 | O35: =SUMIF(Calculations!$I$15:$I$1318,$J35,Calculations!R$15:R$1318) -> 0 | P35: =SUMIF(Calculations!$I$15:$I$1318,$J35,Calculations!S$15:S$1318) -> 0 | Q35: =SUMIF(Calculations!$I$15:$I$1318,$J35,Calculations!T$15:T$1318) -> 0 | R35: =SUMIF(Calculations!$I$15:$I$1318,$J35,Calculations!U$15:U$1318) -> 0 | S35: =SUMIF(Calculations!$I$15:$I$1318,$J35,Calculations!V$15:V$1318) -> 0 | T35: =SUMIF(Calculations!$I$15:$I$1318,$J35,Calculations!W$15:W$1318) -> 0 | U35: =SUMIF(Calculations!$I$15:$I$1318,$J35,Calculations!X$15:X$1318) -> 0 | V35: =SUMIF(Calculations!$I$15:$I$1318,$J35,Calculations!Y$15:Y$1318) -> 0 | W35: =SUMIF(Calculations!$I$15:$I$1318,$J35,Calculations!Z$15:Z$1318) -> 0 | X35: =SUMIF(Calculations!$I$15:$I$1318,$J35,Calculations!AA$15:AA$1318) -> 0 | Y35: =SUMIF(Calculations!$I$15:$I$1318,$J35,Calculations!AB$15:AB$1318) -> 0 | Z35: =SUMIF(Calculations!$I$15:$I$1318,$J35,Calculations!AC$15:AC$1318) -> 0 | AA35: =SUMIF(Calculations!$I$15:$I$1318,$J35,Calculations!AD$15:AD$1318) -> 0 | AB35: =SUMIF(Calculations!$I$15:$I$1318,$J35,Calculations!AE$15:AE$1318) -> 0 | AC35: =SUMIF(Calculations!$I$15:$I$1318,$J35,Calculations!AF$15:AF$1318) -> 0 | AD35: =SUMIF(Calculations!$I$15:$I$1318,$J35,Calculations!AG$15:AG$1318) -> 0 | AE35: =SUMIF(Calculations!$I$15:$I$1318,$J35,Calculations!AH$15:AH$1318) -> 0 | AF35: =SUMIF(Calculations!$I$15:$I$1318,$J35,Calculations!AI$15:AI$1318) -> 0 | AG35: =SUMIF(Calculations!$I$15:$I$1318,$J35,Calculations!AJ$15:AJ$1318) -> 0 | AH35: =SUMIF(Calculations!$I$15:$I$1318,$J35,Calculations!AK$15:AK$1318) -> 0 | AI35: =SUMIF(Calculations!$I$15:$I$1318,$J35,Calculations!AL$15:AL$1318) -> 0 | AJ35: =SUMIF(Calculations!$I$15:$I$1318,$J35,Calculations!AM$15:AM$1318) -> 0
I36: Energy - Fixed | J36: =$J$3&I36 -> 1Energy - Fixed | L36: =SUM(O36:AJ36) -> 0 | O36: =SUMIF(Calculations!$I$15:$I$1318,$J36,Calculations!R$15:R$1318) -> 0 | P36: =SUMIF(Calculations!$I$15:$I$1318,$J36,Calculations!S$15:S$1318) -> 0 | Q36: =SUMIF(Calculations!$I$15:$I$1318,$J36,Calculations!T$15:T$1318) -> 0 | R36: =SUMIF(Calculations!$I$15:$I$1318,$J36,Calculations!U$15:U$1318) -> 0 | S36: =SUMIF(Calculations!$I$15:$I$1318,$J36,Calculations!V$15:V$1318) -> 0 | T36: =SUMIF(Calculations!$I$15:$I$1318,$J36,Calculations!W$15:W$1318) -> 0 | U36: =SUMIF(Calculations!$I$15:$I$1318,$J36,Calculations!X$15:X$1318) -> 0 | V36: =SUMIF(Calculations!$I$15:$I$1318,$J36,Calculations!Y$15:Y$1318) -> 0 | W36: =SUMIF(Calculations!$I$15:$I$1318,$J36,Calculations!Z$15:Z$1318) -> 0 | X36: =SUMIF(Calculations!$I$15:$I$1318,$J36,Calculations!AA$15:AA$1318) -> 0 | Y36: =SUMIF(Calculations!$I$15:$I$1318,$J36,Calculations!AB$15:AB$1318) -> 0 | Z36: =SUMIF(Calculations!$I$15:$I$1318,$J36,Calculations!AC$15:AC$1318) -> 0 | AA36: =SUMIF(Calculations!$I$15:$I$1318,$J36,Calculations!AD$15:AD$1318) -> 0 | AB36: =SUMIF(Calculations!$I$15:$I$1318,$J36,Calculations!AE$15:AE$1318) -> 0 | AC36: =SUMIF(Calculations!$I$15:$I$1318,$J36,Calculations!AF$15:AF$1318) -> 0 | AD36: =SUMIF(Calculations!$I$15:$I$1318,$J36,Calculations!AG$15:AG$1318) -> 0 | AE36: =SUMIF(Calculations!$I$15:$I$1318,$J36,Calculations!AH$15:AH$1318) -> 0 | AF36: =SUMIF(Calculations!$I$15:$I$1318,$J36,Calculations!AI$15:AI$1318) -> 0 | AG36: =SUMIF(Calculations!$I$15:$I$1318,$J36,Calculations!AJ$15:AJ$1318) -> 0 | AH36: =SUMIF(Calculations!$I$15:$I$1318,$J36,Calculations!AK$15:AK$1318) -> 0 | AI36: =SUMIF(Calculations!$I$15:$I$1318,$J36,Calculations!AL$15:AL$1318) -> 0 | AJ36: =SUMIF(Calculations!$I$15:$I$1318,$J36,Calculations!AM$15:AM$1318) -> 0
I37: Site Overheads | J37: 1Site Overheads | L37: =SUM(O37:AJ37) -> 388994.6468 | O37: =SUMIF(Calculations!$I$15:$I$1318,$J37,Calculations!R$15:R$1318) -> 0 | P37: =SUMIF(Calculations!$I$15:$I$1318,$J37,Calculations!S$15:S$1318) -> 0 | Q37: =SUMIF(Calculations!$I$15:$I$1318,$J37,Calculations!T$15:T$1318) -> 37108.81636 | R37: =SUMIF(Calculations!$I$15:$I$1318,$J37,Calculations!U$15:U$1318) -> 37129.64055 | S37: =SUMIF(Calculations!$I$15:$I$1318,$J37,Calculations!V$15:V$1318) -> 34073.67954 | T37: =SUMIF(Calculations!$I$15:$I$1318,$J37,Calculations!W$15:W$1318) -> 31281.53623 | U37: =SUMIF(Calculations!$I$15:$I$1318,$J37,Calculations!X$15:X$1318) -> 31825.69876 | V37: =SUMIF(Calculations!$I$15:$I$1318,$J37,Calculations!Y$15:Y$1318) -> 30194.13315 | W37: =SUMIF(Calculations!$I$15:$I$1318,$J37,Calculations!Z$15:Z$1318) -> 30649.86711 | X37: =SUMIF(Calculations!$I$15:$I$1318,$J37,Calculations!AA$15:AA$1318) -> 29068.23646 | Y37: =SUMIF(Calculations!$I$15:$I$1318,$J37,Calculations!AB$15:AB$1318) -> 28188.95462 | Z37: =SUMIF(Calculations!$I$15:$I$1318,$J37,Calculations!AC$15:AC$1318) -> 30469.54945 | AA37: =SUMIF(Calculations!$I$15:$I$1318,$J37,Calculations!AD$15:AD$1318) -> 31898.89614 | AB37: =SUMIF(Calculations!$I$15:$I$1318,$J37,Calculations!AE$15:AE$1318) -> 37105.63847 | AC37: =SUMIF(Calculations!$I$15:$I$1318,$J37,Calculations!AF$15:AF$1318) -> 0 | AD37: =SUMIF(Calculations!$I$15:$I$1318,$J37,Calculations!AG$15:AG$1318) -> 0 | AE37: =SUMIF(Calculations!$I$15:$I$1318,$J37,Calculations!AH$15:AH$1318) -> 0 | AF37: =SUMIF(Calculations!$I$15:$I$1318,$J37,Calculations!AI$15:AI$1318) -> 0 | AG37: =SUMIF(Calculations!$I$15:$I$1318,$J37,Calculations!AJ$15:AJ$1318) -> 0 | AH37: =SUMIF(Calculations!$I$15:$I$1318,$J37,Calculations!AK$15:AK$1318) -> 0 | AI37: =SUMIF(Calculations!$I$15:$I$1318,$J37,Calculations!AL$15:AL$1318) -> 0 | AJ37: =SUMIF(Calculations!$I$15:$I$1318,$J37,Calculations!AM$15:AM$1318) -> 0
I38: Fixed operating costs | L38: =SUM(L34:L37) -> 388994.6468 | O38: =SUM(O34:O37) -> 0 | P38: =SUM(P34:P37) -> 0 | Q38: =SUM(Q34:Q37) -> 37108.81636 | R38: =SUM(R34:R37) -> 37129.64055 | S38: 34073.67954 | T38: 31281.53623 | U38: 31825.69876 | V38: 30194.13315 | W38: 30649.86711 | X38: 29068.23646 | Y38: 28188.95462 | Z38: 30469.54945 | AA38: 31898.89614 | AB38: 37105.63847 | AC38: 0 | AD38: 0 | AE38: 0 | AF38: 0 | AG38: 0 | AH38: 0 | AI38: 0 | AJ38: 0
I39: Operating Costs | L39: =L33+L38 -> 876153 | O39: =SUM(O33,O38) -> 0 | P39: =SUM(P33,P38) -> 0 | Q39: =SUM(Q33,Q38) -> 40185.06452 | R39: =SUM(R33,R38) -> 42276.00782 | S39: 65389.22885 | T39: 86679.38403 | U39: 101513.1587 | V39: 95327.85765 | W39: 91713.63477 | X39: 83540.95897 | Y39: 72847.84807 | Z39: 72395.58727 | AA39: 66480.83466 | AB39: 57803.43468 | AC39: 0 | AD39: 0 | AE39: 0 | AF39: 0 | AG39: 0 | AH39: 0 | AI39: 0 | AJ39: 0
I40: Variable supply chain costs | J40: 1Variable supply chain costs | L40: =SUM(O40:AJ40) -> 230746 | O40: =SUMIF(Calculations!$I$15:$I$1318,$J40,Calculations!R$15:R$1318) -> 0 | P40: =SUMIF(Calculations!$I$15:$I$1318,$J40,Calculations!S$15:S$1318) -> 0 | Q40: =SUMIF(Calculations!$I$15:$I$1318,$J40,Calculations!T$15:T$1318) -> 0 | R40: =SUMIF(Calculations!$I$15:$I$1318,$J40,Calculations!U$15:U$1318) -> 0 | S40: =SUMIF(Calculations!$I$15:$I$1318,$J40,Calculations!V$15:V$1318) -> 0 | T40: =SUMIF(Calculations!$I$15:$I$1318,$J40,Calculations!W$15:W$1318) -> 9843.087366 | U40: =SUMIF(Calculations!$I$15:$I$1318,$J40,Calculations!X$15:X$1318) -> 9843.087366 | V40: =SUMIF(Calculations!$I$15:$I$1318,$J40,Calculations!Y$15:Y$1318) -> 30417.97128 | W40: =SUMIF(Calculations!$I$15:$I$1318,$J40,Calculations!Z$15:Z$1318) -> 30417.97128 | X40: =SUMIF(Calculations!$I$15:$I$1318,$J40,Calculations!AA$15:AA$1318) -> 30417.97128 | Y40: =SUMIF(Calculations!$I$15:$I$1318,$J40,Calculations!AB$15:AB$1318) -> 16916.95464 | Z40: =SUMIF(Calculations!$I$15:$I$1318,$J40,Calculations!AC$15:AC$1318) -> 16916.95464 | AA40: =SUMIF(Calculations!$I$15:$I$1318,$J40,Calculations!AD$15:AD$1318) -> 16916.95464 | AB40: =SUMIF(Calculations!$I$15:$I$1318,$J40,Calculations!AE$15:AE$1318) -> 18490.4632 | AC40: =SUMIF(Calculations!$I$15:$I$1318,$J40,Calculations!AF$15:AF$1318) -> 18490.4632 | AD40: =SUMIF(Calculations!$I$15:$I$1318,$J40,Calculations!AG$15:AG$1318) -> 18490.4632 | AE40: =SUMIF(Calculations!$I$15:$I$1318,$J40,Calculations!AH$15:AH$1318) -> 4527.885969 | AF40: =SUMIF(Calculations!$I$15:$I$1318,$J40,Calculations!AI$15:AI$1318) -> 4527.885969 | AG40: =SUMIF(Calculations!$I$15:$I$1318,$J40,Calculations!AJ$15:AJ$1318) -> 4527.885969 | AH40: =SUMIF(Calculations!$I$15:$I$1318,$J40,Calculations!AK$15:AK$1318) -> 0 | AI40: =SUMIF(Calculations!$I$15:$I$1318,$J40,Calculations!AL$15:AL$1318) -> 0 | AJ40: =SUMIF(Calculations!$I$15:$I$1318,$J40,Calculations!AM$15:AM$1318) -> 0
I41: Fixed supply chain costs | J41: 1Fixed supply chain costs | L41: =SUM(O41:AJ41) -> 0 | O41: =SUMIF(Calculations!$I$15:$I$1318,$J41,Calculations!R$15:R$1318) -> 0 | P41: =SUMIF(Calculations!$I$15:$I$1318,$J41,Calculations!S$15:S$1318) -> 0 | Q41: =SUMIF(Calculations!$I$15:$I$1318,$J41,Calculations!T$15:T$1318) -> 0 | R41: =SUMIF(Calculations!$I$15:$I$1318,$J41,Calculations!U$15:U$1318) -> 0 | S41: =SUMIF(Calculations!$I$15:$I$1318,$J41,Calculations!V$15:V$1318) -> 0 | T41: =SUMIF(Calculations!$I$15:$I$1318,$J41,Calculations!W$15:W$1318) -> 0 | U41: =SUMIF(Calculations!$I$15:$I$1318,$J41,Calculations!X$15:X$1318) -> 0 | V41: =SUMIF(Calculations!$I$15:$I$1318,$J41,Calculations!Y$15:Y$1318) -> 0 | W41: =SUMIF(Calculations!$I$15:$I$1318,$J41,Calculations!Z$15:Z$1318) -> 0 | X41: =SUMIF(Calculations!$I$15:$I$1318,$J41,Calculations!AA$15:AA$1318) -> 0 | Y41: =SUMIF(Calculations!$I$15:$I$1318,$J41,Calculations!AB$15:AB$1318) -> 0 | Z41: =SUMIF(Calculations!$I$15:$I$1318,$J41,Calculations!AC$15:AC$1318) -> 0 | AA41: =SUMIF(Calculations!$I$15:$I$1318,$J41,Calculations!AD$15:AD$1318) -> 0 | AB41: =SUMIF(Calculations!$I$15:$I$1318,$J41,Calculations!AE$15:AE$1318) -> 0 | AC41: =SUMIF(Calculations!$I$15:$I$1318,$J41,Calculations!AF$15:AF$1318) -> 0 | AD41: =SUMIF(Calculations!$I$15:$I$1318,$J41,Calculations!AG$15:AG$1318) -> 0 | AE41: =SUMIF(Calculations!$I$15:$I$1318,$J41,Calculations!AH$15:AH$1318) -> 0 | AF41: =SUMIF(Calculations!$I$15:$I$1318,$J41,Calculations!AI$15:AI$1318) -> 0 | AG41: =SUMIF(Calculations!$I$15:$I$1318,$J41,Calculations!AJ$15:AJ$1318) -> 0 | AH41: =SUMIF(Calculations!$I$15:$I$1318,$J41,Calculations!AK$15:AK$1318) -> 0 | AI41: =SUMIF(Calculations!$I$15:$I$1318,$J41,Calculations!AL$15:AL$1318) -> 0 | AJ41: =SUMIF(Calculations!$I$15:$I$1318,$J41,Calculations!AM$15:AM$1318) -> 0
I42: Supply Chain | L42: =SUM(L40:L41) -> 230746 | O42: =SUM(O40:O41) -> 0 | P42: =SUM(P40:P41) -> 0 | Q42: =SUM(Q40:Q41) -> 0 | R42: 0 | S42: 0 | T42: 9843.087366 | U42: 9843.087366 | V42: 30417.97128 | W42: 30417.97128 | X42: 30417.97128 | Y42: 16916.95464 | Z42: 16916.95464 | AA42: 16916.95464 | AB42: 18490.4632 | AC42: 18490.4632 | AD42: 18490.4632 | AE42: 4527.885969 | AF42: 4527.885969 | AG42: 4527.885969 | AH42: 0 | AI42: 0 | AJ42: 0
I43: Administration | J43: 1Administration | L43: =SUM(O43:AJ43) -> 251650 | O43: =SUMIF(Calculations!$I$15:$I$1318,$J43,Calculations!R$15:R$1318) -> 0 | P43: =SUMIF(Calculations!$I$15:$I$1318,$J43,Calculations!S$15:S$1318) -> 0 | Q43: =SUMIF(Calculations!$I$15:$I$1318,$J43,Calculations!T$15:T$1318) -> 17457.15165 | R43: =SUMIF(Calculations!$I$15:$I$1318,$J43,Calculations!U$15:U$1318) -> 40643.8684 | S43: =SUMIF(Calculations!$I$15:$I$1318,$J43,Calculations!V$15:V$1318) -> 19027.51357 | T43: =SUMIF(Calculations!$I$15:$I$1318,$J43,Calculations!W$15:W$1318) -> 19414.12799 | U43: =SUMIF(Calculations!$I$15:$I$1318,$J43,Calculations!X$15:X$1318) -> 21618.63776 | V43: =SUMIF(Calculations!$I$15:$I$1318,$J43,Calculations!Y$15:Y$1318) -> 18378.18566 | W43: =SUMIF(Calculations!$I$15:$I$1318,$J43,Calculations!Z$15:Z$1318) -> 20583.24081 | X43: =SUMIF(Calculations!$I$15:$I$1318,$J43,Calculations!AA$15:AA$1318) -> 18253.85159 | Y43: =SUMIF(Calculations!$I$15:$I$1318,$J43,Calculations!AB$15:AB$1318) -> 16852.4851 | Z43: =SUMIF(Calculations!$I$15:$I$1318,$J43,Calculations!AC$15:AC$1318) -> 19809.56763 | AA43: =SUMIF(Calculations!$I$15:$I$1318,$J43,Calculations!AD$15:AD$1318) -> 19315.55981 | AB43: =SUMIF(Calculations!$I$15:$I$1318,$J43,Calculations!AE$15:AE$1318) -> 20295.81004 | AC43: =SUMIF(Calculations!$I$15:$I$1318,$J43,Calculations!AF$15:AF$1318) -> 0 | AD43: =SUMIF(Calculations!$I$15:$I$1318,$J43,Calculations!AG$15:AG$1318) -> 0 | AE43: =SUMIF(Calculations!$I$15:$I$1318,$J43,Calculations!AH$15:AH$1318) -> 0 | AF43: =SUMIF(Calculations!$I$15:$I$1318,$J43,Calculations!AI$15:AI$1318) -> 0 | AG43: =SUMIF(Calculations!$I$15:$I$1318,$J43,Calculations!AJ$15:AJ$1318) -> 0 | AH43: =SUMIF(Calculations!$I$15:$I$1318,$J43,Calculations!AK$15:AK$1318) -> 0 | AI43: =SUMIF(Calculations!$I$15:$I$1318,$J43,Calculations!AL$15:AL$1318) -> 0 | AJ43: =SUMIF(Calculations!$I$15:$I$1318,$J43,Calculations!AM$15:AM$1318) -> 0
I44: Miscellaneous costs | J44: =$J$3&I44 -> 1Miscellaneous costs | L44: =SUM(O44:AJ44) -> 0 | O44: =SUMIF(Calculations!$I$15:$I$1318,$J44,Calculations!R$15:R$1318) -> 0 | P44: =SUMIF(Calculations!$I$15:$I$1318,$J44,Calculations!S$15:S$1318) -> 0 | Q44: =SUMIF(Calculations!$I$15:$I$1318,$J44,Calculations!T$15:T$1318) -> 0 | R44: =SUMIF(Calculations!$I$15:$I$1318,$J44,Calculations!U$15:U$1318) -> 0 | S44: =SUMIF(Calculations!$I$15:$I$1318,$J44,Calculations!V$15:V$1318) -> 0 | T44: =SUMIF(Calculations!$I$15:$I$1318,$J44,Calculations!W$15:W$1318) -> 0 | U44: =SUMIF(Calculations!$I$15:$I$1318,$J44,Calculations!X$15:X$1318) -> 0 | V44: =SUMIF(Calculations!$I$15:$I$1318,$J44,Calculations!Y$15:Y$1318) -> 0 | W44: =SUMIF(Calculations!$I$15:$I$1318,$J44,Calculations!Z$15:Z$1318) -> 0 | X44: =SUMIF(Calculations!$I$15:$I$1318,$J44,Calculations!AA$15:AA$1318) -> 0 | Y44: =SUMIF(Calculations!$I$15:$I$1318,$J44,Calculations!AB$15:AB$1318) -> 0 | Z44: =SUMIF(Calculations!$I$15:$I$1318,$J44,Calculations!AC$15:AC$1318) -> 0 | AA44: =SUMIF(Calculations!$I$15:$I$1318,$J44,Calculations!AD$15:AD$1318) -> 0 | AB44: =SUMIF(Calculations!$I$15:$I$1318,$J44,Calculations!AE$15:AE$1318) -> 0 | AC44: =SUMIF(Calculations!$I$15:$I$1318,$J44,Calculations!AF$15:AF$1318) -> 0 | AD44: =SUMIF(Calculations!$I$15:$I$1318,$J44,Calculations!AG$15:AG$1318) -> 0 | AE44: =SUMIF(Calculations!$I$15:$I$1318,$J44,Calculations!AH$15:AH$1318) -> 0 | AF44: =SUMIF(Calculations!$I$15:$I$1318,$J44,Calculations!AI$15:AI$1318) -> 0 | AG44: =SUMIF(Calculations!$I$15:$I$1318,$J44,Calculations!AJ$15:AJ$1318) -> 0 | AH44: =SUMIF(Calculations!$I$15:$I$1318,$J44,Calculations!AK$15:AK$1318) -> 0 | AI44: =SUMIF(Calculations!$I$15:$I$1318,$J44,Calculations!AL$15:AL$1318) -> 0 | AJ44: =SUMIF(Calculations!$I$15:$I$1318,$J44,Calculations!AM$15:AM$1318) -> 0
I45: Depreciation Expense | J45: =$J$3&I45 -> 1Depreciation Expense | L45: =SUM(O45:AJ45) -> 266166 | O45: =SUMIF(Calculations!$I$15:$I$1318,$J45,Calculations!R$15:R$1318) -> 0 | P45: =SUMIF(Calculations!$I$15:$I$1318,$J45,Calculations!S$15:S$1318) -> 0 | Q45: =SUMIF(Calculations!$I$15:$I$1318,$J45,Calculations!T$15:T$1318) -> 0 | R45: =SUMIF(Calculations!$I$15:$I$1318,$J45,Calculations!U$15:U$1318) -> 0 | S45: =SUMIF(Calculations!$I$15:$I$1318,$J45,Calculations!V$15:V$1318) -> 0 | T45: =SUMIF(Calculations!$I$15:$I$1318,$J45,Calculations!W$15:W$1318) -> 0 | U45: =SUMIF(Calculations!$I$15:$I$1318,$J45,Calculations!X$15:X$1318) -> 0 | V45: =SUMIF(Calculations!$I$15:$I$1318,$J45,Calculations!Y$15:Y$1318) -> 0 | W45: =SUMIF(Calculations!$I$15:$I$1318,$J45,Calculations!Z$15:Z$1318) -> 0 | X45: =SUMIF(Calculations!$I$15:$I$1318,$J45,Calculations!AA$15:AA$1318) -> 0 | Y45: =SUMIF(Calculations!$I$15:$I$1318,$J45,Calculations!AB$15:AB$1318) -> 0 | Z45: =SUMIF(Calculations!$I$15:$I$1318,$J45,Calculations!AC$15:AC$1318) -> 0 | AA45: =SUMIF(Calculations!$I$15:$I$1318,$J45,Calculations!AD$15:AD$1318) -> 0 | AB45: =SUMIF(Calculations!$I$15:$I$1318,$J45,Calculations!AE$15:AE$1318) -> 266166 | AC45: =SUMIF(Calculations!$I$15:$I$1318,$J45,Calculations!AF$15:AF$1318) -> 0 | AD45: =SUMIF(Calculations!$I$15:$I$1318,$J45,Calculations!AG$15:AG$1318) -> 0 | AE45: =SUMIF(Calculations!$I$15:$I$1318,$J45,Calculations!AH$15:AH$1318) -> 0 | AF45: =SUMIF(Calculations!$I$15:$I$1318,$J45,Calculations!AI$15:AI$1318) -> 0 | AG45: =SUMIF(Calculations!$I$15:$I$1318,$J45,Calculations!AJ$15:AJ$1318) -> 0 | AH45: =SUMIF(Calculations!$I$15:$I$1318,$J45,Calculations!AK$15:AK$1318) -> 0 | AI45: =SUMIF(Calculations!$I$15:$I$1318,$J45,Calculations!AL$15:AL$1318) -> 0 | AJ45: =SUMIF(Calculations!$I$15:$I$1318,$J45,Calculations!AM$15:AM$1318) -> 0
I46: Inventory Movement | J46: =$J$3&I46 -> 1Inventory Movement | L46: =SUM(O46:AJ46) -> -1.89174898e-09 | O46: =SUMIF(Calculations!$I$15:$I$1318,$J46,Calculations!R$15:R$1318) -> 0 | P46: =SUMIF(Calculations!$I$15:$I$1318,$J46,Calculations!S$15:S$1318) -> 0 | Q46: =SUMIF(Calculations!$I$15:$I$1318,$J46,Calculations!T$15:T$1318) -> -136797.5555 | R46: =SUMIF(Calculations!$I$15:$I$1318,$J46,Calculations!U$15:U$1318) -> -191377.5818 | S46: =SUMIF(Calculations!$I$15:$I$1318,$J46,Calculations!V$15:V$1318) -> -546345.6361 | T46: =SUMIF(Calculations!$I$15:$I$1318,$J46,Calculations!W$15:W$1318) -> -352261.4119 | U46: =SUMIF(Calculations!$I$15:$I$1318,$J46,Calculations!X$15:X$1318) -> -751242.4266 | V46: =SUMIF(Calculations!$I$15:$I$1318,$J46,Calculations!Y$15:Y$1318) -> -22801.10043 | W46: =SUMIF(Calculations!$I$15:$I$1318,$J46,Calculations!Z$15:Z$1318) -> 24685.97177 | X46: =SUMIF(Calculations!$I$15:$I$1318,$J46,Calculations!AA$15:AA$1318) -> 147928.35 | Y46: =SUMIF(Calculations!$I$15:$I$1318,$J46,Calculations!AB$15:AB$1318) -> -152245.6174 | Z46: =SUMIF(Calculations!$I$15:$I$1318,$J46,Calculations!AC$15:AC$1318) -> -123031.4787 | AA46: =SUMIF(Calculations!$I$15:$I$1318,$J46,Calculations!AD$15:AD$1318) -> -20159.7166 | AB46: =SUMIF(Calculations!$I$15:$I$1318,$J46,Calculations!AE$15:AE$1318) -> 229439.9107 | AC46: =SUMIF(Calculations!$I$15:$I$1318,$J46,Calculations!AF$15:AF$1318) -> 657431.1664 | AD46: =SUMIF(Calculations!$I$15:$I$1318,$J46,Calculations!AG$15:AG$1318) -> 679405.1719 | AE46: =SUMIF(Calculations!$I$15:$I$1318,$J46,Calculations!AH$15:AH$1318) -> 172657.7451 | AF46: =SUMIF(Calculations!$I$15:$I$1318,$J46,Calculations!AI$15:AI$1318) -> 192357.1045 | AG46: =SUMIF(Calculations!$I$15:$I$1318,$J46,Calculations!AJ$15:AJ$1318) -> 192357.1045 | AH46: =SUMIF(Calculations!$I$15:$I$1318,$J46,Calculations!AK$15:AK$1318) -> 0 | AI46: =SUMIF(Calculations!$I$15:$I$1318,$J46,Calculations!AL$15:AL$1318) -> 0 | AJ46: =SUMIF(Calculations!$I$15:$I$1318,$J46,Calculations!AM$15:AM$1318) -> 0
I47: Non-Milk Expenses | L47: =SUM(L22:L24,L39,L42:L46) -> 2383396.469 | O47: =SUM(O22:O24,O39,O42:O46) -> 0 | P47: 0 | Q47: -61270.91961 | R47: -87216.67679 | S47: -408936.6086 | T47: -160781.5715 | U47: -524485.2584 | V47: 211884.2088 | W47: 251923.3633 | X47: 355198.4429 | Y47: 13718.02493 | Z47: 48066.31679 | AA47: 142412.5265 | AB47: 638781.0519 | AC47: 684850.5719 | AD47: 706824.5774 | AE47: 177676.5667 | AF47: 197375.9262 | AG47: 197375.9262 | AH47: 0 | AI47: 0 | AJ47: 0
I49: Cost of Milk | J49: =$J$3&I49 -> 1Cost of Milk | L49: =SUM(O49:AJ49) -> 6101389.324 | O49: =SUMIF(Calculations!$I$15:$I$1318,$J49,Calculations!R$15:R$1318) -> 0 | P49: =SUMIF(Calculations!$I$15:$I$1318,$J49,Calculations!S$15:S$1318) -> 0 | Q49: =SUMIF(Calculations!$I$15:$I$1318,$J49,Calculations!T$15:T$1318) -> 39136.34198 | R49: =SUMIF(Calculations!$I$15:$I$1318,$J49,Calculations!U$15:U$1318) -> 64579.74213 | S49: =SUMIF(Calculations!$I$15:$I$1318,$J49,Calculations!V$15:V$1318) -> 392504.9916 | T49: =SUMIF(Calculations!$I$15:$I$1318,$J49,Calculations!W$15:W$1318) -> 693882.993 | U49: =SUMIF(Calculations!$I$15:$I$1318,$J49,Calculations!X$15:X$1318) -> 866883.4781 | V49: =SUMIF(Calculations!$I$15:$I$1318,$J49,Calculations!Y$15:Y$1318) -> 813042.5142 | W49: =SUMIF(Calculations!$I$15:$I$1318,$J49,Calculations!Z$15:Z$1318) -> 761744.5053 | X49: =SUMIF(Calculations!$I$15:$I$1318,$J49,Calculations!AA$15:AA$1318) -> 681789.9469 | Y49: =SUMIF(Calculations!$I$15:$I$1318,$J49,Calculations!AB$15:AB$1318) -> 561349.8462 | Z49: =SUMIF(Calculations!$I$15:$I$1318,$J49,Calculations!AC$15:AC$1318) -> 529956.4134 | AA49: =SUMIF(Calculations!$I$15:$I$1318,$J49,Calculations!AD$15:AD$1318) -> 435389.5999 | AB49: =SUMIF(Calculations!$I$15:$I$1318,$J49,Calculations!AE$15:AE$1318) -> 261128.9514 | AC49: =SUMIF(Calculations!$I$15:$I$1318,$J49,Calculations!AF$15:AF$1318) -> 0 | AD49: =SUMIF(Calculations!$I$15:$I$1318,$J49,Calculations!AG$15:AG$1318) -> 0 | AE49: =SUMIF(Calculations!$I$15:$I$1318,$J49,Calculations!AH$15:AH$1318) -> 0 | AF49: =SUMIF(Calculations!$I$15:$I$1318,$J49,Calculations!AI$15:AI$1318) -> 0 | AG49: =SUMIF(Calculations!$I$15:$I$1318,$J49,Calculations!AJ$15:AJ$1318) -> 0 | AH49: =SUMIF(Calculations!$I$15:$I$1318,$J49,Calculations!AK$15:AK$1318) -> 0 | AI49: =SUMIF(Calculations!$I$15:$I$1318,$J49,Calculations!AL$15:AL$1318) -> 0 | AJ49: =SUMIF(Calculations!$I$15:$I$1318,$J49,Calculations!AM$15:AM$1318) -> 0
I51: EBIT | J51: =$J$3&I51 -> 1EBIT | L51: =L19-L47-L49 -> 649170.0016 | O51: =O19-O47-O49 -> 0 | P51: 0 | Q51: 22134.57763 | R51: 22636.93466 | S51: 16431.617 | T51: -177252.6959 | U51: 13450.50597 | V51: 162066.4383 | W51: 173325.2927 | X51: 150004.7714 | Y51: 134555.4422 | Z51: 131600.5832 | AA51: 131821.187 | AB51: -177737.8494 | AC51: 37321.58196 | AD51: 15347.57649 | AE51: 10954.25242 | AF51: -8745.107029 | AG51: -8745.107029 | AH51: 0 | AI51: 0 | AJ51: 0
I53: Tax Expense | J53: =$J$3&I53 -> 1Tax Expense | L53: =SUM(O53:AJ53) -> 168591.3188 | O53: =SUMIF(Calculations!$I$15:$I$1318,$J53,Calculations!R$15:R$1318) -> 0 | P53: =SUMIF(Calculations!$I$15:$I$1318,$J53,Calculations!S$15:S$1318) -> 0 | Q53: =SUMIF(Calculations!$I$15:$I$1318,$J53,Calculations!T$15:T$1318) -> 14049.27656 | R53: =SUMIF(Calculations!$I$15:$I$1318,$J53,Calculations!U$15:U$1318) -> 14049.27656 | S53: =SUMIF(Calculations!$I$15:$I$1318,$J53,Calculations!V$15:V$1318) -> 14049.27656 | T53: =SUMIF(Calculations!$I$15:$I$1318,$J53,Calculations!W$15:W$1318) -> 14049.27656 | U53: =SUMIF(Calculations!$I$15:$I$1318,$J53,Calculations!X$15:X$1318) -> 14049.27656 | V53: =SUMIF(Calculations!$I$15:$I$1318,$J53,Calculations!Y$15:Y$1318) -> 14049.27656 | W53: =SUMIF(Calculations!$I$15:$I$1318,$J53,Calculations!Z$15:Z$1318) -> 14049.27656 | X53: =SUMIF(Calculations!$I$15:$I$1318,$J53,Calculations!AA$15:AA$1318) -> 14049.27656 | Y53: =SUMIF(Calculations!$I$15:$I$1318,$J53,Calculations!AB$15:AB$1318) -> 14049.27656 | Z53: =SUMIF(Calculations!$I$15:$I$1318,$J53,Calculations!AC$15:AC$1318) -> 14049.27656 | AA53: =SUMIF(Calculations!$I$15:$I$1318,$J53,Calculations!AD$15:AD$1318) -> 14049.27656 | AB53: =SUMIF(Calculations!$I$15:$I$1318,$J53,Calculations!AE$15:AE$1318) -> 14049.27656 | AC53: =SUMIF(Calculations!$I$15:$I$1318,$J53,Calculations!AF$15:AF$1318) -> 0 | AD53: =SUMIF(Calculations!$I$15:$I$1318,$J53,Calculations!AG$15:AG$1318) -> 0 | AE53: =SUMIF(Calculations!$I$15:$I$1318,$J53,Calculations!AH$15:AH$1318) -> 0 | AF53: =SUMIF(Calculations!$I$15:$I$1318,$J53,Calculations!AI$15:AI$1318) -> 0 | AG53: =SUMIF(Calculations!$I$15:$I$1318,$J53,Calculations!AJ$15:AJ$1318) -> 0 | AH53: =SUMIF(Calculations!$I$15:$I$1318,$J53,Calculations!AK$15:AK$1318) -> 0 | AI53: =SUMIF(Calculations!$I$15:$I$1318,$J53,Calculations!AL$15:AL$1318) -> 0 | AJ53: =SUMIF(Calculations!$I$15:$I$1318,$J53,Calculations!AM$15:AM$1318) -> 0
I55: NOPLAT | L55: =L51-L53 -> 480578.6828 | O55: =O51-O53 -> 0 | P55: =P51-P53 -> 0 | Q55: =Q51-Q53 -> 8085.301069 | R55: 8587.658097 | S55: 2382.340436 | T55: -191301.9724 | U55: -598.7705914 | V55: 148017.1617 | W55: 159276.0161 | X55: 135955.4948 | Y55: 120506.1657 | Z55: 117551.3066 | AA55: 117771.9104 | AB55: -191787.126 | AC55: 37321.58196 | AD55: 15347.57649 | AE55: 10954.25242 | AF55: -8745.107029 | AG55: -8745.107029 | AH55: 0 | AI55: 0 | AJ55: 0
I57: Capital Charge | J57: =$J$3&I57 -> 1Capital Charge | L57: =L67 -> 480578.6828 | O57: =O67 -> 0 | P57: =P67 -> 0 | Q57: =Q67 -> 75.10563672 | R57: 500.6162054 | S57: 1248.605342 | T57: 2266.753304 | U57: 3859.069479 | V57: 6056.682318 | W57: 9408.257292 | X57: 8648.15161 | Y57: 7863.552239 | Z57: 6973.124355 | AA57: 7252.277895 | AB57: 415121.2356 | AC57: 7352.149867 | AD57: 5470.810873 | AE57: 2466.578763 | AF57: 826.7471099 | AG57: 1057.877932 | AH57: 817.8896888 | AI57: 4.140328684e-12 | AJ57: 4.140328684e-12
I59: Capital Base
I61: Capital Charge Rate | J61: =$J$3&I61 -> 1Capital Charge Rate | O61: =Global!$O$39 -> 0.004788517365 | P61: =Global!$O$39 -> 0.004788517365 | Q61: =Global!$O$39 -> 0.004788517365 | R61: =Q61 -> 0.004788517365 | S61: 0.004788517365 | T61: 0.004788517365 | U61: 0.004788517365 | V61: 0.004788517365 | W61: 0.004788517365 | X61: 0.004788517365 | Y61: 0.004788517365 | Z61: 0.004788517365 | AA61: 0.004788517365 | AB61: 0.004788517365 | AC61: 0.004788517365 | AD61: 0.004788517365 | AE61: 0.004788517365 | AF61: 0.004788517365 | AG61: 0.004788517365 | AH61: 0.004788517365 | AI61: 0.004788517365 | AJ61: 0.004788517365
I62: Capital Charge on Fixed Assets | L62: =Calculations!N1192 -> 407477.0041 | O62: =Calculations!R1192 -> 0 | P62: =Calculations!S1192 -> 0 | Q62: =Calculations!T1192 -> 0 | R62: =Calculations!U1192 -> 0 | S62: =Calculations!V1192 -> 0 | T62: =Calculations!W1192 -> 0 | U62: =Calculations!X1192 -> 0 | V62: =Calculations!Y1192 -> 0 | W62: =Calculations!Z1192 -> 0 | X62: =Calculations!AA1192 -> 0 | Y62: =Calculations!AB1192 -> 0 | Z62: =Calculations!AC1192 -> 0 | AA62: =Calculations!AD1192 -> 0 | AB62: =Calculations!AE1192 -> 407477.0041 | AC62: =Calculations!AF1192 -> 0 | AD62: =Calculations!AG1192 -> 0
I64: 12 Month Average | L64: =SUM(O64:AJ64)/12 -> 1388538.374 | O64: =Calculations!R1204 -> 0 | P64: =Calculations!S1204 -> 0 | Q64: =Calculations!T1204 -> 15684.52842 | R64: =Calculations!U1204 -> 104545.1373 | S64: =Calculations!V1204 -> 260749.8829 | T64: =Calculations!W1204 -> 473372.6811 | U64: =Calculations!X1204 -> 805900.6964 | V64: =Calculations!Y1204 -> 1264834.573 | W64: =Calculations!Z1204 -> 1964753.717 | X64: =Calculations!AA1204 -> 1806018.638 | Y64: =Calculations!AB1204 -> 1642168.471 | Z64: =Calculations!AC1204 -> 1456217.828 | AA64: =Calculations!AD1204 -> 1514514.273 | AB64: =Calculations!AE1204 -> 1596367.077 | AC64: =Calculations!AF1204 -> 1535370.827 | AD64: =Calculations!AG1204 -> 1142485.337 | AE64: =Calculations!AH1204 -> 515102.8126 | AF64: =Calculations!AI1204 -> 172652.002 | AG64: =Calculations!AJ1204 -> 220919.7235 | AH64: =Calculations!AK1204 -> 170802.2811 | AI64: =Calculations!AL1204 -> 8.646368737e-10 | AJ64: =Calculations!AM1204 -> 8.646368737e-10
I65: Capital Charge on Net Working Capital | L65: =SUM(O65:AJ65) -> 79788.48138 | O65: =O61*O64 -> 0 | P65: =P61*P64 -> 0 | Q65: =Q61*Q64 -> 75.10563672 | R65: 500.6162054 | S65: 1248.605342 | T65: 2266.753304 | U65: 3859.069479 | V65: 6056.682318 | W65: 9408.257292 | X65: 8648.15161 | Y65: 7863.552239 | Z65: 6973.124355 | AA65: 7252.277895 | AB65: 7644.231472 | AC65: 7352.149867 | AD65: 5470.810873 | AE65: 2466.578763 | AF65: 826.7471099 | AG65: 1057.877932 | AH65: 817.8896888 | AI65: 4.140328684e-12 | AJ65: 4.140328684e-12
I66: Time Value of Money Adjustment | L66: =L55-L62-L65 -> -6686.802724
I67: Total Capital Charge | L67: =L65+L62+L66 -> 480578.6828 | O67: =O65+O62 -> 0 | P67: =P65+P62 -> 0 | Q67: =Q65+Q62 -> 75.10563672 | R67: 500.6162054 | S67: 1248.605342 | T67: 2266.753304 | U67: 3859.069479 | V67: 6056.682318 | W67: 9408.257292 | X67: 8648.15161 | Y67: 7863.552239 | Z67: 6973.124355 | AA67: 7252.277895 | AB67: 415121.2356 | AC67: 7352.149867 | AD67: 5470.810873 | AE67: 2466.578763 | AF67: 826.7471099 | AG67: 1057.877932 | AH67: 817.8896888 | AI67: 4.140328684e-12 | AJ67: 4.140328684e-12
I69: Per KGMS
I70: Revenue
I71: Sales | J71: =$J$3&I71 -> 1Sales | L71: =L17/L$11 -> 5.83105207
I72: Downgrade expense (excl rework) | J72: =$J$3&I72 -> 1Downgrade expense (excl rework) | L72: =L18/L$11 -> 0
I73: Net Sales | L73: =SUM(L71:L72) -> 5.83105207
I75: Non-Milk Costs
I76: Commission | J76: =$J$3&I76 -> 1Commission | L76: =L22/L$11 -> 0.06901537421
I77: Collection Costs | J77: =$J$3&I77 -> 1Collection Costs | L77: =L23/L$11 -> 0.2225849037
I78: Lactose | L78: =L24/L$11 -> 0.1927365469
I79: Operating Costs
I80: Packaging | J80: =$J$3&I80 -> 1Packaging | L80: =L26/L$11 -> 0.3109984094
I81: Energy - Variable | J81: 1Energy - Variable | L81: 0
I82: Water | J82: 1Water | L82: 0
I83: Cleaning & CIP | J83: 1Cleaning & CIP | L83: 0
I84: Consumables | J84: 1Consumables | L84: 0
I85: Effluent | J85: 1Effluent | L85: 0
I86: Laboratory | J86: 1Laboratory | L86: 0
I87: Variable operating costs | L87: 0.3109984094
I88: Wages & ERE | J88: =$J$3&I88 -> 1Wages & ERE | L88: 0
I89: Repairs & Maintenance | J89: =$J$3&I89 -> 1Repairs & Maintenance | L89: 0
I90: Energy - Fixed | J90: =$J$3&I90 -> 1Energy - Fixed | L90: 0
I91: Site Overheads | J91: =$J$3&I91 -> 1Site Overheads | L91: =L37/L$11 -> 0.2483314012
I92: Fixed operating costs | L92: 0.2483314012
I93: Operating Costs | J93: =$J$3&I93 -> 1Operating Costs | L93: 0.5593298105
I94: Variable supply chain costs | J94: 1Variable supply chain costs | L94: 0.1473065965
I95: Fixed supply chain costs | J95: 1Fixed supply chain costs | L95: 0
I96: Supply Chain | J96: 1Supply Chain | L96: 0.1473065965
I97: Administration | J97: 1Administration | L97: 0.1606515607
I98: Miscellaneous costs | J98: 1Miscellaneous costs | L98: 0
I99: Depreciation Expense | J99: 1Depreciation Expense | L99: 0.1699184713
I100: Capital Charge | J100: 1Capital Charge | L100: =L111 -> 0.3067979949
I101: Tax Expense | J101: 1Tax Expense | L101: =L53/L$11 -> 0.1076274924
I102: Total Expenses | L102: =SUM(L76:L78,L93,L96:L101) -> 1.935968751
I104: Milk Price | L104: =Calculations!$N$1249 -> 3.895083318
L105: =L104-(L73-L102) -> 0
I107: Capital Base
I108: Capital Charge on Fixed Assets | L108: =L62/L$11 -> 0.2601304059
I109: Capital Charge on Net Working Capital | L109: =L65/L$11 -> 0.05093639601
I110: Time Value of Money Adjustment | L110: =L66/L$11 -> -0.004268807047
I111: Total Capital Charge | L111: =L109+L108+L110 -> 0.3067979949
I113: Cash Flows
I115: Cash From Sales | L115: =SUM(O115:AJ115) -> 9133955.794 | O115: =Calculations!R909 -> 0 | P115: =Calculations!S909 -> 0 | Q115: =Calculations!T909 -> 0 | R115: =Calculations!U909 -> 0 | S115: =Calculations!V909 -> 0 | T115: =Calculations!W909 -> 22892.70706 | U115: =Calculations!X909 -> 366589.2424 | V115: =Calculations!Y909 -> 398577.9693 | W115: =Calculations!Z909 -> 1222819.958 | X115: =Calculations!AA909 -> 1186993.161 | Y115: =Calculations!AB909 -> 1097560.313 | Z115: =Calculations!AC909 -> 753937.3067 | AA115: =Calculations!AD909 -> 688204.8832 | AB115: =Calculations!AE909 -> 732227.8036 | AC115: =Calculations!AF909 -> 700374.9644 | AD115: =Calculations!AG909 -> 743969.3434 | AE115: =Calculations!AH909 -> 671744.2225 | AF115: =Calculations!AI909 -> 182937.4098 | AG115: =Calculations!AJ909 -> 194324.2285 | AH115: =Calculations!AK909 -> 170802.2811 | AI115: =Calculations!AL909 -> 0 | AJ115: =Calculations!AM909 -> 0
I117: Trade Creditors | L117: =SUM(O117:AJ117) -> -2117230.469 | O117: =Calculations!R1256 -> 0 | P117: =Calculations!S1256 -> -15684.52842 | Q117: =Calculations!T1256 -> -80775.3078 | R117: =Calculations!U1256 -> -110842.7749 | S117: =Calculations!V1256 -> -149558.3525 | T117: =Calculations!W1256 -> -197286.7969 | U117: =Calculations!X1256 -> -229922.6411 | V117: =Calculations!Y1256 -> -231616.3467 | W117: =Calculations!Z1256 -> -223224.5667 | X117: =Calculations!AA1256 -> -201268.9964 | Y117: =Calculations!AB1256 -> -164695.198 | Z117: =Calculations!AC1256 -> -170473.4871 | AA117: =Calculations!AD1256 -> -157584.94 | AB117: =Calculations!AE1256 -> -120095.412 | AC117: =Calculations!AF1256 -> -27235.72303 | AD117: =Calculations!AG1256 -> -22917.56373 | AE117: =Calculations!AH1256 -> -5052.442677 | AF117: =Calculations!AI1256 -> -4985.200558 | AG117: =Calculations!AJ1256 -> -4010.189842 | AH117: =Calculations!AK1256 -> 0 | AI117: =Calculations!AL1256 -> 0 | AJ117: =Calculations!AM1256 -> 0
I118: Suppliers | L118: =SUM(O118:AJ118) -> -6101389.324 | O118: =Calculations!R1257 -> 0 | P118: =Calculations!S1257 -> 0 | Q118: =Calculations!T1257 -> 0 | R118: =Calculations!U1257 -> -36774.31262 | S118: =Calculations!V1257 -> -60682.10533 | T118: =Calculations!W1257 -> -293238.7916 | U118: =Calculations!X1257 -> -596199.2488 | V118: =Calculations!Y1257 -> -718863.6045 | W118: =Calculations!Z1257 -> -681584.296 | X118: =Calculations!AA1257 -> -629721.3965 | Y118: =Calculations!AB1257 -> -626408.3061 | Z118: =Calculations!AC1257 -> -524208.9582 | AA118: =Calculations!AD1257 -> -494700.8375 | AB118: =Calculations!AE1257 -> -420560.1608 | AC118: =Calculations!AF1257 -> -242932.1688 | AD118: =Calculations!AG1257 -> -78321.67922 | AE118: =Calculations!AH1257 -> -313286.7169 | AF118: =Calculations!AI1257 -> -234965.0377 | AG118: =Calculations!AJ1257 -> -148941.7033 | AH118: =Calculations!AK1257 -> 0 | AI118: =Calculations!AL1257 -> 0 | AJ118: =Calculations!AM1257 -> 0
I119: Tax | L119: =SUM(O119:AJ119) -> -168591.3188 | O119: =Calculations!R1258 -> 0 | P119: =Calculations!S1258 -> 0 | Q119: =Calculations!T1258 -> 0 | R119: =Calculations!U1258 -> 0 | S119: =Calculations!V1258 -> 0 | T119: =Calculations!W1258 -> -56197.10626 | U119: =Calculations!X1258 -> 0 | V119: =Calculations!Y1258 -> 0 | W119: =Calculations!Z1258 -> 0 | X119: =Calculations!AA1258 -> -56197.10626 | Y119: =Calculations!AB1258 -> 0 | Z119: =Calculations!AC1258 -> 0 | AA119: =Calculations!AD1258 -> 0 | AB119: =Calculations!AE1258 -> -56197.10626 | AC119: =Calculations!AF1258 -> 0 | AD119: =Calculations!AG1258 -> 0 | AE119: =Calculations!AH1258 -> 0 | AF119: =Calculations!AI1258 -> 0 | AG119: =Calculations!AJ1258 -> 0 | AH119: =Calculations!AK1258 -> 0 | AI119: =Calculations!AL1258 -> 0 | AJ119: =Calculations!AM1258 -> 0
I121: Operating Cash Flow | L121: =SUM(O121:AJ121) -> 746744.6828 | O121: =SUM(O115,O117:O119) -> 0 | P121: =SUM(P115,P117:P119) -> -15684.52842 | Q121: =SUM(Q115,Q117:Q119) -> -80775.3078 | R121: -147617.0875 | S121: -210240.4578 | T121: -523829.9877 | U121: -459532.6475 | V121: -551901.982 | W121: 318011.0951 | X121: 299805.662 | Y121: 306456.809 | Z121: 59254.86143 | AA121: 35919.10571 | AB121: 135375.1244 | AC121: 430207.0725 | AD121: 642730.1004 | AE121: 353405.063 | AF121: -57012.82846 | AG121: 41372.33538 | AH121: 170802.2811 | AI121: 0 | AJ121: 0
I123: WACC | L123: =Global!O38 -> 0.059 | O123: =O61 -> 0.004788517365 | P123: =P61 -> 0.004788517365 | Q123: =Q61 -> 0.004788517365 | R123: 0.004788517365 | S123: 0.004788517365 | T123: 0.004788517365 | U123: 0.004788517365 | V123: 0.004788517365 | W123: 0.004788517365 | X123: 0.004788517365 | Y123: 0.004788517365 | Z123: 0.004788517365 | AA123: 0.004788517365 | AB123: 0.004788517365 | AC123: 0.004788517365 | AD123: 0.004788517365 | AE123: 0.004788517365 | AF123: 0.004788517365 | AG123: 0.004788517365 | AH123: 0.004788517365 | AI123: 0.004788517365 | AJ123: 0.004788517365
I125: Discount Factor | O125: =P125*(1+O123) -> 1.004788517 | P125: =Q125*(1+P123) -> 1 | Q125: =1/(1+Q123) -> 0.9952343033 | R125: =Q125/(1+R123) -> 0.9904913184 | S125: =R125/(1+S123) -> 0.9857709371 | T125: 0.9810730518 | U125: 0.9763975551 | V125: 0.9717443405 | W125: 0.9671133016 | X125: 0.9625043329 | Y125: 0.9579173292 | Z125: 0.9533521857 | AA125: 0.9488087983 | AB125: 0.9442870633 | AC125: 0.9397868775 | AD125: 0.9353081382 | AE125: 0.9308507433 | AF125: 0.9264145909 | AG125: 0.9219995799 | AH125: 0.9176056095 | AI125: 0.9132325795 | AJ125: 0.9088803899
I126: Discounted Cash Flows | L126: =SUM(O126:AJ126) -> 636112.3741 | O126: =O125*O121 -> 0 | P126: =P125*P121 -> -15684.52842 | Q126: =Q125*Q121 -> -80390.35718 | R126: =R125*R121 -> -146213.4436 | S126: =S125*S121 -> -207248.9331 | T126: -513915.4847 | U126: -448686.5535 | V126: -536307.6275 | W126: 307552.7601 | X126: 288564.2487 | Y126: 293560.288 | Z126: 56490.75166 | AA126: 34080.36353 | AB126: 127832.9787 | AC126: 404302.9614 | AD126: 601150.6936 | AE126: 328967.3655 | AF126: -52817.51615 | AG126: 38145.27584 | AH126: 156729.1312 | AI126: 0 | AJ126: 0
I128: Present Value of required return
I129: Capital charge on fixed assets (discounted) | L129: =SUMPRODUCT(Q$125:AD$125,Q62:AD62) -> 384775.2636
I130: Depreciation (discounted) | L130: =SUMPRODUCT(Q$125:AD$125,Q45:AD45) -> 251337.1105
I131: Net | L131: =SUM(L129:L130) -> 636112.3741
I133: Excess / (Deficit) Return | L133: =L126-L131 -> -3.143213689e-09
I134: cents / kgms | L134: =L133/L12 -> -2.006611962e-15
I136: Check consistency of financials / cash flows
I137: NOPLAT | O137: =O55 -> 0 | P137: =P55 -> 0 | Q137: =Q55 -> 8085.301069 | R137: 8587.658097 | S137: 2382.340436 | T137: -191301.9724 | U137: -598.7705914 | V137: 148017.1617 | W137: 159276.0161 | X137: 135955.4948 | Y137: 120506.1657 | Z137: 117551.3066 | AA137: 117771.9104 | AB137: -191787.126 | AC137: 37321.58196 | AD137: 15347.57649 | AE137: 10954.25242 | AF137: -8745.107029 | AG137: -8745.107029 | AH137: 0 | AI137: 0 | AJ137: 0
I138: + depreciation | O138: =O45 -> 0 | P138: =P45 -> 0 | Q138: =Q45 -> 0 | R138: 0 | S138: 0 | T138: 0 | U138: 0 | V138: 0 | W138: 0 | X138: 0 | Y138: 0 | Z138: 0 | AA138: 0 | AB138: 266166 | AC138: 0 | AD138: 0 | AE138: 0 | AF138: 0 | AG138: 0 | AH138: 0 | AI138: 0 | AJ138: 0
I139: + change in working capital | O139: =-(P64-O64) -> 0 | P139: =-(Q64-P64) -> -15684.52842 | Q139: =-(R64-Q64) -> -88860.60887 | R139: -156204.7456 | S139: -212622.7983 | T139: -332528.0153 | U139: -458933.8769 | V139: -699919.1437 | W139: 158735.079 | X139: 163850.1672 | Y139: 185950.6434 | Z139: -58296.44521 | AA139: -81852.80471 | AB139: 60996.2504 | AC139: 392885.4906 | AD139: 627382.5239 | AE139: 342450.8105 | AF139: -48267.72143 | AG139: 50117.44241 | AH139: 170802.2811 | AI139: 0 | AJ139: 8.646368737e-10
I140: Operating Cash Flow | O140: =SUM(O137:O139) -> 0 | P140: =SUM(P137:P139) -> -15684.52842 | Q140: =SUM(Q137:Q139) -> -80775.3078 | R140: -147617.0875 | S140: -210240.4578 | T140: -523829.9877 | U140: -459532.6475 | V140: -551901.982 | W140: 318011.0951 | X140: 299805.662 | Y140: 306456.809 | Z140: 59254.86143 | AA140: 35919.10571 | AB140: 135375.1244 | AC140: 430207.0725 | AD140: 642730.1004 | AE140: 353405.063 | AF140: -57012.82846 | AG140: 41372.33538 | AH140: 170802.2811 | AI140: 0 | AJ140: 8.646368737e-10
I141: check | L141: =IF(ROUND(SUM(O141:AJ141),3)=0,"Okay","Error") -> Okay | O141: =O121-O140 -> 0 | P141: =P121-P140 -> 0 | Q141: =Q121-Q140 -> 0 | R141: =R121-R140 -> 0 | S141: 0 | T141: 0 | U141: 4.656612873e-10 | V141: 0 | W141: -9.313225746e-10 | X141: 0 | Y141: 0 | Z141: 0 | AA141: -1.89174898e-10 | AB141: 0 | AC141: 0 | AD141: 0 | AE141: 0 | AF141: -8.731149137e-11 | AG141: -8.731149137e-11 | AH141: 0 | AI141: 0 | AJ141: -8.646368737e-10

Sheet LookupTables (hidden)
E10: Year to date month | I10: Selected
E11: =Global!K32 -> 2015-06-30 | F11: YTD_Months | I11: 16
E12: =EOMONTH(E11,1) -> 2015-07-31 | I12: =CHOOSE(YTD_Months_No,$E$11,$E$12,$E$13,$E$14,$E$15,$E$16,$E$17,$E$18,$E$19,$E$20,$E$21,$E$22,$E$23,$E$24,$E$25,$E$26,$E$27,$E$28) -> 2016-09-30
E13: =EOMONTH(E12,1) -> 2015-08-31
E14: 2015-09-30
E15: 2015-10-31
E16: 2015-11-30
E17: 2015-12-31
E18: 2016-01-31
E19: 2016-02-29
E20: 2016-03-31
E21: 2016-04-30
E22: 2016-05-31
E23: 2016-06-30
E24: 2016-07-31
E25: 2016-08-31
E26: 2016-09-30
E27: 2016-10-31
E28: 2016-11-30

Sheet nav_inputs (hidden)
B5: Full | C5: References | F5: Caption
B6: Caption | C6: Worksheet | D6: Cell | E6: Level A | F6: Level B | G6: Level C
B7: Entities | C7: Global | D7: A1 | E7: Global
B8: =E8&IF(F8="","",IF(G8=""," / "&F8," / "&F8&" / "&G8)) -> Data Input / GLOBAL | C8: Data Input | D8: ="A"&MATCH(F8,'Data Input'!$F$13:$F$715,0)+15 -> A17 | E8: Data Input | F8: ='Data Input'!F14 -> GLOBAL
B9: Data Input / MILK SUPPLY | C9: Data Input | D9: ="A"&MATCH(F9,'Data Input'!$F$13:$F$715,0)+15 -> A27 | E9: Data Input | F9: ='Data Input'!F24 -> MILK SUPPLY
B10: Data Input / PRODUCTION | C10: Data Input | D10: ="A"&MATCH(F10,'Data Input'!$F$13:$F$715,0)+15 -> A39 | E10: Data Input | F10: ='Data Input'!F36 -> PRODUCTION
B11: Data Input / REVENUE / 1. Base Commodity Prices | C11: Data Input | D11: ="A"&MATCH(G11,'Data Input'!$E$13:$E$715,0)+15 -> A86 | E11: Data Input | F11: ='Data Input'!F77 -> REVENUE | G11: ='Data Input'!E83 -> 1. Base Commodity Prices
B12: =E12&IF(F12="","",IF(G12=""," / "&F12," / "&F12&" / "&G12)) -> Data Input / REVENUE / 2. Sales Phasing | C12: Data Input | D12: ="A"&MATCH(G12,'Data Input'!$E$13:$E$715,0)+15 -> A100 | E12: Data Input | F12: =F11 -> REVENUE | G12: ='Data Input'!E97 -> 2. Sales Phasing
B13: =E13&IF(F13="","",IF(G13=""," / "&F13," / "&F13&" / "&G13)) -> Data Input / COLLECTION | C13: Data Input | D13: ="A"&MATCH(F13,'Data Input'!$F$13:$F$715,0)+15 -> A135 | E13: Data Input | F13: ='Data Input'!F132 -> COLLECTION
B14: Data Input / OPEX | C14: Data Input | D14: ="A"&MATCH(F14,'Data Input'!$F$13:$F$715,0)+15 -> A146 | E14: Data Input | F14: ='Data Input'!F143 -> OPEX
B15: Data Input / SUPPLY CHAIN | C15: Data Input | D15: ="A"&MATCH(F15,'Data Input'!$F$13:$F$715,0)+15 -> A192 | E15: Data Input | F15: ='Data Input'!F189 -> SUPPLY CHAIN
B16: Data Input / ADMINISTRATION | C16: Data Input | D16: ="A"&MATCH(F16,'Data Input'!$F$13:$F$715,0)+15 -> A219 | E16: Data Input | F16: ='Data Input'!F216 -> ADMINISTRATION
B17: Data Input / FIXED ASSETS | C17: Data Input | D17: ="A"&MATCH(F17,'Data Input'!$F$13:$F$715,0)+15 -> A232 | E17: Data Input | F17: ='Data Input'!F229 -> FIXED ASSETS
B18: Data Input / INCOME TAX | C18: Data Input | D18: ="A"&MATCH(F18,'Data Input'!$F$13:$F$715,0)+15 -> A243 | E18: Data Input | F18: ='Data Input'!F240 -> INCOME TAX
B19: Data Input / WORKING CAPITAL | C19: Data Input | D19: ="A"&MATCH(F19,'Data Input'!$F$13:$F$715,0)+15 -> A253 | E19: Data Input | F19: ='Data Input'!F250 -> WORKING CAPITAL
B20: Data Input / WORKING CAPITAL | C20: Data Input | D20: ="A"&MATCH(F20,'Data Input'!$F$13:$F$715,0)+14 -> A252 | E20: Data Input | F20: ='Data Input'!F250 -> WORKING CAPITAL
B21: Calculations / PRODUCTION | C21: Calculations | D21: ="A"&MATCH(F21,Calculations!$D$11:$D$1318,0)+13 -> A17 | E21: =C21 -> Calculations | F21: =Calculations!D14 -> PRODUCTION
B22: Calculations / COMPONENT MILK PRICE | C22: Calculations | D22: ="A"&MATCH(F22,Calculations!$D$11:$D$1318,0)+13 -> A221 | E22: Calculations | F22: =Calculations!D218 -> COMPONENT MILK PRICE
B23: Calculations / SALES REVENUE | C23: Calculations | D23: ="A"&MATCH(F23,Calculations!$D$11:$D$1318,0)+13 -> A282 | E23: Calculations | F23: =Calculations!D279 -> SALES REVENUE
B24: Calculations / COST OF MILK | C24: Calculations | D24: ="A"&MATCH(F24,Calculations!$D$11:$D$1318,0)+13 -> A507 | E24: Calculations | F24: =Calculations!D504 -> COST OF MILK
B25: Calculations / COLLECTION COSTS | C25: Calculations | D25: ="A"&MATCH(F25,Calculations!$D$11:$D$1318,0)+13 -> A523 | E25: Calculations | F25: =Calculations!D520 -> COLLECTION COSTS
B26: Calculations / OPEX | C26: Calculations | D26: ="A"&MATCH(F26,Calculations!$D$11:$D$1318,0)+13 -> A544 | E26: Calculations | F26: =Calculations!D541 -> OPEX
B27: Calculations / SUPPLY CHAIN COSTS | C27: Calculations | D27: ="A"&MATCH(F27,Calculations!$D$11:$D$1318,0)+13 -> A741 | E27: Calculations | F27: =Calculations!D738 -> SUPPLY CHAIN COSTS
B28: Calculations / ADMINISTRATION COSTS | C28: Calculations | D28: ="A"&MATCH(F28,Calculations!$D$11:$D$1318,0)+13 -> A830 | E28: Calculations | F28: =Calculations!D827 -> ADMINISTRATION COSTS
B29: Calculations / CURRENT ASSET MOVEMENTS / Receivables | C29: Calculations | D29: ="A"&MATCH(G29,Calculations!$D$11:$D$1318,0)+13 -> A868 | E29: Calculations | F29: =Calculations!D863 -> CURRENT ASSET MOVEMENTS | G29: =Calculations!D865 -> Receivables
B30: Calculations / CURRENT ASSET MOVEMENTS / INVENTORY | C30: Calculations | D30: ="A"&MATCH(G30,Calculations!$D$11:$D$1318,0)+13 -> A916 | E30: Calculations | F30: =F29 -> CURRENT ASSET MOVEMENTS | G30: =Calculations!D913 -> INVENTORY
B31: Calculations / CURRENT LIABILITY MOVEMENTS / TRADE CREDITORS | C31: Calculations | D31: ="A"&MATCH(G31,Calculations!$D$11:$D$1318,0)+13 -> A1080 | E31: Calculations | F31: =Calculations!D1075 -> CURRENT LIABILITY MOVEMENTS | G31: =Calculations!D1077 -> TRADE CREDITORS
B32: Calculations / CURRENT LIABILITY MOVEMENTS / OWING TO SUPPLIERS | C32: Calculations | D32: ="A"&MATCH(G32,Calculations!$D$11:$D$1318,0)+13 -> A1138 | E32: Calculations | F32: =F31 -> CURRENT LIABILITY MOVEMENTS | G32: =Calculations!D1135 -> OWING TO SUPPLIERS
B33: Calculations / FIXED ASSETS | C33: Calculations | D33: ="A"&MATCH(F33,Calculations!$D$11:$D$1318,0)+13 -> A1169 | E33: Calculations | F33: =Calculations!D1166 -> FIXED ASSETS
B34: Calculations / CAPITAL CHARGE | C34: Calculations | D34: ="A"&MATCH(F34,Calculations!$D$11:$D$1318,0)+13 -> A1180 | E34: Calculations | F34: =Calculations!D1177 -> CAPITAL CHARGE
B35: Calculations / MILK PRICE CALCULATION | C35: Calculations | D35: ="A"&MATCH(F35,Calculations!$D$11:$D$1318,0)+13 -> A1211 | E35: Calculations | F35: =Calculations!D1208 -> MILK PRICE CALCULATION
B36: Calculations / TAX EXPENSE | C36: Calculations | D36: ="A"&MATCH(F36,Calculations!$D$11:$D$1318,0)+13 -> A1272 | E36: Calculations | F36: =Calculations!D1269 -> TAX EXPENSE
B37: Calculations / TAX PAYMENTS | C37: Calculations | D37: ="A"&MATCH(F37,Calculations!$D$11:$D$1318,0)+13 -> A1301 | E37: Calculations | F37: =Calculations!D1298 -> TAX PAYMENTS
B38: Summary | C38: Summary | D38: A1 | E38: Summary
B40: =E40&IF(F40="","",IF(G40=""," / "&F40," / "&F40&" / "&G40)) -> 
D67: Worksheet Names
D69: Global
D70: Data Input
D71: GDT
D72: Calculations
D73: Summary
D74: LookupTables
